Inv Transaction,Supplier Name,Headserv Name,Stratdir Name,Account Desription,Redact Name,Paid Date,Inv Amount,Non Recoverable VAT (Where Applicable),Merchant Category
460314,KINGSWOOD MANOR,Adult Social Care,Director of People,Nursing Home Long Stay Fees,,06/01/16,"1,947.57 ",,Social Community Care
460314,BAYER LODGE CARE HOME,Adult Social Care,Director of People,Nursing Home Long Stay Fees,,27/01/16,"42,944.15 ",,Social Community Care
460315,ORCHARD MANOR NURSING HOME,Adult Social Care,Director of People,Nursing Home Long Stay Fees,,17/03/16,"4,938.39 ",,Social Community Care Supplies & Services
460315,BAYER LODGE CARE HOME,Adult Social Care,Director of People,Nursing Home Long Stay Fees,,27/01/16,"6,988.28 ",,Social Community Care
460315,WESTY HALL,Adult Social Care,Director of People,Nursing Home Long Stay Fees,,06/01/16,"10,006.29 ",,Social Community Care
460316,CANTERBURY CARE HOMES LTD,Adult Social Care,Director of People,Nursing Home Long Stay Fees,,25/01/16,916.36 ,,Social Community Care Supplies & Services
460316,GRANGEFIELD,Adult Social Care,Director of People,Nursing Home Long Stay Fees,,25/01/16,925.10 ,,Social Community Care
460316,BROUGHTON HOUSE HOME FOR  EX-SERVICE PERSONNEL,Adult Social Care,Director of People,Nursing Home Long Stay Fees,,25/01/16,926.88 ,,Social Community Care Supplies & Services
460316,BEECHFIELD LODGE,Adult Social Care,Director of People,Nursing Home Long Stay Fees,,25/01/16,966.98 ,,Social Community Care
460316,DOVES NEST NURSING HOME,Adult Social Care,Director of People,Nursing Home Long Stay Fees,,25/01/16,"1,448.96 ",,Social Community Care
460316,THE OLD VICARAGE,Adult Social Care,Director of People,Nursing Home Long Stay Fees,,25/01/16,"1,478.09 ",,Social Community Care Supplies & Services
460316,RUSHCLIFFE CARE LTD T/A OAKFORD MANOR NURSING HOME,Adult Social Care,Director of People,Nursing Home Long Stay Fees,,25/01/16,"1,488.00 ",,Social Community Care Supplies & Services
460316,HALF ACRE HOUSE,Adult Social Care,Director of People,Nursing Home Long Stay Fees,,25/01/16,"1,662.28 ",,Social Community Care
460316,GLENROYD CARE HOME,Adult Social Care,Director of People,Nursing Home Long Stay Fees,,25/01/16,"1,786.84 ",,Social Community Care Supplies & Services
460316,LOUTH CARE LTD,Adult Social Care,Director of People,Nursing Home Long Stay Fees,,25/01/16,"1,820.14 ",,Social Community Care
460316,THE ROYAL ELMS REST HOMES,Adult Social Care,Director of People,Nursing Home Long Stay Fees,,25/01/16,"1,841.58 ",,Social Community Care
460316,ACORN LODGE CARE HOME,Adult Social Care,Director of People,Nursing Home Long Stay Fees,,25/01/16,"1,857.79 ",,Social Community Care Supplies & Services
460316,PENDLEBURY CARE HOMES LTD,Adult Social Care,Director of People,Nursing Home Long Stay Fees,,25/01/16,"1,895.87 ",,Social Community Care Supplies & Services
460316,HILLTOP HALL,Adult Social Care,Director of People,Nursing Home Long Stay Fees,,25/01/16,"1,976.18 ",,Unclassifiable
460316,WESTMINSTER HEALTH CARE LTD,Adult Social Care,Director of People,Nursing Home Long Stay Fees,,25/01/16,"2,039.36 ",,Social Community Care Supplies & Services
460316,WINDMILL CARE HOME,Adult Social Care,Director of People,Nursing Home Long Stay Fees,,25/01/16,"2,040.29 ",,Social Community Care Supplies & Services
460316,THE ALEXANDRA,Adult Social Care,Director of People,Nursing Home Long Stay Fees,,25/01/16,"2,139.00 ",,Social Community Care Supplies & Services
460316,SUNNY BANK PRS LTD,Adult Social Care,Director of People,Nursing Home Long Stay Fees,,25/01/16,"2,463.34 ",,Social Community Care Supplies & Services
460316,BAMFORD GRANGE N/H,Adult Social Care,Director of People,Nursing Home Long Stay Fees,,25/01/16,"2,654.37 ",,Social Community Care Supplies & Services
460316,NAZARETH HOUSE,Adult Social Care,Director of People,Nursing Home Long Stay Fees,,25/01/16,"2,825.71 ",,Social Community Care
460316,EAGLE HOUSE CARE HOME,Adult Social Care,Director of People,Nursing Home Long Stay Fees,,25/01/16,"3,034.59 ",,Social Community Care Supplies & Services
460316,HOMELEIGH,Adult Social Care,Director of People,Nursing Home Long Stay Fees,,25/01/16,"3,207.14 ",,Social Community Care Supplies & Services
460316,CLEARWATER CARE,Adult Social Care,Director of People,Nursing Home Long Stay Fees,,25/01/16,"3,282.59 ",,Social Community Care
460316,COMPASS CARE LIMITED,Adult Social Care,Director of People,Nursing Home Long Stay Fees,,25/01/16,"4,171.82 ",,Social Community Care Supplies & Services
460316,ST MARY'S CONTINUING CARE LTD,Adult Social Care,Director of People,Nursing Home Long Stay Fees,,25/01/16,"4,394.95 ",,Social Community Care Supplies & Services
460316,THE DAVID LEWIS CENTRE,Adult Social Care,Director of People,Nursing Home Long Stay Fees,,25/01/16,"4,537.17 ",,Social Community Care
460316,UNITED RESPONSE,Adult Social Care,Director of People,Nursing Home Long Stay Fees,,25/01/16,"5,771.83 ",,Social Community Care Supplies & Services
460316,BROOKVALE,Adult Social Care,Director of People,Nursing Home Long Stay Fees,,25/01/16,"6,439.73 ",,Social Community Care Supplies & Services
460316,OVERDEAN HOUSE (HC ONE),Adult Social Care,Director of People,Nursing Home Long Stay Fees,,25/01/16,"6,464.88 ",,Social Community Care
460316,BAYER LODGE CARE HOME,Adult Social Care,Director of People,Nursing Home Long Stay Fees,,27/01/16,"6,988.28 ",,Social Community Care
460316,APPLETON MANOR,Adult Social Care,Director of People,Nursing Home Long Stay Fees,,25/01/16,"7,059.53 ",,Social Community Care
460316,DARNTON HOUSE,Adult Social Care,Director of People,Nursing Home Long Stay Fees,,25/01/16,"7,125.29 ",,Social Community Care
460316,POLEBANK HALL RESIDENTIAL CARE HOME LTD,Adult Social Care,Director of People,Nursing Home Long Stay Fees,,25/01/16,"7,152.43 ",,Social Community Care
460316,OAKWOOD CARE CENTRE,Adult Social Care,Director of People,Nursing Home Long Stay Fees,,25/01/16,"7,927.63 ",,Social Community Care Supplies & Services
460316,CHADDERTON TOTAL CAREUNIT LTD,Adult Social Care,Director of People,Nursing Home Long Stay Fees,,25/01/16,"8,593.67 ",,Social Community Care Supplies & Services
460316,VICTORIA NURSING HOME,Adult Social Care,Director of People,Nursing Home Long Stay Fees,,25/01/16,"8,768.57 ",,Social Community Care Supplies & Services
460316,BOWLACRE HOME,Adult Social Care,Director of People,Nursing Home Long Stay Fees,,25/01/16,"9,047.26 ",,Social Community Care Supplies & Services
460316,THE HESLEY GROUP LTD,Adult Social Care,Director of People,Nursing Home Long Stay Fees,,25/01/16,"9,955.87 ",,Social Community Care Supplies & Services
460316,ST LAWRENCES LODGE,Adult Social Care,Director of People,Nursing Home Long Stay Fees,,25/01/16,"9,977.42 ",,Social Community Care Supplies & Services
460316,CARE UK LEARNING DISABILITIES SERVS LTD,Adult Social Care,Director of People,Nursing Home Long Stay Fees,,25/01/16,"10,111.89 ",,Public Bodies
460316,AUDEN HOUSE RESIDENTIAL HOME,Adult Social Care,Director of People,Nursing Home Long Stay Fees,,25/01/16,"11,941.41 ",,Social Community Care Supplies & Services
460316,FIRBANK HOUSE NURSING & RESIDENTIAL CARE HOME,Adult Social Care,Director of People,Nursing Home Long Stay Fees,,25/01/16,"12,068.12 ",,Social Community Care Supplies & Services
460316,THE VICARAGE RESIDENTIAL CARE HOME,Adult Social Care,Director of People,Nursing Home Long Stay Fees,,25/01/16,"13,128.15 ",,Social Community Care Supplies & Services
460316,WOODLANDS RESIDENTIAL CARE HOME,Adult Social Care,Director of People,Nursing Home Long Stay Fees,,25/01/16,"13,490.10 ",,Social Community Care Supplies & Services
460316,PROGRESS CARE & EDUCATION LTD,Adult Social Care,Director of People,Nursing Home Long Stay Fees,,25/01/16,"13,797.21 ",,Social Community Care
460316,LAUREL BANK RESIDENTIAL CARE HOME LTD,Adult Social Care,Director of People,Nursing Home Long Stay Fees,,25/01/16,"13,801.35 ",,Social Community Care Supplies & Services
460316,SIGN,Adult Social Care,Director of People,Nursing Home Long Stay Fees,,25/01/16,"14,798.16 ",,Social Community Care Supplies & Services
460316,THE JOSEPH COX CHARITY,Adult Social Care,Director of People,Nursing Home Long Stay Fees,,25/01/16,"16,610.52 ",,Social Community Care Supplies & Services
460316,LEONARD CHESHIRE DISABILITY,Adult Social Care,Director of People,Nursing Home Long Stay Fees,,25/01/16,"17,690.61 ",,Social Community Care Supplies & Services
460316,FERN BANK,Adult Social Care,Director of People,Nursing Home Long Stay Fees,,25/01/16,"17,789.31 ",,Social Community Care Supplies & Services
460316,CLARKSON HOUSE,Adult Social Care,Director of People,Nursing Home Long Stay Fees,,25/01/16,"17,911.04 ",,Social Community Care Supplies & Services
460316,CHARNLEY HOUSE LIMITED,Adult Social Care,Director of People,Nursing Home Long Stay Fees,,25/01/16,"18,506.12 ",,Social Community Care Supplies & Services
460316,HEATHCOTES CARE,Adult Social Care,Director of People,Nursing Home Long Stay Fees,,25/01/16,"19,239.27 ",,Social Community Care
460316,ST GEORGE'S NURSING HOME (OLDHAM) LTD,Adult Social Care,Director of People,Nursing Home Long Stay Fees,,25/01/16,"21,083.94 ",,Social Community Care Supplies & Services
460316,THORNCLIFFE GRANGE NURSING HOME,Adult Social Care,Director of People,Nursing Home Long Stay Fees,,25/01/16,"21,869.17 ",,Social Community Care Supplies & Services
460316,HC ONE OF A KIND - GUIDE LANE,Adult Social Care,Director of People,Nursing Home Long Stay Fees,,25/01/16,"25,108.75 ",,Social Community Care
460316,BALMORAL HOMES,Adult Social Care,Director of People,Nursing Home Long Stay Fees,,25/01/16,"25,129.81 ",,Social Community Care Supplies & Services
460316,BOURNE HOUSE RESIDENTIAL HOME,Adult Social Care,Director of People,Nursing Home Long Stay Fees,,25/01/16,"25,839.56 ",,Social Community Care Supplies & Services
460316,MOSS COTTAGE NURSING HOME,Adult Social Care,Director of People,Nursing Home Long Stay Fees,,25/01/16,"26,716.29 ",,Social Community Care Supplies & Services
460316,STALEY HOUSE EPH,Adult Social Care,Director of People,Nursing Home Long Stay Fees,,25/01/16,"27,984.27 ",,Social Community Care Supplies & Services
460316,HC ONE OF A KIND - KINGS PARK,Adult Social Care,Director of People,Nursing Home Long Stay Fees,,25/01/16,"34,813.45 ",,Social Community Care
460316,BELMONT PARKHILL LTD,Adult Social Care,Director of People,Nursing Home Long Stay Fees,,25/01/16,"41,642.06 ",,Unclassified
460316,FAIRFIELD VIEW CARE LTD,Adult Social Care,Director of People,Nursing Home Long Stay Fees,,25/01/16,"43,093.70 ",,Social Community Care Supplies & Services
460316,RIVERSIDE CARE CENTRE,Adult Social Care,Director of People,Nursing Home Long Stay Fees,,25/01/16,"49,313.15 ",,Social Community Care Supplies & Services
460316,HATTON GRANGE,Adult Social Care,Director of People,Nursing Home Long Stay Fees,,25/01/16,"59,258.25 ",,Social Community Care
460316,ELDER HOMES GROUP,Adult Social Care,Director of People,Nursing Home Long Stay Fees,,25/01/16,"63,797.60 ",,Social Community Care Supplies & Services
460316,BLACKCLIFFE LTD,Adult Social Care,Director of People,Nursing Home Long Stay Fees,,25/01/16,"71,652.22 ",,Social Community Care Supplies & Services
460316,MERIDIAN HEALTHCARE LTD,Adult Social Care,Director of People,Nursing Home Long Stay Fees,,25/01/16,"804,836.19 ",,Social Community Care Supplies & Services
460317,CANTERBURY CARE HOMES LTD,Adult Social Care,Director of People,Nursing Home Long Stay Fees,,22/02/16,979.56 ,,Social Community Care Supplies & Services
460317,BROUGHTON HOUSE HOME FOR  EX-SERVICE PERSONNEL,Adult Social Care,Director of People,Nursing Home Long Stay Fees,,22/02/16,990.80 ,,Social Community Care Supplies & Services
460317,BEECHFIELD LODGE,Adult Social Care,Director of People,Nursing Home Long Stay Fees,,22/02/16,"1,033.67 ",,Social Community Care
460317,DOVES NEST NURSING HOME,Adult Social Care,Director of People,Nursing Home Long Stay Fees,,22/02/16,"1,548.89 ",,Social Community Care
460317,THE OLD VICARAGE,Adult Social Care,Director of People,Nursing Home Long Stay Fees,,22/02/16,"1,580.03 ",,Social Community Care Supplies & Services
460317,GORTON PARKS CARE HOME (BUPA),Adult Social Care,Director of People,Nursing Home Long Stay Fees,,23/03/16,"1,584.33 ",,Social Community Care
460317,LOUTH CARE LTD,Adult Social Care,Director of People,Nursing Home Long Stay Fees,,22/02/16,"1,702.71 ",,Social Community Care
460317,THE ROYAL ELMS REST HOMES,Adult Social Care,Director of People,Nursing Home Long Stay Fees,,22/02/16,"1,722.77 ",,Social Community Care
460317,ACORN LODGE CARE HOME,Adult Social Care,Director of People,Nursing Home Long Stay Fees,,22/02/16,"1,737.93 ",,Social Community Care Supplies & Services
460317,PENDLEBURY CARE HOMES LTD,Adult Social Care,Director of People,Nursing Home Long Stay Fees,,22/02/16,"1,773.56 ",,Social Community Care Supplies & Services
460317,NAZARETH HOUSE,Adult Social Care,Director of People,Nursing Home Long Stay Fees,,22/02/16,"1,781.43 ",,Social Community Care
460317,WESTMINSTER HEALTH CARE LTD,Adult Social Care,Director of People,Nursing Home Long Stay Fees,,22/02/16,"1,907.79 ",,Social Community Care Supplies & Services
460317,WINDMILL CARE HOME,Adult Social Care,Director of People,Nursing Home Long Stay Fees,,22/02/16,"1,908.66 ",,Social Community Care Supplies & Services
460317,THE ALEXANDRA,Adult Social Care,Director of People,Nursing Home Long Stay Fees,,22/02/16,"2,001.00 ",,Social Community Care Supplies & Services
460317,BALMORAL HOMES,Adult Social Care,Director of People,Nursing Home Long Stay Fees,,22/02/16,"2,012.42 ",,Social Community Care Supplies & Services
460317,BAMFORD CLOSE (BOROUGH CARE),Adult Social Care,Director of People,Nursing Home Long Stay Fees,,22/02/16,"2,037.14 ",,Social Community Care
460317,HOMELEIGH,Adult Social Care,Director of People,Nursing Home Long Stay Fees,,22/02/16,"2,485.71 ",,Social Community Care Supplies & Services
460317,SUNNY BANK PRS LTD,Adult Social Care,Director of People,Nursing Home Long Stay Fees,,22/02/16,"2,633.23 ",,Social Community Care Supplies & Services
460317,HANDSALE LTD T/A TREELANDS,Adult Social Care,Director of People,Nursing Home Long Stay Fees,,22/02/16,"2,787.43 ",,Social Community Care Supplies & Services
460317,LEONARD CHESHIRE DISABILITY,Adult Social Care,Director of People,Nursing Home Long Stay Fees,,22/02/16,"2,818.12 ",,Social Community Care Supplies & Services
460317,BAMFORD GRANGE N/H,Adult Social Care,Director of People,Nursing Home Long Stay Fees,,22/02/16,"2,837.43 ",,Social Community Care Supplies & Services
460317,EAGLE HOUSE CARE HOME,Adult Social Care,Director of People,Nursing Home Long Stay Fees,,22/02/16,"2,838.81 ",,Social Community Care Supplies & Services
460317,PENNINE CARE CENTRE,Adult Social Care,Director of People,Nursing Home Long Stay Fees,,22/02/16,"3,424.03 ",,Social Community Care Supplies & Services
460317,CLEARWATER CARE,Adult Social Care,Director of People,Nursing Home Long Stay Fees,,22/02/16,"3,508.98 ",,Social Community Care
460317,HILLTOP HALL,Adult Social Care,Director of People,Nursing Home Long Stay Fees,,22/02/16,"3,634.52 ",,Unclassifiable
460317,THE JOSEPH COX CHARITY,Adult Social Care,Director of People,Nursing Home Long Stay Fees,,22/02/16,"3,965.49 ",,Social Community Care Supplies & Services
460317,LAUREL BANK RESIDENTIAL CARE HOME LTD,Adult Social Care,Director of People,Nursing Home Long Stay Fees,,22/02/16,"4,127.16 ",,Social Community Care Supplies & Services
460317,COMPASS CARE LIMITED,Adult Social Care,Director of People,Nursing Home Long Stay Fees,,22/02/16,"4,459.53 ",,Social Community Care Supplies & Services
460317,ST MARY'S CONTINUING CARE LTD,Adult Social Care,Director of People,Nursing Home Long Stay Fees,,22/02/16,"4,698.05 ",,Social Community Care Supplies & Services
460317,AUDEN HOUSE RESIDENTIAL HOME,Adult Social Care,Director of People,Nursing Home Long Stay Fees,,22/02/16,"4,765.61 ",,Social Community Care Supplies & Services
460317,THE DAVID LEWIS CENTRE,Adult Social Care,Director of People,Nursing Home Long Stay Fees,,22/02/16,"4,850.08 ",,Social Community Care
460317,SIGN,Adult Social Care,Director of People,Nursing Home Long Stay Fees,,22/02/16,"5,041.13 ",,Social Community Care Supplies & Services
460317,ERNELESTHORP NURSING HOME,Adult Social Care,Director of People,Nursing Home Long Stay Fees,,22/02/16,"5,522.88 ",,Social Community Care Supplies & Services
460317,ST HELENS HALL & LODGE,Adult Social Care,Director of People,Nursing Home Long Stay Fees,,22/02/16,"5,908.21 ",,Unclassified
460317,UNITED RESPONSE,Adult Social Care,Director of People,Nursing Home Long Stay Fees,,22/02/16,"6,169.89 ",,Social Community Care Supplies & Services
460317,BROOKVALE,Adult Social Care,Director of People,Nursing Home Long Stay Fees,,22/02/16,"6,883.86 ",,Social Community Care Supplies & Services
460317,ST LAWRENCES LODGE,Adult Social Care,Director of People,Nursing Home Long Stay Fees,,22/02/16,"7,918.54 ",,Social Community Care Supplies & Services
460317,JUBULANI CARE HOME,Adult Social Care,Director of People,Nursing Home Long Stay Fees,,22/02/16,"8,179.09 ",,Social Community Care
460317,FLORENCE LODGE,Adult Social Care,Director of People,Nursing Home Long Stay Fees,,22/02/16,"8,297.14 ",,Social Community Care Supplies & Services
460317,CHADDERTON TOTAL CAREUNIT LTD,Adult Social Care,Director of People,Nursing Home Long Stay Fees,,22/02/16,"8,786.02 ",,Social Community Care Supplies & Services
460317,THE HESLEY GROUP LTD,Adult Social Care,Director of People,Nursing Home Long Stay Fees,,22/02/16,"9,313.56 ",,Social Community Care Supplies & Services
460317,TURNING POINT,Adult Social Care,Director of People,Nursing Home Long Stay Fees,,22/02/16,"9,755.15 ",,Social Community Care Supplies & Services
460317,DARNTON HOUSE,Adult Social Care,Director of People,Nursing Home Long Stay Fees,,22/02/16,"10,140.00 ",,Social Community Care
460317,BAYER LODGE CARE HOME,Adult Social Care,Director of People,Nursing Home Long Stay Fees,,22/02/16,"10,369.71 ",,Social Community Care
460317,CARE UK LEARNING DISABILITIES SERVS LTD,Adult Social Care,Director of People,Nursing Home Long Stay Fees,,22/02/16,"10,809.26 ",,Public Bodies
460317,POLEBANK HALL RESIDENTIAL CARE HOME LTD,Adult Social Care,Director of People,Nursing Home Long Stay Fees,,22/02/16,"10,916.32 ",,Social Community Care
460317,OAKWOOD CARE CENTRE,Adult Social Care,Director of People,Nursing Home Long Stay Fees,,22/02/16,"11,252.57 ",,Social Community Care Supplies & Services
460317,PROGRESS CARE & EDUCATION LTD,Adult Social Care,Director of People,Nursing Home Long Stay Fees,,22/02/16,"12,907.07 ",,Social Community Care
460317,FIRBANK HOUSE NURSING & RESIDENTIAL CARE HOME,Adult Social Care,Director of People,Nursing Home Long Stay Fees,,22/02/16,"13,234.80 ",,Social Community Care Supplies & Services
460317,CHARNLEY HOUSE LIMITED,Adult Social Care,Director of People,Nursing Home Long Stay Fees,,22/02/16,"13,573.80 ",,Social Community Care Supplies & Services
460317,BOURNE HOUSE RESIDENTIAL HOME,Adult Social Care,Director of People,Nursing Home Long Stay Fees,,22/02/16,"16,366.75 ",,Social Community Care Supplies & Services
460317,HC ONE OF A KIND - GUIDE LANE,Adult Social Care,Director of People,Nursing Home Long Stay Fees,,22/02/16,"17,830.66 ",,Social Community Care
460317,HEATHCOTES CARE,Adult Social Care,Director of People,Nursing Home Long Stay Fees,,22/02/16,"17,998.02 ",,Social Community Care
460317,FERN BANK,Adult Social Care,Director of People,Nursing Home Long Stay Fees,,22/02/16,"18,125.01 ",,Social Community Care Supplies & Services
460317,THE VICARAGE RESIDENTIAL CARE HOME,Adult Social Care,Director of People,Nursing Home Long Stay Fees,,22/02/16,"18,924.96 ",,Social Community Care Supplies & Services
460317,BOWERFIELD COURT,Adult Social Care,Director of People,Nursing Home Long Stay Fees,,22/02/16,"19,266.00 ",,Social Community Care
460317,CLARKSON HOUSE,Adult Social Care,Director of People,Nursing Home Long Stay Fees,,22/02/16,"20,094.24 ",,Social Community Care Supplies & Services
460317,THORNCLIFFE GRANGE NURSING HOME,Adult Social Care,Director of People,Nursing Home Long Stay Fees,,22/02/16,"22,568.89 ",,Social Community Care Supplies & Services
460317,HC ONE OF A KIND - KINGS PARK,Adult Social Care,Director of People,Nursing Home Long Stay Fees,,22/02/16,"24,445.36 ",,Social Community Care
460317,FAIRFIELD VIEW CARE LTD,Adult Social Care,Director of People,Nursing Home Long Stay Fees,,22/02/16,"25,011.71 ",,Social Community Care Supplies & Services
460317,STALEY HOUSE EPH,Adult Social Care,Director of People,Nursing Home Long Stay Fees,,22/02/16,"25,113.01 ",,Social Community Care Supplies & Services
460317,ACORN RECOVERY PROJECTS,Public Health,Director of Public Health,Nursing Home Long Stay Fees,,22/02/16,"28,851.12 ",,Social Community Care Supplies & Services
460317,DANSHELL HEALTHCARE LTD,Adult Social Care,Director of People,Nursing Home Long Stay Fees,,22/02/16,"33,880.00 ",,Social Community Care
460317,BELMONT PARKHILL LTD,Adult Social Care,Director of People,Nursing Home Long Stay Fees,,22/02/16,"35,114.55 ",,Unclassified
460317,MOSS COTTAGE NURSING HOME,Adult Social Care,Director of People,Nursing Home Long Stay Fees,,22/02/16,"36,376.41 ",,Social Community Care Supplies & Services
460317,RIVERSIDE CARE CENTRE,Adult Social Care,Director of People,Nursing Home Long Stay Fees,,22/02/16,"47,811.33 ",,Social Community Care Supplies & Services
460317,ST GEORGE'S NURSING HOME (OLDHAM) LTD,Adult Social Care,Director of People,Nursing Home Long Stay Fees,,22/02/16,"48,583.72 ",,Social Community Care Supplies & Services
460317,ELDER HOMES GROUP,Adult Social Care,Director of People,Nursing Home Long Stay Fees,,22/02/16,"57,989.75 ",,Social Community Care Supplies & Services
460317,HATTON GRANGE,Adult Social Care,Director of People,Nursing Home Long Stay Fees,,22/02/16,"65,135.59 ",,Social Community Care
460317,BLACKCLIFFE LTD,Adult Social Care,Director of People,Nursing Home Long Stay Fees,,22/02/16,"74,363.95 ",,Social Community Care Supplies & Services
460317,DOWNSHAW LODGE CARE HOME,Adult Social Care,Director of People,Nursing Home Long Stay Fees,,22/02/16,"96,374.73 ",,Social Community Care
460317,MERIDIAN HEALTHCARE LTD,Adult Social Care,Director of People,Nursing Home Long Stay Fees,,22/02/16,"716,776.55 ",,Social Community Care Supplies & Services
460318,BELMONT PARKHILL LTD,Adult Social Care,Director of People,Nursing Home Long Stay Fees,,29/02/16,"9,750.53 ",,Unclassified
460318,AMARA CARE LTD,Adult Social Care,Director of People,Nursing Home Long Stay Fees,,29/02/16,"11,057.14 ",,Social Community Care Supplies & Services
460320,WOODLANDS RESIDENTIAL CARE HOME,Adult Social Care,Director of People,Nursing Home Long Stay Fees,,02/03/16,"12,997.90 ",,Social Community Care Supplies & Services
460321,CANTERBURY CARE HOMES LTD,Adult Social Care,Director of People,Nursing Home Long Stay Fees,,23/03/16,947.96 ,,Social Community Care Supplies & Services
460321,BROUGHTON HOUSE HOME FOR  EX-SERVICE PERSONNEL,Adult Social Care,Director of People,Nursing Home Long Stay Fees,,23/03/16,958.84 ,,Social Community Care Supplies & Services
460321,BEECHFIELD LODGE,Adult Social Care,Director of People,Nursing Home Long Stay Fees,,23/03/16,"1,000.33 ",,Social Community Care
460321,DOVES NEST NURSING HOME,Adult Social Care,Director of People,Nursing Home Long Stay Fees,,23/03/16,"1,498.93 ",,Social Community Care
460321,OAKWOOD CARE CENTRE,Adult Social Care,Director of People,Nursing Home Long Stay Fees,,23/03/16,"1,748.83 ",,Social Community Care Supplies & Services
460321,LOUTH CARE LTD,Adult Social Care,Director of People,Nursing Home Long Stay Fees,,23/03/16,"1,820.14 ",,Social Community Care
460321,THE ROYAL ELMS REST HOMES,Adult Social Care,Director of People,Nursing Home Long Stay Fees,,23/03/16,"1,841.58 ",,Social Community Care
460321,ACORN LODGE CARE HOME,Adult Social Care,Director of People,Nursing Home Long Stay Fees,,23/03/16,"1,857.79 ",,Social Community Care Supplies & Services
460321,PENDLEBURY CARE HOMES LTD,Adult Social Care,Director of People,Nursing Home Long Stay Fees,,23/03/16,"1,895.87 ",,Social Community Care Supplies & Services
460321,NAZARETH HOUSE,Adult Social Care,Director of People,Nursing Home Long Stay Fees,,23/03/16,"1,904.29 ",,Social Community Care
460321,WINDMILL CARE HOME,Adult Social Care,Director of People,Nursing Home Long Stay Fees,,23/03/16,"2,040.29 ",,Social Community Care Supplies & Services
460321,FLORENCE LODGE,Adult Social Care,Director of People,Nursing Home Long Stay Fees,,23/03/16,"2,125.71 ",,Social Community Care Supplies & Services
460321,THE ALEXANDRA,Adult Social Care,Director of People,Nursing Home Long Stay Fees,,23/03/16,"2,139.00 ",,Social Community Care Supplies & Services
460321,KINGSWOOD MANOR,Adult Social Care,Director of People,Nursing Home Long Stay Fees,,23/03/16,"2,333.23 ",,Social Community Care
460321,SUNNY BANK PRS LTD,Adult Social Care,Director of People,Nursing Home Long Stay Fees,,23/03/16,"2,548.29 ",,Social Community Care Supplies & Services
460321,BAMFORD GRANGE N/H,Adult Social Care,Director of People,Nursing Home Long Stay Fees,,23/03/16,"2,745.90 ",,Social Community Care Supplies & Services
460321,CLEARWATER CARE,Adult Social Care,Director of People,Nursing Home Long Stay Fees,,23/03/16,"3,395.79 ",,Social Community Care
460321,HILLTOP HALL,Adult Social Care,Director of People,Nursing Home Long Stay Fees,,23/03/16,"3,517.28 ",,Unclassifiable
460321,THE JOSEPH COX CHARITY,Adult Social Care,Director of People,Nursing Home Long Stay Fees,,23/03/16,"4,080.38 ",,Social Community Care Supplies & Services
460321,COMPASS CARE LIMITED,Adult Social Care,Director of People,Nursing Home Long Stay Fees,,23/03/16,"4,315.67 ",,Social Community Care Supplies & Services
460321,ST MARY'S CONTINUING CARE LTD,Adult Social Care,Director of People,Nursing Home Long Stay Fees,,23/03/16,"4,546.50 ",,Social Community Care Supplies & Services
460321,THE DAVID LEWIS CENTRE,Adult Social Care,Director of People,Nursing Home Long Stay Fees,,23/03/16,"4,693.63 ",,Social Community Care
460321,PENNINE CARE CENTRE,Adult Social Care,Director of People,Nursing Home Long Stay Fees,,23/03/16,"5,098.53 ",,Social Community Care Supplies & Services
460321,WESTMINSTER HEALTH CARE LTD,Adult Social Care,Director of People,Nursing Home Long Stay Fees,,23/03/16,"5,385.95 ",,Social Community Care Supplies & Services
460321,BESTCARE LTD,Adult Social Care,Director of People,Nursing Home Long Stay Fees,,23/03/16,"5,508.96 ",,Public Bodies
460321,AMARA CARE LTD,Adult Social Care,Director of People,Nursing Home Long Stay Fees,,23/03/16,"5,712.86 ",,Social Community Care Supplies & Services
460321,DARNTON HOUSE,Adult Social Care,Director of People,Nursing Home Long Stay Fees,,23/03/16,"5,748.29 ",,Social Community Care
460321,WESTY HALL,Adult Social Care,Director of People,Nursing Home Long Stay Fees,,23/03/16,"5,837.00 ",,Social Community Care
460321,UNITED RESPONSE,Adult Social Care,Director of People,Nursing Home Long Stay Fees,,23/03/16,"5,970.86 ",,Social Community Care Supplies & Services
460321,AUDEN HOUSE RESIDENTIAL HOME,Adult Social Care,Director of People,Nursing Home Long Stay Fees,,23/03/16,"6,215.55 ",,Social Community Care Supplies & Services
460321,BROOKVALE,Adult Social Care,Director of People,Nursing Home Long Stay Fees,,23/03/16,"6,661.80 ",,Social Community Care Supplies & Services
460321,POLEBANK HALL RESIDENTIAL CARE HOME LTD,Adult Social Care,Director of People,Nursing Home Long Stay Fees,,23/03/16,"7,101.59 ",,Social Community Care
460321,FIRBANK HOUSE NURSING & RESIDENTIAL CARE HOME,Adult Social Care,Director of People,Nursing Home Long Stay Fees,,23/03/16,"7,415.13 ",,Social Community Care Supplies & Services
460321,MR T N ATAPATTU,Adult Social Care,Director of People,Nursing Home Long Stay Fees,Business Payment,23/03/16,"7,428.58 ",,Social Community Care Supplies & Services
460321,BALMORAL HOMES,Adult Social Care,Director of People,Nursing Home Long Stay Fees,,23/03/16,"7,516.40 ",,Social Community Care Supplies & Services
460321,CHADDERTON TOTAL CAREUNIT LTD,Adult Social Care,Director of People,Nursing Home Long Stay Fees,,23/03/16,"8,786.59 ",,Social Community Care Supplies & Services
460321,HOMELEIGH,Adult Social Care,Director of People,Nursing Home Long Stay Fees,,23/03/16,"9,257.14 ",,Social Community Care Supplies & Services
460321,THE HESLEY GROUP LTD,Adult Social Care,Director of People,Nursing Home Long Stay Fees,,23/03/16,"9,955.87 ",,Social Community Care Supplies & Services
460321,THORNCLIFFE GRANGE NURSING HOME,Adult Social Care,Director of People,Nursing Home Long Stay Fees,,23/03/16,"11,710.98 ",,Social Community Care Supplies & Services
460321,ST LAWRENCES LODGE,Adult Social Care,Director of People,Nursing Home Long Stay Fees,,23/03/16,"12,269.80 ",,Social Community Care Supplies & Services
460321,WOODLANDS RESIDENTIAL CARE HOME,Adult Social Care,Director of People,Nursing Home Long Stay Fees,,23/03/16,"13,794.63 ",,Social Community Care Supplies & Services
460321,PROGRESS CARE & EDUCATION LTD,Adult Social Care,Director of People,Nursing Home Long Stay Fees,,23/03/16,"13,797.21 ",,Social Community Care
460321,VICTORIA NURSING HOME,Adult Social Care,Director of People,Nursing Home Long Stay Fees,,23/03/16,"16,971.43 ",,Social Community Care Supplies & Services
460321,SEYMOUR REST HOME,Adult Social Care,Director of People,Nursing Home Long Stay Fees,,23/03/16,"18,097.39 ",,Social Community Care Supplies & Services
460321,LAUREL BANK RESIDENTIAL CARE HOME LTD,Adult Social Care,Director of People,Nursing Home Long Stay Fees,,23/03/16,"18,124.71 ",,Social Community Care Supplies & Services
460321,FERN BANK,Adult Social Care,Director of People,Nursing Home Long Stay Fees,,23/03/16,"18,172.49 ",,Social Community Care Supplies & Services
460321,CLARKSON HOUSE,Adult Social Care,Director of People,Nursing Home Long Stay Fees,,23/03/16,"18,531.82 ",,Social Community Care Supplies & Services
460321,CHARNLEY HOUSE LIMITED,Adult Social Care,Director of People,Nursing Home Long Stay Fees,,23/03/16,"19,114.98 ",,Social Community Care Supplies & Services
460321,THE VICARAGE RESIDENTIAL CARE HOME,Adult Social Care,Director of People,Nursing Home Long Stay Fees,,23/03/16,"19,142.26 ",,Social Community Care Supplies & Services
460321,HEATHCOTES CARE,Adult Social Care,Director of People,Nursing Home Long Stay Fees,,23/03/16,"19,239.27 ",,Social Community Care
460321,HC ONE OF A KIND - GUIDE LANE,Adult Social Care,Director of People,Nursing Home Long Stay Fees,,23/03/16,"20,301.81 ",,Social Community Care
460321,STALEY HOUSE EPH,Adult Social Care,Director of People,Nursing Home Long Stay Fees,,23/03/16,"20,469.74 ",,Social Community Care Supplies & Services
460321,CAMBIAN LEARNING DISABILITIES MIDLANDS LTD,Adult Social Care,Director of People,Nursing Home Long Stay Fees,,23/03/16,"20,578.87 ",,Social Community Care Supplies & Services
460321,CARELINE LIFESTYLES,Adult Social Care,Director of People,Nursing Home Long Stay Fees,,23/03/16,"21,785.71 ",,Unclassifiable
460321,BOWLACRE HOME,Adult Social Care,Director of People,Nursing Home Long Stay Fees,,23/03/16,"25,140.89 ",,Social Community Care Supplies & Services
460321,ST GEORGE'S NURSING HOME (OLDHAM) LTD,Adult Social Care,Director of People,Nursing Home Long Stay Fees,,23/03/16,"25,846.83 ",,Social Community Care Supplies & Services
460321,BELMONT PARKHILL LTD,Adult Social Care,Director of People,Nursing Home Long Stay Fees,,23/03/16,"26,150.46 ",,Unclassified
460321,DOWNSHAW LODGE CARE HOME,Adult Social Care,Director of People,Nursing Home Long Stay Fees,,23/03/16,"26,666.25 ",,Social Community Care
460321,BOURNE HOUSE RESIDENTIAL HOME,Adult Social Care,Director of People,Nursing Home Long Stay Fees,,23/03/16,"27,551.39 ",,Social Community Care Supplies & Services
460321,EQUALIBRIUM HEALTH CARE,Adult Social Care,Director of People,Nursing Home Long Stay Fees,,23/03/16,"29,683.42 ",,Social Community Care Supplies & Services
460321,HC ONE OF A KIND - KINGS PARK,Adult Social Care,Director of People,Nursing Home Long Stay Fees,,23/03/16,"32,114.32 ",,Social Community Care
460321,FAIRFIELD VIEW CARE LTD,Adult Social Care,Director of People,Nursing Home Long Stay Fees,,23/03/16,"40,891.21 ",,Social Community Care Supplies & Services
460321,MOSS COTTAGE NURSING HOME,Adult Social Care,Director of People,Nursing Home Long Stay Fees,,23/03/16,"49,322.78 ",,Social Community Care Supplies & Services
460321,RIVERSIDE CARE CENTRE,Adult Social Care,Director of People,Nursing Home Long Stay Fees,,23/03/16,"50,310.08 ",,Social Community Care Supplies & Services
460321,BLACKCLIFFE LTD,Adult Social Care,Director of People,Nursing Home Long Stay Fees,,23/03/16,"63,874.85 ",,Social Community Care Supplies & Services
460321,ELDER HOMES GROUP,Adult Social Care,Director of People,Nursing Home Long Stay Fees,,23/03/16,"65,024.79 ",,Social Community Care Supplies & Services
460321,MERIDIAN HEALTHCARE LTD,Adult Social Care,Director of People,Nursing Home Long Stay Fees,,23/03/16,"783,162.44 ",,Social Community Care Supplies & Services
470640,INDUSTRIAL WATER TRAINING SERVICES LTD,Environmental Services,Director of Place,Training Course Costs,,18/02/16,"1,300.00 ",,Human Resources
470642,KEYLINE BUILDERS MERCHANTS LTD,Civil Engineers,Director of Place,Debits Goods Received,,13/01/16,461.00 ,,Building Construction Materials
470642,ZODION LTD,Civil Engineers,Director of Place,Debits Goods Received,,13/01/16,527.00 ,,Highway Equipment & Materials�
470642,INSTARMAC GROUP PLC,Civil Engineers,Director of Place,Debits Goods Received,,13/01/16,856.00 ,,Highway Equipment & Materials�
470642,CASTINGS SERVICES LTD,Civil Engineers,Director of Place,Debits Goods Received,,13/01/16,925.00 ,,Building Construction Materials
470642,ARCO LIMITED,Civil Engineers,Director of Place,Debits Goods Received,,13/01/16,968.10 ,,Clothing
470642,MARWOOD ELECTRICAL CO,Civil Engineers,Director of Place,Debits Goods Received,,13/01/16,985.20 ,,Highway Equipment & Materials�
470642,P F CUSACK LTD,Civil Engineers,Director of Place,Debits Goods Received,,13/01/16,"1,488.64 ",,Horticultural
470642,TARMAC CENTRAL LIMITED,Civil Engineers,Director of Place,Debits Goods Received,,13/01/16,"1,761.38 ",,Highway Equipment & Materials�
470642,HUGH LOGAN ENGINEERING,Civil Engineers,Director of Place,Debits Goods Received,,13/01/16,"2,005.00 ",,Highway Equipment & Materials�
470642,KEYLINE BUILDERS MERCHANTS LTD,Environmental Services,Director of Place,General Materials,,13/01/16,61.27 ,,Building Construction Materials
470642,ARCO LIMITED,Environmental Services,Director of Place,General Materials,,13/01/16,123.48 ,,Clothing
470642,DARLINGTONS GROUP LTD,Environmental Services,Director of Place,General Materials,,13/01/16,590.00 ,,"Works -  Construction, Repair & Maintenance"
470642,KEN TAYLOR SUPPLIES LTD,Environmental Services,Director of Place,General Materials,,13/01/16,895.60 ,,Unclassified
470642,WOLSELEY UK LTD,Environmental Services,Director of Place,General Materials,,13/01/16,898.01 ,,Highway Equipment & Materials�
470642,SOLUTIONS SK LIMITED,Environmental Services,Director of Place,General Materials,,13/01/16,"1,666.43 ",,Facilities & Management Services
470642,TARMAC CENTRAL LIMITED,Environmental Services,Director of Place,General Materials,,13/01/16,"2,958.75 ",,Highway Equipment & Materials�
470642,ZODION LTD,Environmental Services,Director of Place,General Materials,,13/01/16,"3,428.14 ",,Highway Equipment & Materials�
470642,AGGREGATE INDUSTRIES UK LIMITED,Environmental Services,Director of Place,General Materials,,13/01/16,"4,556.53 ",,Highway Equipment & Materials
470642,BENCHMARK BUILDING SUPPLIES LTD,Environmental Services,Director of Place,General Materials,,13/01/16,"49,607.84 ",,Building Construction Materials
470642,L&R ROADLINES LTD,Capital Programme,(blank),Sub-contractor Services,,13/01/16,936.68 ,,Highway Equipment & Materials
470642,BLAST AWAY CLEANING (NORTH WEST) LTD,Environmental Services,Director of Place,Sub-contractor Services,,13/01/16,"3,100.00 ",,Environmental Services
470642,PREMIER WASTE (UK) LTD,Environmental Services,Director of Place,Sub-contractor Services,,13/01/16,"4,050.00 ",,Environmental Services
470642,KENNY BROTHERS,Environmental Services,Director of Place,Sub-contractor Services,,13/01/16,"9,538.71 ",,Non 3rd Party spend  
470642,EAGLE CIVIL ENGINEERING LTD,Environmental Services,Director of Place,Sub-contractor Services,,13/01/16,"14,559.30 ",,Highway Equipment & Materials�
470642,BRAMHALL SURFACING LTD,Environmental Services,Director of Place,Sub-contractor Services,,13/01/16,"40,471.10 ",,"Works -  Construction, Repair & Maintenance"
470642,P CASEY (ENVIRO) LTD,Environmental Services,Director of Place,Tipping Facility Fees,,13/01/16,"14,879.17 ",,Public Bodies
470643,TARMAC CENTRAL LIMITED,Multiple Heads of Service,Multiple Strategic Directorates,CIS Labour Debits,,18/01/16,"2,236.09 ",,Highway Equipment & Materials�
470643,CIVICA UK LTD,Environmental Services,Director of Place,Computer Software,,18/01/16,"2,504.59 ",,Information Communication Technology
470643,TARMAC CENTRAL LIMITED,Civil Engineers,Director of Place,Debits Goods Received,,18/01/16,422.17 ,,Highway Equipment & Materials�
470643,ANSCO SIGNS LIMITED,Civil Engineers,Director of Place,Debits Goods Received,,18/01/16,719.14 ,,Highway Equipment & Materials�
470643,CONSIDERATE CONSTRUCTORS SCHEME,Environmental Services,Director of Place,General Materials,,18/01/16,640.50 ,,Financial Services
470643,TARMAC CENTRAL LIMITED,Environmental Services,Director of Place,General Materials,,18/01/16,"2,260.73 ",,Highway Equipment & Materials�
470643,ANSCO SIGNS LIMITED,Environmental Services,Director of Place,General Materials,,18/01/16,"2,312.75 ",,Highway Equipment & Materials�
470643,BENCHMARK BUILDING SUPPLIES LTD,Environmental Services,Director of Place,General Materials,,18/01/16,"4,264.06 ",,Building Construction Materials
470643,SECURETASK SECURITY LTD,Environmental Services,Director of Place,General Materials,,18/01/16,"5,484.35 ",,Facilities & Management Services
470643,NEW CHARTER BUILD CO LTD,Environmental Services,Director of Place,General Materials,,18/01/16,"19,451.37 ",,"Works -  Construction, Repair & Maintenance"
470643,MARWOOD ELECTRICAL CO,Environmental Services,Director of Place,General Materials,,18/01/16,"94,180.79 ",,Highway Equipment & Materials�
470643,VAISALA LTD,Environmental Services,Director of Place,Professional Consultancy Services,,18/01/16,"16,477.50 ",,Environmental Services
470643,EAGLE CIVIL ENGINEERING LTD,Environmental Services,Director of Place,Sub-contractor Services,,18/01/16,"3,853.90 ",,Highway Equipment & Materials�
470643,NEW CHARTER BUILD CO LTD,Environmental Services,Director of Place,Sub-contractor Services,,18/01/16,"5,796.74 ",,"Works -  Construction, Repair & Maintenance"
470643,GREENSCAPE,Environmental Services,Director of Place,Sub-contractor Services,,18/01/16,"8,235.00 ",,"Works - Construction, Repair & Maintenance"
470643,PG FABRICATIONS,Environmental Services,Director of Place,Sub-contractor Services,,18/01/16,"44,187.50 ",,"Works - Construction, Repair & Maintenance"
470643,BRAMHALL SURFACING LTD,Environmental Services,Director of Place,Sub-contractor Services,,18/01/16,"48,380.33 ",,"Works -  Construction, Repair & Maintenance"
470643,P CASEY (ENVIRO) LTD,Environmental Services,Director of Place,Tipping Facility Fees,,18/01/16,"8,496.93 ",,Public Bodies
470643,VIRIDOR,Environmental Services,Director of Place,Tipping Facility Fees,,18/01/16,"13,458.76 ",,Environmental Services
470644,ELLIOTT GROUP LTD,Environmental Services,Director of Place,Additional Hire,,25/01/16,521.05 ,,"Works -  Construction, Repair & Maintenance"
470644,CASTINGS SERVICES LTD,Civil Engineers,Director of Place,Debits Goods Received,,25/01/16,630.50 ,,Building Construction Materials
470644,BENCHMARK BUILDING SUPPLIES LTD,Civil Engineers,Director of Place,Debits Goods Received,,25/01/16,789.30 ,,Building Construction Materials
470644,PUDSEY DIAMOND ENGINEERING,Civil Engineers,Director of Place,Debits Goods Received,,25/01/16,"1,076.40 ",,Highway Equipment & Materials�
470644,INSTARMAC GROUP PLC,Civil Engineers,Director of Place,Debits Goods Received,,25/01/16,"1,968.80 ",,Highway Equipment & Materials�
470644,TARMAC CENTRAL LIMITED,Civil Engineers,Director of Place,Debits Goods Received,,25/01/16,"6,154.20 ",,Highway Equipment & Materials�
470644,MARWOOD ELECTRICAL CO,Civil Engineers,Director of Place,Debits Goods Received,,25/01/16,"6,324.96 ",,Highway Equipment & Materials�
470644,COMPASS MINERALS UK LTD,Civil Engineers,Director of Place,Debits Goods Received,,25/01/16,"11,023.89 ",,Highway Equipment & Materials
470644,KONSTRUCTA HIRE LIMITED,Environmental Services,Director of Place,General Materials,,25/01/16,"1,132.00 ",,"Works -  Construction, Repair & Maintenance"
470644,LIMB TO LIMB TREE SERVICES LIMITED,Environmental Services,Director of Place,General Materials,,25/01/16,"1,150.00 ",,Horticultural
470644,AGGREGATE INDUSTRIES UK LIMITED,Environmental Services,Director of Place,General Materials,,25/01/16,"1,551.74 ",,Highway Equipment & Materials
470644,STALYBRIDGE READYMIX LTD,Environmental Services,Director of Place,General Materials,,25/01/16,"2,188.00 ",,Highway Equipment & Materials�
470644,INSTARMAC GROUP PLC,Environmental Services,Director of Place,General Materials,,25/01/16,"2,747.36 ",,Highway Equipment & Materials�
470644,MILLENNIUM BUSINESS SYSTEMS LTD,Environmental Services,Director of Place,General Materials,,25/01/16,"5,920.00 ",,Cemetery & Crematorium
470644,PG FABRICATIONS,Environmental Services,Director of Place,General Materials,,25/01/16,"7,268.00 ",,"Works - Construction, Repair & Maintenance"
470644,BLOK N MESH UK LTD,Environmental Services,Director of Place,General Materials,,25/01/16,"9,952.00 ",,Building Construction Materials
470644,BENCHMARK BUILDING SUPPLIES LTD,Environmental Services,Director of Place,General Materials,,25/01/16,"11,282.98 ",,Building Construction Materials
470644,PREMIER WASTE (UK) LTD,Environmental Services,Director of Place,Sub-contractor Services,,25/01/16,525.00 ,,Environmental Services
470644,CBS (NORTH WEST) LTD,Environmental Services,Director of Place,Sub-contractor Services,,25/01/16,571.04 ,,"Works - Construction, Repair & Maintenance"
470644,FAIRWAY LANDSCAPES LTD,Environmental Services,Director of Place,Sub-contractor Services,,25/01/16,810.00 ,,"Works - Construction, Repair & Maintenance"
470644,PG FABRICATIONS,Environmental Services,Director of Place,Sub-contractor Services,,25/01/16,933.00 ,,"Works - Construction, Repair & Maintenance"
470644,MULTIHOG,Environmental Services,Director of Place,Sub-contractor Services,,25/01/16,"1,567.00 ",,Unclassifiable
470644,EAGLE CIVIL ENGINEERING LTD,Environmental Services,Director of Place,Sub-contractor Services,,25/01/16,"5,400.58 ",,Highway Equipment & Materials�
470644,DIAMOND DECORATORS LTD,Environmental Services,Director of Place,Sub-contractor Services,,25/01/16,"18,488.00 ",,Building Construction Materials
470644,P CASEY (ENVIRO) LTD,Environmental Services,Director of Place,Tipping Facility Fees,,25/01/16,"1,734.19 ",,Public Bodies
470644,INDUSTRIAL WATER TRAINING SERVICES LTD,Environmental Services,Director of Place,Training Course Costs,,18/02/16,900.00 ,,Human Resources
470644,SYNERGIE TRAINING LTD,Environmental Services,Director of Place,Training Course Costs,,25/01/16,"1,725.00 ",,Human Resources
470645,CIVICA UK LTD,Environmental Services,Director of Place,Computer Software,,01/02/16,"2,339.28 ",,Information Communication Technology
470645,MARWOOD ELECTRICAL CO,Civil Engineers,Director of Place,Debits Goods Received,,01/02/16,537.12 ,,Highway Equipment & Materials�
470645,INSTARMAC GROUP PLC,Civil Engineers,Director of Place,Debits Goods Received,,01/02/16,"1,222.00 ",,Highway Equipment & Materials�
470645,TARMAC CENTRAL LIMITED,Civil Engineers,Director of Place,Debits Goods Received,,01/02/16,"4,660.97 ",,Highway Equipment & Materials�
470645,EAGLE CIVIL ENGINEERING LTD,Environmental Services,Director of Place,General Materials,,01/02/16,445.01 ,,Highway Equipment & Materials�
470645,WOLSELEY UK LTD,Environmental Services,Director of Place,General Materials,,01/02/16,756.88 ,,Highway Equipment & Materials�
470645,KONSTRUCTA HIRE LIMITED,Environmental Services,Director of Place,General Materials,,01/02/16,"1,032.00 ",,"Works -  Construction, Repair & Maintenance"
470645,BENCHMARK BUILDING SUPPLIES LTD,Environmental Services,Director of Place,General Materials,,01/02/16,"1,884.88 ",,Building Construction Materials
470645,MARWOOD ELECTRICAL CO,Environmental Services,Director of Place,General Materials,,01/02/16,"1,888.45 ",,Highway Equipment & Materials�
470645,AGGREGATE INDUSTRIES UK LIMITED,Environmental Services,Director of Place,General Materials,,01/02/16,"2,966.96 ",,Highway Equipment & Materials
470645,TARMAC CENTRAL LIMITED,Environmental Services,Director of Place,General Materials,,01/02/16,"3,324.03 ",,Highway Equipment & Materials�
470645,REACTEC LIMITED,Environmental Services,Director of Place,General Materials,,01/02/16,"3,456.00 ",,"Works -  Construction, Repair & Maintenance"
470645,PG FABRICATIONS,Environmental Services,Director of Place,General Materials,,01/02/16,"62,092.00 ",,"Works - Construction, Repair & Maintenance"
470645,BRAMHALL SURFACING LTD,Environmental Services,Director of Place,Sub-contractor Services,,01/02/16,"1,724.30 ",,"Works -  Construction, Repair & Maintenance"
470645,W & B FORMWORK CO 1990,Environmental Services,Director of Place,Sub-contractor Services,,04/02/16,"2,770.00 ",,"Works - Construction, Repair & Maintenance"
470645,NEW CHARTER BUILD CO LTD,Environmental Services,Director of Place,Sub-contractor Services,,01/02/16,"3,690.81 ",,"Works -  Construction, Repair & Maintenance"
470645,CBS (NORTH WEST) LTD,Environmental Services,Director of Place,Sub-contractor Services,,01/02/16,"6,503.72 ",,"Works - Construction, Repair & Maintenance"
470645,EAGLE CIVIL ENGINEERING LTD,Environmental Services,Director of Place,Sub-contractor Services,,01/02/16,"11,503.80 ",,Highway Equipment & Materials�
470645,FAILSWORTH TRAINING SERVICES LTD,Environmental Services,Director of Place,Training Course Costs,,01/02/16,615.00 ,,Human Resources
470646,CHALLENGER SITE SERVICES,Environmental Services,Director of Place,Additional Hire,,08/02/16,200.00 ,,Facilities & Management Services
470646,MARWOOD ELECTRICAL CO,Civil Engineers,Director of Place,Debits Goods Received,,08/02/16,281.76 ,,Highway Equipment & Materials�
470646,KEN TAYLOR SUPPLIES LTD,Civil Engineers,Director of Place,Debits Goods Received,,08/02/16,372.50 ,,Unclassified
470646,BRIDGE ELECTRICALSUPPLIES LTD,Civil Engineers,Director of Place,Debits Goods Received,,10/02/16,605.85 ,,Building Construction Materials
470646,TARMAC CENTRAL LIMITED,Civil Engineers,Director of Place,Debits Goods Received,,08/02/16,"2,241.05 ",,Highway Equipment & Materials�
470646,KEN TAYLOR SUPPLIES LTD,Environmental Services,Director of Place,General Materials,,08/02/16,147.30 ,,Unclassified
470646,ANSCO SIGNS LIMITED,Engineers Client,Director of Place,General Materials,,08/02/16,158.50 ,,Highway Equipment & Materials�
470646,CHALLENGER SITE SERVICES,Environmental Services,Director of Place,General Materials,,08/02/16,300.00 ,,Facilities & Management Services
470646,ANSCO SIGNS LIMITED,Environmental Services,Director of Place,General Materials,,08/02/16,507.18 ,,Highway Equipment & Materials�
470646,MULTIHOG,Environmental Services,Director of Place,General Materials,,08/02/16,543.50 ,,Unclassifiable
470646,BRIDGE ELECTRICALSUPPLIES LTD,Environmental Services,Director of Place,General Materials,,10/02/16,888.00 ,,Building Construction Materials
470646,AGGREGATE INDUSTRIES UK LIMITED,Environmental Services,Director of Place,General Materials,,08/02/16,"2,778.96 ",,Highway Equipment & Materials
470646,TARMAC CENTRAL LIMITED,Environmental Services,Director of Place,General Materials,,08/02/16,"4,092.48 ",,Highway Equipment & Materials�
470646,MARWOOD ELECTRICAL CO,Environmental Services,Director of Place,General Materials,,08/02/16,"5,940.19 ",,Highway Equipment & Materials�
470646,GLOSTA ENGINEERING,Environmental Services,Director of Place,General Materials,,08/02/16,"6,000.00 ",,"Works -  Construction, Repair & Maintenance"
470646,CBS (NORTH WEST) LTD,Environmental Services,Director of Place,Sub-contractor Services,,08/02/16,"1,101.66 ",,"Works - Construction, Repair & Maintenance"
470646,KENNY BROTHERS,Environmental Services,Director of Place,Sub-contractor Services,,08/02/16,"10,690.64 ",,Non 3rd Party spend  
470646,GARCIA AND SYKES LTD,Environmental Services,Director of Place,Sub-contractor Services,,08/02/16,"13,010.00 ",,Building Construction
470646,BRAMHALL SURFACING LTD,Environmental Services,Director of Place,Sub-contractor Services,,08/02/16,"18,368.45 ",,"Works -  Construction, Repair & Maintenance"
470646,EAGLE CIVIL ENGINEERING LTD,Environmental Services,Director of Place,Sub-contractor Services,,08/02/16,"26,010.11 ",,Highway Equipment & Materials�
470647,KONSTRUCTA HIRE LIMITED,Environmental Services,Director of Place,Additional Hire,,15/02/16,100.00 ,,"Works -  Construction, Repair & Maintenance"
470647,ZODION LTD,Civil Engineers,Director of Place,Debits Goods Received,,15/02/16,790.50 ,,Highway Equipment & Materials�
470647,BENCHMARK BUILDING SUPPLIES LTD,Civil Engineers,Director of Place,Debits Goods Received,,15/02/16,"1,135.10 ",,Building Construction Materials
470647,MARWOOD ELECTRICAL CO,Civil Engineers,Director of Place,Debits Goods Received,,15/02/16,"1,290.24 ",,Highway Equipment & Materials�
470647,TARMAC CENTRAL LIMITED,Civil Engineers,Director of Place,Debits Goods Received,,15/02/16,"2,749.17 ",,Highway Equipment & Materials�
470647,COLAS LTD,Environmental Services,Director of Place,General Materials,,15/02/16,513.00 ,,Highway Equipment & Materials�
470647,AGGREGATE INDUSTRIES UK LIMITED,Environmental Services,Director of Place,General Materials,,15/02/16,586.46 ,,Highway Equipment & Materials
470647,SELC IRELAND LTD,Environmental Services,Director of Place,General Materials,,15/02/16,"1,178.00 ",,Highway Equipment & Materials�
470647,BENCHMARK BUILDING SUPPLIES LTD,Environmental Services,Director of Place,General Materials,,15/02/16,"2,107.32 ",,Building Construction Materials
470647,KONSTRUCTA HIRE LIMITED,Environmental Services,Director of Place,General Materials,,15/02/16,"2,291.00 ",,"Works -  Construction, Repair & Maintenance"
470647,TARMAC CENTRAL LIMITED,Environmental Services,Director of Place,General Materials,,15/02/16,"6,955.02 ",,Highway Equipment & Materials�
470647,CBS (NORTH WEST) LTD,Environmental Services,Director of Place,Sub-contractor Services,,15/02/16,647.00 ,,"Works - Construction, Repair & Maintenance"
470647,GENERAL UTILITIES NORTHWEST LTD,Environmental Services,Director of Place,Sub-contractor Services,,15/02/16,650.00 ,,Environmental Services
470647,PREMIER TRAFFIC MANAGEMENT LTD,Environmental Services,Director of Place,Sub-contractor Services,,15/02/16,750.00 ,,Traffic
470647,DECORWRIGHT LIMITED,Environmental Services,Director of Place,Sub-contractor Services,,15/02/16,"1,394.00 ",,"Works - Construction, Repair & Maintenance"
470647,EAGLE CIVIL ENGINEERING LTD,Environmental Services,Director of Place,Sub-contractor Services,,15/02/16,"1,444.80 ",,Highway Equipment & Materials�
470647,PG FABRICATIONS,Environmental Services,Director of Place,Sub-contractor Services,,15/02/16,"1,686.00 ",,"Works - Construction, Repair & Maintenance"
470647,SECURETASK SECURITY LTD,Environmental Services,Director of Place,Sub-contractor Services,,15/02/16,"5,051.71 ",,Facilities & Management Services
470647,VIRIDOR,Environmental Services,Director of Place,Tipping Facility Fees,,15/02/16,"36,002.63 ",,Environmental Services
470648,SMITH BROS CAER CONAN WHOLESALE LTD,Civil Engineers,Director of Place,Debits Goods Received,,22/02/16,513.80 ,,Building Construction Materials
470648,COLAS LTD,Civil Engineers,Director of Place,Debits Goods Received,,22/02/16,621.60 ,,Highway Equipment & Materials�
470648,CASTINGS SERVICES LTD,Environmental Services,Director of Place,General Materials,,22/02/16,"1,668.00 ",,Building Construction Materials
470648,TARMAC CENTRAL LIMITED,Environmental Services,Director of Place,General Materials,,22/02/16,"3,365.77 ",,Highway Equipment & Materials�
470648,AGGREGATE INDUSTRIES UK LIMITED,Environmental Services,Director of Place,General Materials,,22/02/16,"3,699.97 ",,Highway Equipment & Materials
470648,EAGLE CIVIL ENGINEERING LTD,Environmental Services,Director of Place,General Materials,,22/02/16,"15,649.17 ",,Highway Equipment & Materials�
470648,CBS (NORTH WEST) LTD,Environmental Services,Director of Place,Sub-contractor Services,,22/02/16,"1,650.05 ",,"Works - Construction, Repair & Maintenance"
470648,PREMIER WASTE (UK) LTD,Environmental Services,Director of Place,Sub-contractor Services,,22/02/16,"1,800.00 ",,Environmental Services
470648,DECORWRIGHT LIMITED,Environmental Services,Director of Place,Sub-contractor Services,,22/02/16,"2,860.00 ",,"Works - Construction, Repair & Maintenance"
470648,BLAST AWAY CLEANING (NORTH WEST) LTD,Environmental Services,Director of Place,Sub-contractor Services,,22/02/16,"3,100.00 ",,Environmental Services
470648,EAGLE CIVIL ENGINEERING LTD,Environmental Services,Director of Place,Sub-contractor Services,,22/02/16,"4,320.62 ",,Highway Equipment & Materials�
470648,HMS DECORATIVE SURFACING LTD,Environmental Services,Director of Place,Sub-contractor Services,,22/02/16,"9,732.30 ",,Building Construction Materials
470648,JOHN SMITH GROUNDWORK,Environmental Services,Director of Place,Sub-contractor Services,,22/02/16,"12,562.75 ",,"Works -  Construction, Repair & Maintenance"
470648,DIAMOND DECORATORS LTD,Environmental Services,Director of Place,Sub-contractor Services,,22/02/16,"25,964.25 ",,Building Construction Materials
470648,HEALTH AND SAFETY LABORATORY,Environmental Services,Director of Place,Training Course Costs,,24/02/16,"4,925.00 ",,Unclassified
470649,BENCHMARK BUILDING SUPPLIES LTD,Civil Engineers,Director of Place,Debits Goods Received,,29/02/16,358.50 ,,Building Construction Materials
470649,MARWOOD ELECTRICAL CO,Civil Engineers,Director of Place,Debits Goods Received,,29/02/16,671.40 ,,Highway Equipment & Materials�
470649,CITY ELECTRICAL FACTORS LTD,Civil Engineers,Director of Place,Debits Goods Received,,29/02/16,714.50 ,,Building Construction Materials
470649,TARMAC CENTRAL LIMITED,Civil Engineers,Director of Place,Debits Goods Received,,29/02/16,"2,215.80 ",,Highway Equipment & Materials�
470649,CBS (NORTH WEST) LTD,Environmental Services,Director of Place,General Materials,,29/02/16,59.15 ,,"Works - Construction, Repair & Maintenance"
470649,MARCHINGTON STONE,Environmental Services,Director of Place,General Materials,,29/02/16,502.71 ,,Building Construction Materials
470649,WOLSELEY UK LTD,Environmental Services,Director of Place,General Materials,,29/02/16,530.00 ,,Highway Equipment & Materials�
470649,MASTERNAUT (UK)LTD,Environmental Services,Director of Place,General Materials,,29/02/16,796.00 ,,Information Communication Technology
470649,KONSTRUCTA HIRE LIMITED,Environmental Services,Director of Place,General Materials,,29/02/16,"1,032.00 ",,"Works -  Construction, Repair & Maintenance"
470649,BROXAP LIMITED,Environmental Services,Director of Place,General Materials,,29/02/16,"1,050.00 ",,Highway Equipment & Materials�
470649,STALYBRIDGE READYMIX LTD,Environmental Services,Director of Place,General Materials,,29/02/16,"1,906.00 ",,Highway Equipment & Materials�
470649,BENCHMARK BUILDING SUPPLIES LTD,Environmental Services,Director of Place,General Materials,,29/02/16,"2,074.88 ",,Building Construction Materials
470649,AGGREGATE INDUSTRIES UK LIMITED,Environmental Services,Director of Place,General Materials,,29/02/16,"3,539.30 ",,Highway Equipment & Materials
470649,EAGLE CIVIL ENGINEERING LTD,Environmental Services,Director of Place,General Materials,,29/02/16,"4,343.92 ",,Highway Equipment & Materials�
470649,TARMAC CENTRAL LIMITED,Environmental Services,Director of Place,General Materials,,29/02/16,"8,275.32 ",,Highway Equipment & Materials�
470649,CBS (NORTH WEST) LTD,Environmental Services,Director of Place,Sub-contractor Services,,29/02/16,656.77 ,,"Works - Construction, Repair & Maintenance"
470649,STAR AUTOS LTD,Environmental Services,Director of Place,Sub-contractor Services,,29/02/16,700.00 ,,Transport
470649,LOCATION ONE LTD,Environmental Services,Director of Place,Sub-contractor Services,,29/02/16,795.00 ,,Environmental Services
470649,BRAMHALL SURFACING LTD,Environmental Services,Director of Place,Sub-contractor Services,,29/02/16,"1,475.10 ",,"Works -  Construction, Repair & Maintenance"
470649,EAGLE CIVIL ENGINEERING LTD,Environmental Services,Director of Place,Sub-contractor Services,,29/02/16,"22,674.83 ",,Highway Equipment & Materials�
470650,BENCHMARK BUILDING SUPPLIES LTD,Civil Engineers,Director of Place,Debits Goods Received,,07/03/16,567.30 ,,Building Construction Materials
470650,TARMAC CENTRAL LIMITED,Civil Engineers,Director of Place,Debits Goods Received,,07/03/16,"2,198.94 ",,Highway Equipment & Materials�
470650,KENNY BROTHERS,Environmental Services,Director of Place,General Materials,,07/03/16,262.50 ,,Non 3rd Party spend  
470650,WOLSELEY UK LTD,Environmental Services,Director of Place,General Materials,,07/03/16,601.00 ,,Highway Equipment & Materials�
470650,EAGLE CIVIL ENGINEERING LTD,Environmental Services,Director of Place,General Materials,,07/03/16,773.00 ,,Highway Equipment & Materials�
470650,AMBERON LTD,Environmental Services,Director of Place,General Materials,,07/03/16,786.00 ,,Highway Equipment & Materials
470650,TARMAC CENTRAL LIMITED,Environmental Services,Director of Place,General Materials,,07/03/16,"1,175.24 ",,Highway Equipment & Materials�
470650,KONSTRUCTA HIRE LIMITED,Environmental Services,Director of Place,General Materials,,07/03/16,"1,256.00 ",,"Works -  Construction, Repair & Maintenance"
470650,BENCHMARK BUILDING SUPPLIES LTD,Environmental Services,Director of Place,General Materials,,07/03/16,"1,660.78 ",,Building Construction Materials
470650,ZEBRITE LTD,Environmental Services,Director of Place,General Materials,,07/03/16,"1,750.00 ",,Highway Equipment & Materials�
470650,AGGREGATE INDUSTRIES UK LIMITED,Environmental Services,Director of Place,General Materials,,07/03/16,"4,043.69 ",,Highway Equipment & Materials
470650,MET OFFICE,Environmental Services,Director of Place,General Materials,,07/03/16,"4,052.00 ",,Consultancy
470650,SECURETASK SECURITY LTD,Environmental Services,Director of Place,General Materials,,07/03/16,"4,339.41 ",,Facilities & Management Services
470650,MARWOOD ELECTRICAL CO,Capital Programme,(blank),Street Lighting Works,,07/03/16,"21,551.04 ",,Highway Equipment & Materials�
470650,ELECTRICITY NORTH WEST LTD,Environmental Services,Director of Place,Sub-contractor Services,,07/03/16,"1,299.91 ",,Utilities
470650,KENNY BROTHERS,Environmental Services,Director of Place,Sub-contractor Services,,07/03/16,"3,111.23 ",,Non 3rd Party spend  
470650,FAIRWAY LANDSCAPES LTD,Environmental Services,Director of Place,Sub-contractor Services,,07/03/16,"8,881.00 ",,"Works - Construction, Repair & Maintenance"
470650,HMS DECORATIVE SURFACING LTD,Environmental Services,Director of Place,Sub-contractor Services,,07/03/16,"11,887.35 ",,Building Construction Materials
470650,DIAMOND DECORATORS LTD,Environmental Services,Director of Place,Sub-contractor Services,,07/03/16,"25,320.00 ",,Building Construction Materials
470650,BRAMHALL SURFACING LTD,Environmental Services,Director of Place,Sub-contractor Services,,07/03/16,"31,269.66 ",,"Works -  Construction, Repair & Maintenance"
470650,CONSIDERATE CONSTRUCTORS SCHEME,Environmental Services,Director of Place,Training Course Costs,,07/03/16,763.00 ,,Financial Services
470650,INDUSTRIAL WATER TRAINING SERVICES LTD,Environmental Services,Director of Place,Training Course Costs,,07/03/16,"1,790.00 ",,Human Resources
470651,CHALLENGER SITE SERVICES,Environmental Services,Director of Place,Additional Hire,,14/03/16,200.00 ,,Facilities & Management Services
470651,TAMESIDE SPORTS TRUST,Environmental Services,Director of Place,Contributions,,14/03/16,"20,560.00 ",,Leisure Services
470651,KEYLINE BUILDERS MERCHANTS LTD,Civil Engineers,Director of Place,Debits Goods Received,,14/03/16,113.30 ,,Building Construction Materials
470651,ARCO LIMITED,Civil Engineers,Director of Place,Debits Goods Received,,14/03/16,463.11 ,,Clothing
470651,REDDIPAK LIMITED,Civil Engineers,Director of Place,Debits Goods Received,,14/03/16,655.00 ,,Unclassifiable
470651,INSTARMAC GROUP PLC,Civil Engineers,Director of Place,Debits Goods Received,,14/03/16,856.00 ,,Highway Equipment & Materials�
470651,HUGH LOGAN ENGINEERING,Civil Engineers,Director of Place,Debits Goods Received,,14/03/16,"1,556.50 ",,Highway Equipment & Materials�
470651,TARMAC CENTRAL LIMITED,Civil Engineers,Director of Place,Debits Goods Received,,14/03/16,"3,777.32 ",,Highway Equipment & Materials�
470651,LOCATION ONE LTD,Asset & Investment Partnership Management,Director of Place,External Hired Plant,,14/03/16,"8,669.68 ",,Environmental Services
470651,PG FABRICATIONS,Environmental Services,Director of Place,General Materials,,14/03/16,68.00 ,,"Works - Construction, Repair & Maintenance"
470651,REDDIPAK LIMITED,Environmental Services,Director of Place,General Materials,,14/03/16,136.00 ,,Unclassifiable
470651,ARCO LIMITED,Environmental Services,Director of Place,General Materials,,14/03/16,145.09 ,,Clothing
470651,SOLUTIONS SK LIMITED,Environmental Services,Director of Place,General Materials,,14/03/16,155.65 ,,Facilities & Management Services
470651,CHALLENGER SITE SERVICES,Environmental Services,Director of Place,General Materials,,14/03/16,325.00 ,,Facilities & Management Services
470651,KEYLINE BUILDERS MERCHANTS LTD,Environmental Services,Director of Place,General Materials,,14/03/16,493.37 ,,Building Construction Materials
470651,ANSCO SIGNS LIMITED,Capital Programme,(blank),General Materials,,14/03/16,537.00 ,,Highway Equipment & Materials�
470651,NATIONAL GRID GAS PLC,Environmental Services,Director of Place,General Materials,,14/03/16,633.00 ,,Utilities
470651,LIQUILINE LTD,Environmental Services,Director of Place,General Materials,,17/03/16,681.00 ,,Utilities
470651,TARMAC CENTRAL LIMITED,Environmental Services,Director of Place,General Materials,,14/03/16,810.00 ,,Highway Equipment & Materials�
470651,SIGNATURE LIMITED,Environmental Services,Director of Place,General Materials,,14/03/16,824.00 ,,Highway Equipment & Materials�
470651,WOLSELEY UK LTD,Environmental Services,Director of Place,General Materials,,14/03/16,946.85 ,,Highway Equipment & Materials�
470651,P F CUSACK LTD,Environmental Services,Director of Place,General Materials,,14/03/16,"1,037.50 ",,Horticultural
470651,KEN TAYLOR SUPPLIES LTD,Environmental Services,Director of Place,General Materials,,14/03/16,"1,134.60 ",,Unclassified
470651,SOLUTIONS SK LIMITED,Engineers Client,Director of Place,General Materials,,14/03/16,"1,136.25 ",,Facilities & Management Services
470651,STAR AUTOS LTD,Environmental Services,Director of Place,General Materials,,14/03/16,"1,500.00 ",,Transport
470651,ROSEHILL POLYMERS,Environmental Services,Director of Place,General Materials,,14/03/16,"2,660.00 ",,Public Bodies
470651,AGGREGATE INDUSTRIES UK LIMITED,Environmental Services,Director of Place,General Materials,,14/03/16,"5,587.24 ",,Highway Equipment & Materials
470651,P J SPENCER LTD,Environmental Services,Director of Place,General Materials,,14/03/16,"18,659.74 ",,"Works -  Construction, Repair & Maintenance"
470651,VIRIDOR,Environmental Services,Director of Place,General Materials,,14/03/16,"36,942.99 ",,Environmental Services
470651,MARWOOD ELECTRICAL CO,Capital Programme,(blank),Street Lighting Works,,14/03/16,"82,038.26 ",,Highway Equipment & Materials�
470651,NATIONAL GRID GAS PLC,Environmental Services,Director of Place,Sub-contractor Services,,14/03/16,607.68 ,,Utilities
470651,PREMIER WASTE (UK) LTD,Environmental Services,Director of Place,Sub-contractor Services,,14/03/16,"2,265.00 ",,Environmental Services
470651,PG FABRICATIONS,Environmental Services,Director of Place,Sub-contractor Services,,14/03/16,"4,355.00 ",,"Works - Construction, Repair & Maintenance"
470651,EAGLE CIVIL ENGINEERING LTD,Environmental Services,Director of Place,Sub-contractor Services,,14/03/16,"4,458.45 ",,Highway Equipment & Materials�
470651,BRAMHALL SURFACING LTD,Environmental Services,Director of Place,Sub-contractor Services,,14/03/16,"20,777.55 ",,"Works -  Construction, Repair & Maintenance"
470651,SOLUTIONS SK LIMITED,Environmental Services,Director of Place,Tipping Facility Fees,,14/03/16,"1,120.00 ",,Facilities & Management Services
470652,INNOVATIVE GLOBAL PRODUCTS LTD,Civil Engineers,Director of Place,Debits Goods Received,,21/03/16,"2,808.00 ",,Highway Equipment & Materials�
470652,ZODION LTD,Environmental Services,Director of Place,General Materials,,21/03/16,"1,557.93 ",,Highway Equipment & Materials�
470652,ABBEY INDUSTRIAL SOLUTIONS LTD,Environmental Services,Director of Place,General Materials,,21/03/16,"1,934.01 ",,"Works -  Construction, Repair & Maintenance"
470652,REACTEC LIMITED,Environmental Services,Director of Place,General Materials,,21/03/16,"3,119.63 ",,"Works -  Construction, Repair & Maintenance"
470652,BENCHMARK BUILDING SUPPLIES LTD,Environmental Services,Director of Place,General Materials,,21/03/16,"4,711.50 ",,Building Construction Materials
470652,AGGREGATE INDUSTRIES UK LIMITED,Environmental Services,Director of Place,General Materials,,21/03/16,"4,911.12 ",,Highway Equipment & Materials
470652,MARWOOD ELECTRICAL CO,Capital Programme,(blank),General Materials,,21/03/16,"5,971.80 ",,Highway Equipment & Materials�
470652,P P O'CONNOR,Environmental Services,Director of Place,General Materials,Business Payment,21/03/16,"7,117.41 ",,Public Bodies
470652,INTEGRA BUILDINGS LTD,Environmental Services,Director of Place,General Materials,,21/03/16,"7,644.50 ",,"Works - Construction, Repair & Maintenance"
470652,URBIS SCHREDER,Environmental Services,Director of Place,General Materials,,21/03/16,"9,964.00 ",,Highway Equipment & Materials�
470652,EAGLE CIVIL ENGINEERING LTD,Environmental Services,Director of Place,General Materials,,21/03/16,"18,206.87 ",,Highway Equipment & Materials�
470652,MARWOOD ELECTRICAL CO,Capital Programme,(blank),Street Lighting Works,,21/03/16,"132,428.66 ",,Highway Equipment & Materials�
470652,NETCARE EUROPE LTD,Environmental Services,Director of Place,Sub-contractor Services,,21/03/16,698.00 ,,Unclassified
470652,CLEARVIEW TRAFFIC GROUP LTD,Environmental Services,Director of Place,Sub-contractor Services,,21/03/16,"4,269.25 ",,"Works - Construction, Repair & Maintenance"
470652,BLAST AWAY CLEANING (NORTH WEST) LTD,Environmental Services,Director of Place,Sub-contractor Services,,21/03/16,"5,025.00 ",,Environmental Services
470652,DIAMOND DECORATORS LTD,Environmental Services,Director of Place,Sub-contractor Services,,21/03/16,"11,846.50 ",,Building Construction Materials
470652,BRAMHALL SURFACING LTD,Environmental Services,Director of Place,Sub-contractor Services,,21/03/16,"13,120.00 ",,"Works -  Construction, Repair & Maintenance"
470652,ACORN LIGHTING SERVICES LTD,Environmental Services,Director of Place,Sub-contractor Services,,21/03/16,"17,119.00 ",,Highway Equipment & Materials�
470652,ALTITUDE SERVICES,Environmental Services,Director of Place,Sub-contractor Services,,21/03/16,"19,775.13 ",,Utilities
470652,EAGLE CIVIL ENGINEERING LTD,Environmental Services,Director of Place,Sub-contractor Services,,21/03/16,"22,138.91 ",,Highway Equipment & Materials�
470652,FAIRWAY LANDSCAPES LTD,Environmental Services,Director of Place,Sub-contractor Services,,21/03/16,"42,936.77 ",,"Works - Construction, Repair & Maintenance"
470652,HMS DECORATIVE SURFACING LTD,Environmental Services,Director of Place,Sub-contractor Services,,21/03/16,"58,878.14 ",,Building Construction Materials
470652,(BRINTEX EVENTS) HEMMING GROUP LTD,Environmental Services,Director of Place,Training Course Costs,,21/03/16,996.00 ,,Leisure Services
470652,INDUSTRIAL WATER TRAINING SERVICES LTD,Environmental Services,Director of Place,Training Course Costs,,21/03/16,"1,550.00 ",,Human Resources
470652,APSE,Environmental Services,Director of Place,Training Course Costs,,21/03/16,"2,127.34 ",,Unclassified
470653,NEW CHARTER BUILD CO LTD,Asset Management and Investment Partnership Management,Director of Place,Building Repairs,,30/03/16,924.09 ,,"Works -  Construction, Repair & Maintenance"
470653,NEW CHARTER BUILD CO LTD,Asset & Investment Partnership Management,Director of Place,Building Repairs,,30/03/16,"10,147.82 ",,"Works -  Construction, Repair & Maintenance"
470653,ARCO LIMITED,Civil Engineers,Director of Place,Debits Goods Received,,30/03/16,332.77 ,,Clothing
470653,BENCHMARK BUILDING SUPPLIES LTD,Civil Engineers,Director of Place,Debits Goods Received,,30/03/16,"1,219.55 ",,Building Construction Materials
470653,P F CUSACK LTD,Civil Engineers,Director of Place,Debits Goods Received,,30/03/16,"2,532.80 ",,Horticultural
470653,ARCO LIMITED,Environmental Services,Director of Place,General Materials,,30/03/16,370.49 ,,Clothing
470653,KELTIC LTD,Environmental Services,Director of Place,General Materials,,30/03/16,613.65 ,,Clothing
470653,BENCHMARK BUILDING SUPPLIES LTD,Environmental Services,Director of Place,General Materials,,30/03/16,912.90 ,,Building Construction Materials
470653,KONSTRUCTA HIRE LIMITED,Environmental Services,Director of Place,General Materials,,30/03/16,"1,032.00 ",,"Works -  Construction, Repair & Maintenance"
470653,ABBEY INDUSTRIAL SOLUTIONS LTD,Environmental Services,Director of Place,General Materials,,30/03/16,"5,187.10 ",,"Works -  Construction, Repair & Maintenance"
470653,AGGREGATE INDUSTRIES UK LIMITED,Environmental Services,Director of Place,General Materials,,30/03/16,"5,238.45 ",,Highway Equipment & Materials
470653,MARWOOD ELECTRICAL CO,Capital Programme,(blank),Street Lighting Works,,30/03/16,"50,136.10 ",,Highway Equipment & Materials�
470653,CBS (NORTH WEST) LTD,Environmental Services,Director of Place,Sub-contractor Services,,30/03/16,723.27 ,,"Works - Construction, Repair & Maintenance"
470653,L&R ROADLINES LTD,Environmental Services,Director of Place,Sub-contractor Services,,30/03/16,777.59 ,,Highway Equipment & Materials
470653,S.FELL PAVING PROJECTS,Environmental Services,Director of Place,Sub-contractor Services,,30/03/16,"1,320.00 ",,Environmental Services
470653,FABRIFEN LTD,Environmental Services,Director of Place,Sub-contractor Services,,30/03/16,"9,274.00 ",,"Works -  Construction, Repair & Maintenance"
470653,JOHN SMITH GROUNDWORK,Environmental Services,Director of Place,Sub-contractor Services,,30/03/16,"18,120.72 ",,"Works -  Construction, Repair & Maintenance"
470653,EAGLE CIVIL ENGINEERING LTD,Environmental Services,Director of Place,Sub-contractor Services,,30/03/16,"45,312.27 ",,Highway Equipment & Materials�
3250541,CP DAVISON & SONS,Environmental Services,Director of Place,Additional Hire,,07/01/16,800.00 ,,Unclassified
3250541,ARNOLD PLANT HIRE LTD,Environmental Services,Director of Place,Additional Hire,,07/01/16,"2,001.00 ",,Unclassified
3250541,RIVERSIDE TRUCK RENTAL LIMITED,Environmental Services,Director of Place,Additional Hire,,07/01/16,"2,625.00 ",,Vehicles
3250541,PEAK PARTS,Environmental Services,Director of Place,Consumable Materials,,07/01/16,624.98 ,,Vehicles
3250541,LEX AUTOLEASE,Environmental Services,Director of Place,Core Hire,,07/01/16,728.75 ,,Unclassifiable
3250541,DAWSON RENTALS BUS AND COACH LTD,Environmental Services,Director of Place,Core Hire,,07/01/16,"1,499.11 ",,Transport
3250541,SHB HIRE LTD,Environmental Services,Director of Place,Core Hire,,07/01/16,"10,313.31 ",,Vehicles
3250541,A & J MOTORSPARES,Transport,Director of Place,Debits Goods Received,,07/01/16,21.20 ,,Vehicles
3250541,AUTO BATTERY SERVICE LTD,Transport,Director of Place,Debits Goods Received,,07/01/16,91.82 ,,Vehicles
3250541,TERBERG MATEC UK LTD,Transport,Director of Place,Debits Goods Received,,07/01/16,618.88 ,,Environmental Services
3250541,FREIGHT TRANSPORT ASSOCIATION,Environmental Services,Director of Place,General Equipment Purchase,,07/01/16,204.00 ,,Vehicles
3250541,MASTERNAUT (UK)LTD,Environmental Services,Director of Place,General Equipment Repair & Maintenance,,07/01/16,723.20 ,,Information Communication Technology
3250541,TERBERG MATEC UK LTD,Environmental Services,Director of Place,General Materials,,07/01/16,330.69 ,,Environmental Services
3250541,CP DAVISON & SONS,Environmental Services,Director of Place,General Materials,,07/01/16,350.00 ,,Unclassified
3250541,F & G COMMERCIALS (OLDHAM) LIMITED,Environmental Services,Director of Place,General Materials,,07/01/16,599.14 ,,Vehicles
3250541,A & J MOTORSPARES,Environmental Services,Director of Place,General Materials,,07/01/16,677.17 ,,Vehicles
3250541,GEESINK NORBA LTD,Environmental Services,Director of Place,General Materials,,07/01/16,739.52 ,,Environmental Services
3250541,HOSEMASTER NORTHWEST,Environmental Services,Director of Place,General Materials,,07/01/16,919.56 ,,Vehicles
3250541,ECON ENGINEERING LTD,Environmental Services,Director of Place,General Materials,,07/01/16,964.62 ,,Vehicles
3250541,AUTO BATTERY SERVICE LTD,Environmental Services,Director of Place,General Materials,,07/01/16,"1,119.63 ",,Vehicles
3250541,DENNIS EAGLE LTD,Environmental Services,Director of Place,General Materials,,07/01/16,"5,243.91 ",,Vehicles
3250541,FREIGHT TRANSPORT ASSOCIATION,Environmental Services,Director of Place,Subscriptions,,07/01/16,963.00 ,,Vehicles
3250541,HI-Q TYRESERVICES,Environmental Services,Director of Place,Tyre Costs,,07/01/16,"1,567.86 ",,Vehicles
3250541,ATS EUROMASTER LTD,Environmental Services,Director of Place,Tyre Costs,,07/01/16,"2,774.22 ",,Vehicles
3250541,FREIGHT TRANSPORT ASSOCIATION,Environmental Services,Director of Place,Vehicle Inspection/Testing Costs,,07/01/16,530.60 ,,Vehicles
3250541,RIVERSIDE TRUCK RENTAL LIMITED,Environmental Services,Director of Place,Workshop Recharges including Misuse & Damage Costs,,07/01/16,130.00 ,,Vehicles
3250542,M.T.KAILL (PLANT HIRE)LTD,Environmental Services,Director of Place,Additional Hire,,14/01/16,504.00 ,,"Works - Construction, Repair & Maintenance"
3250542,SVR,Environmental Services,Director of Place,Additional Hire,,14/01/16,692.00 ,,Charities and Voluntary Organisations
3250542,BURNT TREE GROUP LIMITED,Environmental Services,Director of Place,Additional Hire,,14/01/16,"3,008.40 ",,Vehicles
3250542,TOM AIRDRIE LTD,Environmental Services,Director of Place,Additional Hire,,14/01/16,"3,144.80 ",,Vehicles
3250542,F G ROWLAND LTD,Environmental Services,Director of Place,Core Hire,,14/01/16,845.00 ,,Vehicles
3250542,BURNT TREE GROUP LIMITED,Environmental Services,Director of Place,Core Hire,,14/01/16,"1,311.00 ",,Vehicles
3250542,AEBI SCHMIDT UK LTD,Transport,Director of Place,Debits Goods Received,,14/01/16,847.39 ,,Vehicles
3250542,G B OILS TA CARLTON FUELS,Transport,Director of Place,Diesel Fuel,,14/01/16,"50,989.78 ",,Vehicles
3250542,BRENNTAG UK LIMITED,Environmental Services,Director of Place,General Equipment Purchase,,14/01/16,576.00 ,,Cleaning & Janitorial
3250542,F & G COMMERCIALS (OLDHAM) LIMITED,Environmental Services,Director of Place,General Materials,,14/01/16,676.84 ,,Vehicles
3250542,DENNIS EAGLE LTD,Environmental Services,Director of Place,General Materials,,14/01/16,972.98 ,,Vehicles
3250542,RIVERSIDE TRUCK RENTAL LIMITED,Environmental Services,Director of Place,Replacement Hire,,14/01/16,"4,485.00 ",,Vehicles
3250543,HI-WAY COMPONENTS,Transport,Director of Place,Debits Goods Received,,21/01/16,280.86 ,,Vehicles
3250543,HI-WAY COMPONENTS,Environmental Services,Director of Place,General Materials,,21/01/16,240.00 ,,Vehicles
3250543,HOSEMASTER NORTHWEST,Environmental Services,Director of Place,General Materials,,21/01/16,854.99 ,,Vehicles
3250543,DENNIS EAGLE LTD,Environmental Services,Director of Place,General Materials,,21/01/16,896.65 ,,Vehicles
3250543,ECON ENGINEERING LTD,Environmental Services,Director of Place,General Materials,,21/01/16,"1,088.26 ",,Vehicles
3250543,TERBERG MATEC UK LTD,Environmental Services,Director of Place,General Materials,,21/01/16,"1,120.68 ",,Environmental Services
3250544,A & J MOTORSPARES,Transport,Director of Place,Consumable Materials,,28/01/16,52.56 ,,Vehicles
3250544,FAUN ZOELLER (UK) LTD,Transport,Director of Place,Debits Goods Received,,28/01/16,277.88 ,,Vehicles
3250544,AEBI SCHMIDT UK LTD,Transport,Director of Place,Debits Goods Received,,28/01/16,394.89 ,,Vehicles
3250544,G B OILS TA CARLTON FUELS,Transport,Director of Place,Diesel Fuel,,28/01/16,"16,360.09 ",,Vehicles
3250544,G B OILS TA CARLTON FUELS,Transport,Director of Place,Gas - Oil Fuel,,28/01/16,"3,387.00 ",,Vehicles
3250544,FLEET PARTS LTD,Environmental Services,Director of Place,General Equipment Repair & Maintenance,,28/01/16,"1,330.00 ",,Unclassified
3250544,AEBI SCHMIDT UK LTD,Environmental Services,Director of Place,General Materials,,28/01/16,357.10 ,,Vehicles
3250544,A & J MOTORSPARES,Environmental Services,Director of Place,General Materials,,28/01/16,556.95 ,,Vehicles
3250544,QUICKO,Environmental Services,Director of Place,General Materials,,28/01/16,610.83 ,,Unclassified
3250544,MANCHESTER BREAKDOWN SERVICES LTD,Environmental Services,Director of Place,General Materials,,28/01/16,696.25 ,,Vehicles
3250544,FAUN ZOELLER (UK) LTD,Environmental Services,Director of Place,General Materials,,28/01/16,783.95 ,,Vehicles
3250544,DENNIS EAGLE LTD,Environmental Services,Director of Place,General Materials,,28/01/16,"4,535.39 ",,Vehicles
3250544,ATS EUROMASTER LTD,Environmental Services,Director of Place,Tyre Costs,,28/01/16,"3,752.66 ",,Vehicles
3250545,CP DAVISON & SONS,Environmental Services,Director of Place,Additional Hire,,04/02/16,"1,600.00 ",,Unclassified
3250545,ARNOLD PLANT HIRE LTD,Environmental Services,Director of Place,Additional Hire,,04/02/16,"2,027.00 ",,Unclassified
3250545,BURNT TREE GROUP LIMITED,Environmental Services,Director of Place,Additional Hire,,04/02/16,"2,746.80 ",,Vehicles
3250545,TOM AIRDRIE LTD,Environmental Services,Director of Place,Additional Hire,,04/02/16,"3,244.69 ",,Vehicles
3250545,LEX AUTOLEASE,Environmental Services,Director of Place,Core Hire,,04/02/16,728.75 ,,Unclassifiable
3250545,BURNT TREE GROUP LIMITED,Environmental Services,Director of Place,Core Hire,,04/02/16,"1,197.00 ",,Vehicles
3250545,SHB HIRE LTD,Environmental Services,Director of Place,Core Hire,,04/02/16,"10,313.31 ",,Vehicles
3250545,F. R. SHARROCK LIMITED,Transport,Director of Place,Debits Goods Received,,04/02/16,674.87 ,,Public Bodies
3250545,G B OILS TA CARLTON FUELS,Transport,Director of Place,Diesel Fuel,,04/02/16,"16,289.70 ",,Vehicles
3250545,CP DAVISON & SONS,Environmental Services,Director of Place,General Materials,,04/02/16,272.21 ,,Unclassified
3250545,SGM CONTRACTS LLP,Environmental Services,Director of Place,General Materials,,04/02/16,574.93 ,,"Works - Construction, Repair & Maintenance"
3250545,FAUN ZOELLER (UK) LTD,Environmental Services,Director of Place,General Materials,,04/02/16,590.82 ,,Vehicles
3250545,HARSH LTD,Environmental Services,Director of Place,General Materials,,04/02/16,801.00 ,,Vehicles
3250545,F & G COMMERCIALS (OLDHAM) LIMITED,Environmental Services,Director of Place,General Materials,,04/02/16,960.99 ,,Vehicles
3250545,DENNIS EAGLE LTD,Environmental Services,Director of Place,General Materials,,04/02/16,"1,302.86 ",,Vehicles
3250545,JOHNSTON SWEEPERS LTD,Environmental Services,Director of Place,General Materials,,04/02/16,"1,315.30 ",,Environmental Services
3250545,RIVERSIDE TRUCK RENTAL LIMITED,Environmental Services,Director of Place,Replacement Hire,,04/02/16,"4,095.00 ",,Vehicles
3250545,HI-Q TYRESERVICES,Environmental Services,Director of Place,Tyre Costs,,04/02/16,"2,831.15 ",,Vehicles
3250545,ARNOLD PLANT HIRE LTD,Environmental Services,Director of Place,Workshop Recharges including Misuse & Damage Costs,,04/02/16,25.00 ,,Unclassified
3250545,CP DAVISON & SONS,Environmental Services,Director of Place,Workshop Recharges including Misuse & Damage Costs,,04/02/16,50.00 ,,Unclassified
3250546,TERBERG MATEC UK LTD,Transport,Director of Place,Debits Goods Received,,11/02/16,713.79 ,,Environmental Services
3250547,DIRECT FILTER/ PARTS SUPPLY,Environmental Services,Director of Place,Consumable Materials,,18/02/16,122.10 ,,Vehicles
3250547,F G ROWLAND LTD,Environmental Services,Director of Place,Core Hire,,18/02/16,845.00 ,,Vehicles
3250547,DIRECT FILTER/ PARTS SUPPLY,Transport,Director of Place,Debits Goods Received,,18/02/16,359.43 ,,Vehicles
3250547,DENNIS EAGLE LTD,Transport,Director of Place,Debits Goods Received,,18/02/16,945.60 ,,Vehicles
3250547,G B OILS TA CARLTON FUELS,Transport,Director of Place,Diesel Fuel,,18/02/16,"16,704.42 ",,Vehicles
3250547,F G ROWLAND LTD,Environmental Services,Director of Place,General Materials,,18/02/16,40.38 ,,Vehicles
3250547,ATS EUROMASTER LTD,Environmental Services,Director of Place,General Materials,,18/02/16,194.77 ,,Vehicles
3250547,DIRECT FILTER/ PARTS SUPPLY,Environmental Services,Director of Place,General Materials,,18/02/16,425.07 ,,Vehicles
3250547,F & G COMMERCIALS (OLDHAM) LIMITED,Environmental Services,Director of Place,General Materials,,18/02/16,755.26 ,,Vehicles
3250547,FAUN ZOELLER (UK) LTD,Environmental Services,Director of Place,General Materials,,18/02/16,"1,587.81 ",,Vehicles
3250547,DENNIS EAGLE LTD,Environmental Services,Director of Place,General Materials,,18/02/16,"4,927.14 ",,Vehicles
3250547,THOMAS HARDIE,Environmental Services,Director of Place,General Materials,Business Payment,18/02/16,"7,483.11 ",,Vehicles
3250547,RIVERSIDE TRUCK RENTAL LIMITED,Environmental Services,Director of Place,Replacement Hire,,18/02/16,720.00 ,,Vehicles
3250547,HI-Q TYRESERVICES,Environmental Services,Director of Place,Tyre Costs,,18/02/16,"3,565.93 ",,Vehicles
3250547,ATS EUROMASTER LTD,Environmental Services,Director of Place,Tyre Costs,,18/02/16,"5,595.68 ",,Vehicles
3250548,LEX AUTOLEASE,Environmental Services,Director of Place,Core Hire,,25/02/16,728.75 ,,Unclassifiable
3250548,DENNIS EAGLE LTD,Transport,Director of Place,Debits Goods Received,,25/02/16,288.54 ,,Vehicles
3250548,DENNIS EAGLE LTD,Environmental Services,Director of Place,General Materials,,25/02/16,"1,655.68 ",,Vehicles
3250548,NTM LINKTIP LTD,Environmental Services,Director of Place,General Materials,,25/02/16,"2,995.07 ",,Vehicles
3250548,HI-Q TYRESERVICES,Environmental Services,Director of Place,Tyre Costs,,25/02/16,958.90 ,,Vehicles
3250548,FREIGHT TRANSPORT ASSOCIATION,Environmental Services,Director of Place,Vehicle Inspection/Testing Costs,,25/02/16,"1,098.22 ",,Vehicles
3250549,RIVERSIDE TRUCK RENTAL LIMITED,Environmental Services,Director of Place,Additional Hire,,03/03/16,720.00 ,,Vehicles
3250549,TOM AIRDRIE LTD,Environmental Services,Director of Place,Additional Hire,,03/03/16,"1,496.91 ",,Vehicles
3250549,DAWSON RENTALS BUS AND COACH LTD,Environmental Services,Director of Place,Core Hire,,03/03/16,"2,998.22 ",,Transport
3250549,SHB HIRE LTD,Environmental Services,Director of Place,Core Hire,,03/03/16,"10,313.31 ",,Vehicles
3250549,HI-WAY COMPONENTS,Transport,Director of Place,Debits Goods Received,,03/03/16,71.53 ,,Vehicles
3250549,G B OILS TA CARLTON FUELS,Transport,Director of Place,Diesel Fuel,,03/03/16,"24,720.49 ",,Vehicles
3250549,BRENNTAG UK LIMITED,Transport,Director of Place,Fuel / Ad Blu,,03/03/16,790.00 ,,Cleaning & Janitorial
3250549,G B OILS TA CARLTON FUELS,Transport,Director of Place,Gas - Oil Fuel,,03/03/16,"3,199.00 ",,Vehicles
3250549,TAMESIDE TRANSMISSIONS LTD,Environmental Services,Director of Place,General Materials,,03/03/16,525.00 ,,Unclassified
3250549,HI-WAY COMPONENTS,Environmental Services,Director of Place,General Materials,,03/03/16,740.29 ,,Vehicles
3250549,MUNICIPAL VEHICLE SERVICES LTD,Environmental Services,Director of Place,General Materials,,30/03/16,"1,907.85 ",,Transport
3250549,DENNIS EAGLE LTD,Environmental Services,Director of Place,General Materials,,03/03/16,"3,056.69 ",,Vehicles
3250549,WEST PENNINE TRUCKS,Environmental Services,Director of Place,General Materials,,03/03/16,"7,141.95 ",,Vehicles
3250549,TOM AIRDRIE LTD,Environmental Services,Director of Place,Replacement Hire,,03/03/16,42.00 ,,Vehicles
3250549,FREIGHT TRANSPORT ASSOCIATION,Environmental Services,Director of Place,Training Course Costs,,03/03/16,397.00 ,,Vehicles
3250549,FREIGHT TRANSPORT ASSOCIATION,Environmental Services,Director of Place,Vehicle Inspection/Testing Costs,,03/03/16,370.80 ,,Vehicles
3250550,RIVERSIDE TRUCK RENTAL LIMITED,Environmental Services,Director of Place,Additional Hire,,10/03/16,360.00 ,,Vehicles
3250550,M T KAILL(PLANT HIRE)LTD,Environmental Services,Director of Place,Additional Hire,,10/03/16,504.00 ,,Vehicles
3250550,TOM AIRDRIE LTD,Environmental Services,Director of Place,Additional Hire,,10/03/16,839.32 ,,Vehicles
3250550,ARNOLD PLANT HIRE LTD,Environmental Services,Director of Place,Additional Hire,,10/03/16,"1,792.00 ",,Unclassified
3250550,BURNT TREE GROUP LIMITED,Environmental Services,Director of Place,Additional Hire,,10/03/16,"2,746.80 ",,Vehicles
3250550,BURNT TREE GROUP LIMITED,Environmental Services,Director of Place,Core Hire,,10/03/16,"1,197.00 ",,Vehicles
3250550,F G ROWLAND LTD,Environmental Services,Director of Place,Core Hire,,10/03/16,"1,690.00 ",,Vehicles
3250550,DENNIS EAGLE LTD,Transport,Director of Place,Debits Goods Received,,10/03/16,"1,829.21 ",,Vehicles
3250550,STOCKPORT TRUCK CENTRE LTD,Environmental Services,Director of Place,First Aid Equipment,,10/03/16,40.00 ,,Human Resources
3250550,F & G COMMERCIALS (OLDHAM) LIMITED,Transport,Director of Place,General Materials,,10/03/16,238.00 ,,Vehicles
3250550,AEBI SCHMIDT UK LTD,Environmental Services,Director of Place,General Materials,,10/03/16,600.50 ,,Vehicles
3250550,DENNIS EAGLE LTD,Environmental Services,Director of Place,General Materials,,10/03/16,692.61 ,,Vehicles
3250550,RIVERSIDE TRUCK RENTAL LIMITED,Environmental Services,Director of Place,General Materials,,10/03/16,879.00 ,,Vehicles
3250550,WEST PENNINE TRUCKS,Environmental Services,Director of Place,General Materials,,10/03/16,"1,020.00 ",,Vehicles
3250550,FAUN ZOELLER (UK) LTD,Environmental Services,Director of Place,General Materials,,10/03/16,"1,026.99 ",,Vehicles
3250550,STOCKPORT TRUCK CENTRE LTD,Environmental Services,Director of Place,General Materials,,10/03/16,"1,119.67 ",,Human Resources
3250550,F & G COMMERCIALS (OLDHAM) LIMITED,Environmental Services,Director of Place,General Materials,,10/03/16,"1,166.46 ",,Vehicles
3250550,WHALE TANKERS LTD,Environmental Services,Director of Place,General Materials,,10/03/16,"2,460.00 ",,Vehicles
3250550,MJ WILKINSON PLANT HIRE,Environmental Services,Director of Place,General Materials,,10/03/16,"4,958.00 ",,Vehicles
3250550,RIVERSIDE TRUCK RENTAL LIMITED,Environmental Services,Director of Place,Replacement Hire,,10/03/16,"4,095.00 ",,Vehicles
3250550,STOCKPORT TRUCK CENTRE LTD,Environmental Services,Director of Place,Vehicle Inspection/Testing Costs,,10/03/16,162.50 ,,Human Resources
3250550,ARNOLD PLANT HIRE LTD,Environmental Services,Director of Place,Workshop Recharges including Misuse & Damage Costs,,10/03/16,25.00 ,,Unclassified
3250551,KOLLER ENGINEERING LTD,Environmental Services,Director of Place,General Equipment Purchase,,17/03/16,623.50 ,,Vehicles
3250551,DENNIS EAGLE LTD,Environmental Services,Director of Place,General Materials,,17/03/16,555.85 ,,Vehicles
3250551,OLDHAM RADIATORS LTD,Environmental Services,Director of Place,General Materials,,17/03/16,666.00 ,,"Works - Construction, Repair & Maintenance"
3250551,WEST PENNINE TRUCKS,Environmental Services,Director of Place,General Materials,,17/03/16,729.00 ,,Vehicles
3250551,MAN TRUCK AND BUS UK LIMITED,Environmental Services,Director of Place,General Materials,,17/03/16,836.03 ,,Unclassified
3250551,AEBI SCHMIDT UK LTD,Environmental Services,Director of Place,General Materials,,17/03/16,"1,149.03 ",,Vehicles
3250551,F & G COMMERCIALS (OLDHAM) LIMITED,Environmental Services,Director of Place,General Materials,,17/03/16,"1,803.48 ",,Vehicles
3250551,ATS EUROMASTER LTD,Environmental Services,Director of Place,Tyre Costs,,17/03/16,"2,168.16 ",,Vehicles
3250552,ARNOLD PLANT HIRE LTD,Environmental Services,Director of Place,Additional Hire,,24/03/16,648.00 ,,Unclassified
3250552,TOM AIRDRIE LTD,Environmental Services,Director of Place,Additional Hire,,24/03/16,753.30 ,,Vehicles
3250552,AEBI SCHMIDT UK LTD,Transport,Director of Place,Debits Goods Received,,24/03/16,679.96 ,,Vehicles
3250552,TERBERG MATEC UK LTD,Transport,Director of Place,Debits Goods Received,,24/03/16,961.47 ,,Environmental Services
3250552,TERBERG MATEC UK LTD,Environmental Services,Director of Place,General Materials,,24/03/16,586.90 ,,Environmental Services
3250552,STOCKPORT TRUCK CENTRE LTD,Environmental Services,Director of Place,General Materials,,24/03/16,795.26 ,,Human Resources
3250552,AEBI SCHMIDT UK LTD,Environmental Services,Director of Place,General Materials,,24/03/16,870.97 ,,Vehicles
3250552,TRILOGY LTD,Environmental Services,Director of Place,General Materials,,24/03/16,"1,125.00 ",,Vehicles
3250552,DENNIS EAGLE LTD,Environmental Services,Director of Place,General Materials,,24/03/16,"2,638.82 ",,Vehicles
3250552,ARNOLD PLANT HIRE LTD,Environmental Services,Director of Place,Workshop Recharges including Misuse & Damage Costs,,24/03/16,105.00 ,,Unclassified
5190275,THE ASSOCIATION OF ELECTORAL ADMINISTRATORS LTD,Governance,Director of Governance and Resources,Training Course Costs,,22/02/16,"1,451.00 ",,Unclassifiable
5196225,BT PLC,Adult Social Care,Director of People,Telephone Landline Costs,,20/01/16,700.75 ,,Information Communication Technology
5197225,GREATER MANCHESTER WASTE DISPOSAL AUTH.,Environmental Services,Director of Place,GMC Waste Disposal Levy,,18/01/16,"1,376,583.00 ",,Environmental Services
5197226,GREATER MANCHESTER WASTE DISPOSAL AUTH.,Environmental Services,Director of Place,GMC Waste Disposal Levy,,15/02/16,"1,376,583.00 ",,Environmental Services
5197227,GREATER MANCHESTER WASTE DISPOSAL AUTH.,Environmental Services,Director of Place,GMC Waste Disposal Levy,,14/03/16,"1,376,583.00 ",,Environmental Services
5199307,GREATER MANCHESTER COMBINED AUTHORITY,Environmental Services,Director of Place,Passenger Transport Levy,,11/01/16,"1,585,400.00 ",,Unclassified
5200665,LANCASHIRE COUNTY COUNCIL,Corporate Costs,Corporate Costs,Professional Services,,20/01/16,"3,681.30 ",,Unclassified
5200696,LANCASHIRE COUNTY COUNCIL,Corporate Costs,Corporate Costs,Professional Services,,20/01/16,"2,003.91 ",,Unclassified
5202661,PENNINE CARE NHS TRUST,Public Health,Director of Public Health,Professional Services,,06/01/16,"264,835.00 ",,Social Community Care Supplies & Services
5205079,PHOENIX SOFTWARE LTD,Development Growth & Investment,Director of Place,Computer Software,,29/02/16,934.18 ,,Information Communication Technology
5206804,NHS TAMESIDE AND GLOSSOP CCG,Public Health,Director of Public Health,Professional Services,,14/01/16,"15,000.00 ",,Medical
5206955,ENVITECH EUROPE LTD,Environmental Services,Director of Place,Professional Consultancy Services,,28/01/16,"2,016.50 ",,Information Communication Technology,200301,209912,GL,N
5207015,BLACK & WHITE PROMOTIONAL PRINT SERVICES,Governance,Director of Governance and Resources,Printing And Stationery,,11/01/16,720.24 ,,Facilities & Management Services
5208117,MUSE DEVELOPMENTS,Engineers Client,Director of Place,Highway Construction,,14/01/16,"16,363.50 ",,Unclassified
5210179,INSPIREDSPACES TAMESIDE LTD,Asset & Investment Partnership Management,Director of Place,Free School Meal Costs,,16/03/16,"2,826.95 ",,Consultancy
5210179,INSPIREDSPACES TAMESIDE LTD,Asset & Investment Partnership Management,Director of Place,Non-Authority Accommodation Rental,,16/03/16,"73,835.29 ",,Consultancy
5210179,INSPIREDSPACES TAMESIDE LTD,Asset & Investment Partnership Management,Director of Place,Refreshments,,16/03/16,"1,826.32 ",,Consultancy
5210182,INSPIREDSPACES TAMESIDE (PROJECTCO2) LTD,Asset & Investment Partnership Management,Director of Place,Free School Meal Costs,,17/03/16,"16,732.10 ",,"Works - Construction, Repair & Maintenance"
5210182,INSPIREDSPACES TAMESIDE (PROJECTCO2) LTD,Asset & Investment Partnership Management,Director of Place,Professional Services,,17/03/16,778.03 ,,"Works - Construction, Repair & Maintenance"
5210182,INSPIREDSPACES TAMESIDE (PROJECTCO2) LTD,Asset & Investment Partnership Management,Director of Place,Refreshments,,17/03/16,"2,459.76 ",,"Works - Construction, Repair & Maintenance"
5210182,INSPIREDSPACES TAMESIDE (PROJECTCO2) LTD,Asset & Investment Partnership Management,Director of Place,Unitary Charge Payments,,17/03/16,"819,860.05 ",,"Works - Construction, Repair & Maintenance"
5210182,INSPIREDSPACES TAMESIDE (PROJECTCO2) LTD,Asset & Investment Partnership Management,Director of Place,Utilities,,17/03/16,"51,004.97 ",,"Works - Construction, Repair & Maintenance"
5211977,RICOH UK,Environmental Services,Director of Place,Printing And Stationery,,18/01/16,"1,538.91 ",,Facilities & Management Services
5212629,AGE UK TRAINING - HYDE,Individual Schools Budget,Director of People,Professional Services,,14/03/16,"6,230.00 ",,Unclassified
5212894,ACORN CARE & EDUCATION LTD (SALES),Education,Director of People,Voluntary Organisations Fees,,07/01/16,"10,658.00 ",,Social Community Care
5213725,PENNINE CARE NHS TRUST,Public Health,Director of Public Health,Professional Services,,11/02/16,"67,510.00 ",,Social Community Care Supplies & Services
5213901,UNITY ACADEMY BLACKPOOL,Education,Director of People,Voluntary Organisations Fees,,18/02/16,"10,069.33 ",,Education
5214401,COCHLEAR EUROPE LTD,Education,Director of People,Educational Equipment,,11/02/16,594.00 ,,Social Community Care
5214445,TRIBAL EDUCATION LTD,Education,Director of People,Computer Software Maintenance Costs,,18/01/16,"2,100.00 ",,Information Communication Technology
5215198,GREATER MANCHESTER COMBINED AUTHORITY,Engineers Client,Director of Place,Traffic Signals,,10/03/16,"8,340.16 ",,Unclassified
5215222,DOMAIN CARE NORTH WEST LTD,Adult Social Care,Director of People,Homecare Fees,,07/01/16,799.50 ,,Social Community Care
5215262,,Childrens Services,Director of People,Foster Carer Agency Fees,Redacted Supplier,06/01/16,"2,442.86 ",,Social Community Care
5215269,,Childrens Services,Director of People,Foster Carer Agency Fees,Redacted Supplier,06/01/16,"3,786.43 ",,Social Community Care
5215388,SWB COMMERCIALS LTD,Development Growth & Investment,Director of Place,Contributions,,24/02/16,"1,500.00 ",,Financial Services
5215502,PERSON CENTRED CARE SERVICES LIMITED,Adult Social Care,Director of People,Homecare Fees,,17/02/16,"2,020.86 ",,Medical
5215826,,Childrens Services,Director of People,Childrens Homes Outside Local Authority Fees,Redacted Supplier,06/01/16,"6,400.00 ",,Social Community Care Supplies & Services
5215927,MR DANISH AMEEN,Childrens Services,Director of People,Legal Fees,,13/01/16,"1,500.00 ",,Human Resources
5216357,NETWORK CONNECT LTD,Individual Schools Budget,Director of People,Telephone Landline Costs,,15/02/16,"1,465.14 ",,Information Communication Technology
5216361,,Childrens Services,Director of People,Foster Carer Agency Fees,Redacted Supplier,06/01/16,559.82 ,,Social Community Care
5216386,CARE QUALITY COMMISSION,Adult Social Care,Director of People,Training Course Costs,,15/02/16,"2,313.00 ",,Financial Services
5216467,SETA TRAINING & ADVISORY SERVICES LTD,Environmental Services,Director of Place,Training Course Costs,,25/02/16,"1,700.00 ",,Education
5216863,ARCUS CONSULTING LLP,Cultural and Customer Services,"Community,Environmental,Adult and Health Services",Procurement Hub Holding Account,,13/01/16,"4,475.00 ",,Consultancy
5216875,BKSB LTD,Individual Schools Budget,Director of People,Licences,,24/02/16,604.00 ,,Education
5216885,SOUTHPORT AND ORMSKIRK HOSPITAL NHS TRUST,Public Health,Director of Public Health,Professional Services,,24/02/16,634.00 ,,Consultancy
5217200,PRISM MEDICAL UK (CARE FREE DIVISION),Housing,Director of Place,Improvement Grants - Final Mandatory,,25/01/16,"5,493.01 ",,Social Community Care Supplies & Services
5217332,,Childrens Services,Director of People,Childrens Homes Outside Local Authority Fees,Redacted Supplier,13/01/16,"18,910.00 ",,Social Community Care
5217334,TAMESIDE HOSPITAL NHS FOUNDATION TRUST,Public Health,Director of Public Health,Professional Services,,15/02/16,"18,415.83 ",,Unclassified
5217378,EGBERT H TAYLOR & CO,Environmental Services,Director of Place,Refuse Domestic Bin Purchases,,03/02/16,"5,128.80 ",,Environmental Services
5217463,BT PLC,Multiple Heads of Service,Multiple Strategic Directorates,Telephone Landline Costs,,23/03/16,"2,389.84 ",,Information Communication Technology
5217608,MAN AND MACHINE,Environmental Services,Director of Place,Engineers Works,,04/01/16,900.00 ,,Consultancy
5217647,BEMROSEBOOTH,Environmental Services,Director of Place,General Materials,,20/01/16,918.00 ,,Facilities & Management Services
5217671,MANCHESTER SETTLEMENT,Individual Schools Budget,Director of People,Professional Services,,01/02/16,"3,300.00 ",,Education
5217676,KINDERKEY HEALTHCARE LIMITED,Childrens Services,Director of People,Fixtures & Fittings Purchase,,02/03/16,"3,810.00 ",,Social Community Care
5217708,TRANSPORT FOR GREATER MANCHESTER,Engineers Client,Director of Place,Engineers -External,,27/01/16,500.00 ,,Transport
5217749,STAMFORD CARS UK LTD,Education,Director of People,Transport Of Pupils,,20/01/16,510.00 ,,Transport
5217881,THE FURNISHING SERVICE (ENGLAND),Stronger Communities,Director of People,Fixtures & Fittings Purchase,,01/02/16,654.52 ,,Furniture
5217886,VERGO UK,Environmental Services,Director of Place,Printing And Stationery,,18/02/16,534.05 ,,Furniture
5218280,,Childrens Services,Director of People,Childrens Homes Outside Local Authority Fees,Redacted Supplier,11/01/16,"14,600.00 ",,Unclassified
5218320,TRANSPORT FOR GREATER MANCHESTER,Capital Programme,(blank),Traffic Signals,,25/01/16,"1,280.00 ",,Transport
5218322,PROFILE SECURITY SERVICES LIMITED,Environmental Services,Director of Place,General Materials,,06/01/16,"4,761.90 ",,Facilities & Management Services
5218335,XEROX (UK) LIMITED,Governance,Director of Governance and Resources,Printing And Stationery,,06/01/16,"4,429.59 ",,Information Communication Technology
5218337,XEROX (UK) LIMITED,Governance,Director of Governance and Resources,Printing And Stationery,,06/01/16,"8,350.97 ",,Information Communication Technology
5218338,XEROX (UK) LIMITED,Governance,Director of Governance and Resources,Printing And Stationery,,06/01/16,"6,954.16 ",,Information Communication Technology
5218339,XEROX (UK) LIMITED,Governance,Director of Governance and Resources,Procurement Hub Holding Account,,06/01/16,"2,041.17 ",,Information Communication Technology
5218343,POSITIVE STEPS OLDHAM,Development Growth & Investment,Director of Place,Professional Services,,11/01/16,"36,986.30 ",,Unclassified
5218474,FRESH START INDEPENDENCE PROJECT LTD,Childrens Services,Director of People,Living Without Formal Support,,04/01/16,950.00 ,,Social Community Care Supplies & Services
5218515,FRESH START INDEPENDENCE PROJECT LTD,Childrens Services,Director of People,Living Without Formal Support,,04/01/16,"1,149.96 ",,Social Community Care Supplies & Services
5218547,,Childrens Services,Director of People,Foster Carer Agency Fees,Redacted Supplier,13/01/16,"3,534.00 ",,Social Community Care
5218553,CBS (NORTH WEST) LTD,Environmental Services,Director of Place,New Accommodation Works,,11/01/16,"1,097.00 ",,"Works - Construction, Repair & Maintenance"
5218649,ERIC SLATER INTERIOR DESIGN,Multiple Heads of Service,Multiple Strategic Directorates,CIS Labour Debits,,10/02/16,"1,020.00 ",,Highway Equipment & Materials�
5218649,ERIC SLATER INTERIOR DESIGN,Environmental Services,Director of Place,General Materials,,10/02/16,"1,160.00 ",,Highway Equipment & Materials�
5218873,RACE FURNITURE LTD,Engineers Client,Director of Place,Other Works,,10/02/16,"2,692.20 ",,Unclassifiable
5218893,UPDATA INFRASTRUCTURE UK LTD,Multiple Heads of Service,Multiple Strategic Directorates,Communications Equipment,,01/02/16,"2,184.00 ",,Consultancy
5218905,UPDATA INFRASTRUCTURE UK LTD,Multiple Heads of Service,Multiple Strategic Directorates,Communications Equipment,,01/02/16,"2,120.00 ",,Consultancy
5218924,COMMUNITY AND VOLUNTARY ACTION TAMESIDE,Governance,Director of Governance and Resources,Fee Income,,25/01/16,"5,500.00 ",,Financial Services
5218933,UPDATA INFRASTRUCTURE UK LTD,Multiple Heads of Service,Multiple Strategic Directorates,Communications Equipment,,24/02/16,650.00 ,,Consultancy
5218999,,Education,Director of People,Voluntary Organisations Fees,Redacted Supplier,04/01/16,"12,675.00 ",,Social Community Care Supplies & Services
5219003,VYSIONICS ITS LTD,Environmental Services,Director of Place,Fees,,11/01/16,"13,770.00 ",,Traffic
5219022,HEALTH MANAGEMENT (UK) LTD,Governance,Director of Governance and Resources,Professional Consultancy Services,,01/02/16,"9,899.90 ",,Medical
5219065,,Childrens Services,Director of People,Childrens Homes Outside Local Authority Fees,Redacted Supplier,10/02/16,540.00 ,,Social Community Care Supplies & Services
5219209,WINGS EDUCATION,Education,Director of People,Voluntary Organisations Fees,,08/02/16,"37,625.00 ",,Public Bodies
5219227,COMMUNITY HEALTH PARTNERSHIPS,Asset & Investment Partnership Management,Director of Place,Non-Authority Accommodation Rental,,29/02/16,"11,516.11 ",,Financial Services
5219228,COMMUNITY HEALTH PARTNERSHIPS,Asset & Investment Partnership Management,Director of Place,Non-Authority Accommodation Rental,,29/02/16,"1,178.64 ",,Financial Services
5219229,COMMUNITY HEALTH PARTNERSHIPS,Asset & Investment Partnership Management,Director of Place,Non-Authority Accommodation Rental,,29/02/16,"11,516.11 ",,Financial Services
5219230,COMMUNITY HEALTH PARTNERSHIPS,Asset & Investment Partnership Management,Director of Place,Non-Authority Accommodation Rental,,29/02/16,"1,178.64 ",,Financial Services
5219231,COMMUNITY HEALTH PARTNERSHIPS,Asset & Investment Partnership Management,Director of Place,Non-Authority Accommodation Rental,,29/02/16,"11,516.11 ",,Financial Services
5219232,COMMUNITY HEALTH PARTNERSHIPS,Asset & Investment Partnership Management,Director of Place,Non-Authority Accommodation Rental,,29/02/16,"1,178.64 ",,Financial Services
5219233,COMMUNITY HEALTH PARTNERSHIPS,Asset & Investment Partnership Management,Director of Place,Non-Authority Accommodation Rental,,29/02/16,"11,383.60 ",,Financial Services
5219234,COMMUNITY HEALTH PARTNERSHIPS,Asset & Investment Partnership Management,Director of Place,Non-Authority Accommodation Rental,,29/02/16,"1,175.32 ",,Financial Services
5219235,COMMUNITY HEALTH PARTNERSHIPS,Asset & Investment Partnership Management,Director of Place,Non-Authority Accommodation Rental,,29/02/16,"11,516.11 ",,Financial Services
5219237,COMMUNITY HEALTH PARTNERSHIPS,Asset & Investment Partnership Management,Director of Place,Non-Authority Accommodation Rental,,29/02/16,"1,178.64 ",,Financial Services
5219270,THE FURNISHING SERVICE (ENGLAND),Stronger Communities,Director of People,Fixtures & Fittings Purchase,,02/03/16,618.72 ,,Furniture
5219344,PARAGON POS,Asset & Investment Partnership Management,Director of Place,Computer Software Maintenance Costs,,13/01/16,"1,200.00 ",,Information Communication Technology
5219350,TRINITY MIRROR NORTH PUBLISHING LTD,Governance,Director of Governance and Resources,Printing And Stationery,,11/01/16,"1,269.12 ",,Public Bodies
5219359,TRINITY MIRROR NORTH PUBLISHING LTD,Governance,Director of Governance and Resources,Printing And Stationery,,11/01/16,"1,728.48 ",,Public Bodies
5219409,AD HOC CHAPS PAYMENT,Environmental Services,Director of Place,Contributions,,04/01/16,"1,613.00 ",,Chaps Payments
5219423,NORTHGATE PUBLIC SERVICES UK LTD,Digital Tameside,Director of Place,Computer Software Maintenance Costs,,24/03/16,"1,300.00 ",,Information Communication Technology
5219540,NSL LIMITED,Environmental Services,Director of Place,NSL Fees,,07/01/16,"56,417.02 ",,Traffic Management
5219549,UPDATA INFRASTRUCTURE UK LTD,Multiple Heads of Service,Multiple Strategic Directorates,Communications Equipment,,01/02/16,"2,935.50 ",,Consultancy
5219699,CBS (NORTH WEST) LTD,District Assemblies,"Community,Environmental,Adult and Health Services",Engineers Works,,08/02/16,"3,830.00 ",,"Works - Construction, Repair & Maintenance"
5219727,M.C. & M.A. STEWART HAULAGE LTD,Environmental Services,Director of Place,General Materials,,04/01/16,"1,610.00 ",,Horticultural
5219838,,Childrens Services,Director of People,Childrens Homes Outside Local Authority Fees,Redacted Supplier,06/01/16,"10,000.00 ",,Social Community Care Supplies & Services
5219843,BLACK & WHITE PROMOTIONAL PRINT SERVICES,Governance,Director of Governance and Resources,Printing And Stationery,,07/01/16,697.00 ,,Facilities & Management Services
5219856,PENNINE CARE NHS TRUST,Public Health,Director of Public Health,Local Enhanced Services,,16/03/16,"26,649.00 ",,Social Community Care Supplies & Services
5219891,ASHTON SIXTH FORM COLLEGE,Education,Director of People,Voluntary Organisations Fees,,04/01/16,"6,215.74 ",,Unclassified
5219892,,Childrens Services,Director of People,Foster Carer Agency Fees,Redacted Supplier,24/02/16,799.00 ,,Unclassified
5220003,AD HOC CHAPS PAYMENT,Environmental Services,Director of Place,Land Drainage Levy,,24/02/16,"106,208.00 ",,Chaps Payments
5220044,,Childrens Services,Director of People,Foster Carer Agency Fees,Redacted Supplier,13/01/16,"3,011.34 ",,Social Community Care
5220045,,Childrens Services,Director of People,Foster Carer Agency Fees,Redacted Supplier,06/01/16,"2,914.20 ",,Social Community Care
5220058,STOCKPORT NHS FOUNDATION TRUST,Public Health,Director of Public Health,Professional Services,,04/02/16,"254,220.00 ",,Medical
5220064,,Childrens Services,Director of People,Foster Carer Agency Fees,Redacted Supplier,18/01/16,"8,562.90 ",,Social Community Care
5220081,WILLIAMS WOODWARD LTD,Finance,Director of Governance and Resources,Professional Consultancy Services,,07/01/16,830.00 ,,CONSULTANCY
5220086,,Education,Director of People,Voluntary Organisations Fees,Redacted Supplier,10/02/16,"2,357.10 ",,Social Community Care
5220087,,Childrens Services,Director of People,Childrens Homes Outside Local Authority Fees,Redacted Supplier,13/01/16,"11,721.30 ",,Social Community Care
5220095,,Childrens Services,Director of People,Foster Carer Agency Fees,Redacted Supplier,13/01/16,"3,270.50 ",,Social Community Care
5220098,,Childrens Services,Director of People,Childrens Homes Outside Local Authority Fees,Redacted Supplier,13/01/16,"8,562.90 ",,Social Community Care
5220159,,Childrens Services,Director of People,Foster Carer Agency Fees,Redacted Supplier,13/01/16,"7,714.29 ",,Unclassified
5220199,PROFILE SECURITY SERVICES LIMITED,Environmental Services,Director of Place,Security Services,,04/01/16,"2,545.29 ",,Facilities & Management Services
5220223,H MULLANEY & SON LTD,Asset & Investment Partnership Management,Director of Place,Waste Disposal Fees,,18/02/16,930.00 ,,Environmental Services
5220285,DERBYSHIRE COUNTY COUNCIL,Education,Director of People,Other Local Authorities Fees,,10/02/16,"7,500.00 ",,Unclassified
5220293,,Childrens Services,Director of People,Foster Carer Agency Fees,Redacted Supplier,13/01/16,799.00 ,,Unclassified
5220338,ARCO LIMITED,Environmental Services,Director of Place,Purchase Wheeled Bins,,07/03/16,"1,080.80 ",,Clothing
5220339,SSI SCHAEFER LTD,Environmental Services,Director of Place,General Materials,,04/01/16,"13,066.20 ",,Environmental Services
5220343,PHS GROUP PLC,Environmental Services,Director of Place,Professional Services,,04/01/16,"1,074.47 ",,Cleaning & Janitorial
5220396,PETE RUSSELL MA.PG.DIP BA.ART PSYCHOTHERAPY,Childrens Services,Director of People,Professional Services,,04/01/16,"1,100.00 ",,Unclassifiable
5220446,,Childrens Services,Director of People,Foster Carer Agency Fees,Redacted Supplier,06/01/16,"3,167.10 ",,Social Community Care
5220449,,Childrens Services,Director of People,Foster Carer Agency Fees,Redacted Supplier,06/01/16,"3,420.54 ",,Social Community Care
5220455,,Childrens Services,Director of People,Foster Carer Agency Fees,Redacted Supplier,04/01/16,"3,424.20 ",,Social Community Care
5220459,,Childrens Services,Director of People,Childrens Homes Outside Local Authority Fees,Redacted Supplier,14/01/16,"19,975.16 ",,Unclassifiable
5220460,,Childrens Services,Director of People,Foster Carer Agency Fees,Redacted Supplier,13/01/16,"3,106.82 ",,Social Community Care
5220580,MISS HOLLY PLATT,Childrens Services,Director of People,Legal Fees,,11/01/16,700.00 ,,Social Community Care Supplies & Services
5220645,TAMESIDE SPORTS TRUST,Education,Director of People,Professional Sports Coaching Services,,13/01/16,666.66 ,,Leisure Services
5220665,TAMESIDE ARTS LTD,Adult Social Care,Director of People,Professional Services,,11/01/16,"1,071.00 ",,Leisure Services
5220681,,Childrens Services,Director of People,Childrens Homes Outside Local Authority Fees,Redacted Supplier,13/01/16,"19,710.00 ",,Unclassified
5220750,ANVIL MASTERS,Multiple Heads of Service,Multiple Strategic Directorates,Security Equipment,,27/01/16,"1,601.15 ",,Building Construction Materials
5220753,GREG O'DONNELL PAINTERS & DECORATORS,Adult Social Care,Director of People,Fixtures & Fittings Purchase,,07/01/16,"1,050.00 ",,Building Construction Materials
5220766,UNIVERSITY OF BIRMINGHAM,Education,Director of People,Training Course Costs,,07/01/16,"3,385.00 ",,Unclassified
5220768,AD HOC CHAPS PAYMENT,Asset & Investment Partnership Management,Director of Place,Contributions,,11/01/16,"95,408.38 ",,Chaps Payments
5220771,INSPIREDSPACES TAMESIDE LTD,Asset & Investment Partnership Management,Director of Place,Agency Staff,,11/01/16,"38,384.72 ",,Consultancy
5220771,INSPIREDSPACES TAMESIDE LTD,Asset & Investment Partnership Management,Director of Place,Building Repairs,,11/01/16,"221,691.20 ",,Consultancy
5220771,INSPIREDSPACES TAMESIDE LTD,Tameside Investment Partnership,Director of Place,Debits,,11/01/16,"4,169.95 ",,Consultancy
5220771,INSPIREDSPACES TAMESIDE LTD,Public Health,Director of Public Health,Other Accomodation Related Costs,,11/01/16,"1,956.55 ",,Consultancy
5220771,INSPIREDSPACES TAMESIDE LTD,Asset & Investment Partnership Management,Director of Place,Painting Works,,11/01/16,"16,727.73 ",,Consultancy
5220778,AGRICULTURAL AND RURAL CENTRE CIC,Individual Schools Budget,Director of People,Professional Services,,13/01/16,"1,080.00 ",,Education
5220793,CBRE SPUK II (NO17) LTD,Asset & Investment Partnership Management,Director of Place,Non-Authority Accommodation Rental,,06/01/16,"4,750.00 ",,Non 3rd Party spend  
5220811,TPC SOLICITORS,Multiple Heads of Service,Multiple Strategic Directorates,Claims Settled,,07/01/16,"9,500.00 ",,Unclassifiable
5220813,DWP,Multiple Heads of Service,Multiple Strategic Directorates,Claims Settled,,11/01/16,600.00 ,,Unclassified
5220825,THRESHOLD HOUSING PROJECT,Stronger Communities,Director of People,Supporting People Gross Contract,,18/01/16,"27,259.75 ",,Housing Management
5220842,TORDAN HEALTHCARE LTD,Childrens Services,Director of People,Homecare Fees,,04/01/16,"4,279.52 ",,Medical
5220854,DEKKO WINDOW SYSTEMS LTD,Asset & Investment Partnership Management,Director of Place,Electricity,,07/01/16,995.12 ,,Utilities
5220873,NPOWER LIMITED,Environmental Services,Director of Place,Electricity,,06/01/16,"136,479.94 ",,Utilities
5220927,MISS SAMANTHA BIRTLES,Childrens Services,Director of People,Legal Fees,,17/02/16,"2,050.00 ",,Social Community Care Supplies & Services
5220962,HOMESTART TAMESIDE & OLDHAM,Public Health,Director of Public Health,Professional Services,,11/01/16,"10,416.67 ",,Social Community Care Supplies & Services
5220977,RANDSTAD EDUCATION LIMITED,Individual Schools Budget,Director of People,Agency Staff,,27/01/16,525.00 ,,Education
5220978,RANDSTAD EDUCATION LIMITED,Individual Schools Budget,Director of People,Agency Staff,,27/01/16,600.00 ,,Education
5220979,RANDSTAD EDUCATION LIMITED,Individual Schools Budget,Director of People,Agency Staff,,27/01/16,525.00 ,,Education
5220980,RANDSTAD EDUCATION LIMITED,Individual Schools Budget,Director of People,Agency Staff,,27/01/16,630.00 ,,Education
5220981,RANDSTAD EDUCATION LIMITED,Individual Schools Budget,Director of People,Agency Staff,,27/01/16,995.00 ,,Education
5220983,,Childrens Services,Director of People,Foster Carer Agency Fees,Redacted Supplier,01/02/16,"3,470.89 ",,Social Community Care
5220984,,Childrens Services,Director of People,Foster Carer Agency Fees,Redacted Supplier,01/02/16,"3,358.93 ",,Social Community Care
5221007,RANDSTAD EDUCATION LIMITED,Individual Schools Budget,Director of People,Agency Staff,,27/01/16,740.00 ,,Education
5221010,RANDSTAD EDUCATION LIMITED,Individual Schools Budget,Director of People,Agency Staff,,27/01/16,525.00 ,,Education
5221012,RANDSTAD EDUCATION LIMITED,Individual Schools Budget,Director of People,Agency Staff,,27/01/16,740.00 ,,Education
5221013,RANDSTAD EDUCATION LIMITED,Individual Schools Budget,Director of People,Agency Staff,,27/01/16,925.00 ,,Education
5221014,LOWE MARTIAL ARTS LTD,Individual Schools Budget,Director of People,Professional Services,,04/01/16,910.00 ,,Leisure
5221030,,Childrens Services,Director of People,Foster Carer Agency Fees,Redacted Supplier,06/01/16,"1,903.39 ",,Social Community Care
5221031,,Childrens Services,Director of People,Foster Carer Agency Fees,Redacted Supplier,06/01/16,"3,470.89 ",,Social Community Care
5221034,TAMESIDE HOSPITAL NHS FOUNDATION TRUST,Public Health,Director of Public Health,Health & Safety Training Course,,03/02/16,"3,904.00 ",,Unclassified
5221039,DANCE AND FITNESS AGENCY LTD,Individual Schools Budget,Director of People,Professional Services,,04/01/16,840.00 ,,Leisure Services
5221040,DANCE AND FITNESS AGENCY LTD,Individual Schools Budget,Director of People,Professional Services,,04/01/16,960.00 ,,Leisure Services
5221041,ASTLEY SPORTS COLLEGE,Education,Director of People,Professional Services,,13/01/16,"5,000.00 ",,Education
5221042,ASTLEY SPORTS COLLEGE,Education,Director of People,Refreshments,,09/03/16,"1,665.50 ",,Education
5221050,ZAPS GAMING FUN,Stronger Communities,Director of People,"Activity (Materials, Trips)",,04/01/16,600.00 ,,Unclassifiable
5221053,CAPITA - BENEFIT PAYMENTS,Exchequer,Director of Governance and Resources,"Housing Benefit Payments,Capita Debtors Income, Other Costs",,11/01/16,"25,818,436.04 ",,Unclassified
5221062,LOWE MARTIAL ARTS LTD,Individual Schools Budget,Director of People,Professional Sports Coaching Services,,04/01/16,"1,820.00 ",,Leisure
5221070,PG FABRICATIONS,Environmental Services,Director of Place,General Materials,,06/01/16,810.00 ,,"Works - Construction, Repair & Maintenance"
5221083,VISION FOR EDUCATION LIMITED,Individual Schools Budget,Director of People,Agency Staff,,04/01/16,575.00 ,,Education
5221084,VISION FOR EDUCATION LIMITED,Individual Schools Budget,Director of People,Agency Staff,,04/01/16,950.00 ,,Education
5221087,VISION FOR EDUCATION LIMITED,Individual Schools Budget,Director of People,Agency Staff,,04/01/16,675.00 ,,Education
5221089,VISION FOR EDUCATION LIMITED,Individual Schools Budget,Director of People,Agency Staff,,04/01/16,675.00 ,,Education
5221090,VISION FOR EDUCATION LIMITED,Individual Schools Budget,Director of People,Agency Staff,,04/01/16,517.50 ,,Education
5221091,,Childrens Services,Director of People,Childrens Homes Outside Local Authority Fees,Redacted Supplier,13/01/16,"9,145.00 ",,Social Community Care
5221092,VISION FOR EDUCATION LIMITED,Individual Schools Budget,Director of People,Agency Staff,,04/01/16,675.00 ,,Education
5221093,VISION FOR EDUCATION LIMITED,Individual Schools Budget,Director of People,Agency Staff,,04/01/16,950.00 ,,Education
5221094,VISION FOR EDUCATION LIMITED,Individual Schools Budget,Director of People,Agency Staff,,04/01/16,675.00 ,,Education
5221096,VISION FOR EDUCATION LIMITED,Individual Schools Budget,Director of People,Agency Staff,,07/01/16,675.00 ,,Education
5221098,VISION FOR EDUCATION LIMITED,Individual Schools Budget,Director of People,Agency Staff,,07/01/16,675.00 ,,Education
5221100,VISION FOR EDUCATION LIMITED,Individual Schools Budget,Director of People,Agency Staff,,04/01/16,950.00 ,,Education
5221106,,Childrens Services,Director of People,Foster Carer Agency Fees,Redacted Supplier,20/01/16,"3,534.00 ",,Social Community Care Supplies & Services
5221108,RANDSTAD EDUCATION LIMITED,Individual Schools Budget,Director of People,Agency Staff,,27/01/16,630.00 ,,Education
5221110,RANDSTAD EDUCATION LIMITED,Individual Schools Budget,Director of People,Agency Staff,,27/01/16,525.00 ,,Education
5221111,RANDSTAD EDUCATION LIMITED,Individual Schools Budget,Director of People,Agency Staff,,27/01/16,995.00 ,,Education
5221113,RANDSTAD EDUCATION LIMITED,Individual Schools Budget,Director of People,Agency Staff,,27/01/16,525.00 ,,Education
5221114,RANDSTAD EDUCATION LIMITED,Individual Schools Budget,Director of People,Agency Staff,,27/01/16,525.00 ,,Education
5221116,RANDSTAD EDUCATION LIMITED,Individual Schools Budget,Director of People,Agency Staff,,27/01/16,740.00 ,,Education
5221144,B&E CONSULTANTS LTD,Public Health,Director of Public Health,Professional Services,,06/01/16,"1,050.00 ",,CONSULTANCY
5221186,BT PLC,Multiple Heads of Service,Multiple Strategic Directorates,Telephone Landline Costs,,23/03/16,"2,394.11 ",,Information Communication Technology
5221237,TRANSPORT FOR GREATER MANCHESTER,Capital Programme,(blank),Engineers -External,,04/01/16,640.00 ,,Transport
5221249,BROWNS CTP LIMITED,Governance,Director of Governance and Resources,Printing And Stationery,,04/01/16,"1,560.00 ",,Facilities & Management Services
5221252,,Education,Director of People,Section 251 Budget,Redacted Supplier,04/01/16,"2,000.00 ",,Non 3rd Party spend  
5221261,XEROX (UK) LIMITED,Governance,Director of Governance and Resources,Printing And Stationery,,28/01/16,"4,626.66 ",,Information Communication Technology
5221268,EAGLE CIVIL ENGINEERING LTD,Environmental Services,Director of Place,General Materials,,04/01/16,"1,397.00 ",,Highway Equipment & Materials�
5221269,MISS ANDREA MARKHAM,Childrens Services,Director of People,Legal Fees,Business Payment,04/01/16,550.00 ,,Legal Services
5221278,INSPIREDSPACES TAMESIDE LTD,Asset & Investment Partnership Management,Director of Place,Agency Staff,,11/01/16,"37,265.19 ",,Consultancy
5221278,INSPIREDSPACES TAMESIDE LTD,Asset & Investment Partnership Management,Director of Place,Cleaning Materials,,11/01/16,"4,125.51 ",,Consultancy
5221278,INSPIREDSPACES TAMESIDE LTD,Asset & Investment Partnership Management,Director of Place,Refreshments,,11/01/16,"12,132.03 ",,Consultancy
5221278,INSPIREDSPACES TAMESIDE LTD,Asset & Investment Partnership Management,Director of Place,Telephone Landline Costs,,11/01/16,"4,816.29 ",,Consultancy
5221281,INSPIREDSPACES TAMESIDE LTD,Asset & Investment Partnership Management,Director of Place,Agency Staff,,11/01/16,"36,455.30 ",,Consultancy
5221281,INSPIREDSPACES TAMESIDE LTD,Asset & Investment Partnership Management,Director of Place,Cleaning Materials,,11/01/16,"2,656.43 ",,Consultancy
5221281,INSPIREDSPACES TAMESIDE LTD,Asset & Investment Partnership Management,Director of Place,Refreshments,,11/01/16,"181,656.82 ",,Consultancy
5221282,INSPIREDSPACES TAMESIDE LTD,Asset Management and Investment Partnership Management,Director of Place,"Plant, Vehicles And Equipment",,11/01/16,"1,800.00 ",,Consultancy
5221282,INSPIREDSPACES TAMESIDE LTD,Tameside Investment Partnership,Director of Place,Refurbishment Construction Costs,,11/01/16,"60,847.06 ",,Consultancy
5221282,INSPIREDSPACES TAMESIDE LTD,Asset Management and Investment Partnership Management,Director of Place,Refurbishment Construction Costs,,11/01/16,"255,094.43 ",,Consultancy
5221299,,Adult Social Care,Director of People,Residential Home Short Stay Fees,Redacted Supplier,04/01/16,935.43 ,,Unclassifiable
5221314,THE FURNISHING SERVICE (ENGLAND),Stronger Communities,Director of People,Fixtures & Fittings Purchase,,14/01/16,500.90 ,,Furniture
5221315,LAUREL BANK SUPPORT AT HOME,Adult Social Care,Director of People,Homecare Fees,,04/01/16,"2,651.67 ",,Social Community Care Supplies & Services
5221342,,Childrens Services,Director of People,Foster Carer Agency Fees,Redacted Supplier,06/01/16,"3,272.67 ",,Social Community Care
5221344,,Childrens Services,Director of People,Foster Carer Agency Fees,Redacted Supplier,06/01/16,"3,272.67 ",,Social Community Care
5221346,,Childrens Services,Director of People,Foster Carer Agency Fees,Redacted Supplier,06/01/16,"3,420.54 ",,Social Community Care
5221394,CUMBRIA COUNTY COUNCIL,Childrens Services,Director of People,Adoption Agency Fees,,04/02/16,"27,000.00 ",,Non 3rd Party spend  
5221396,L&R ROADLINES LTD,Environmental Services,Director of Place,Engineers Works,,06/01/16,734.63 ,,Highway Equipment & Materials
5221396,L&R ROADLINES LTD,Engineers Client,Director of Place,Highway Construction,,06/01/16,569.62 ,,Highway Equipment & Materials
5221396,L&R ROADLINES LTD,Engineers Client,Director of Place,Other Works,,06/01/16,"1,704.14 ",,Highway Equipment & Materials
5221396,L&R ROADLINES LTD,Engineers Client,Director of Place,Road Marking Works,,06/01/16,104.00 ,,Highway Equipment & Materials
5221396,L&R ROADLINES LTD,Capital Programme,(blank),Road Marking Works,,06/01/16,"5,066.51 ",,Highway Equipment & Materials
5221397,L&R ROADLINES LTD,Environmental Services,Director of Place,Engineers Works,,06/01/16,924.89 ,,Highway Equipment & Materials
5221397,L&R ROADLINES LTD,Engineers Client,Director of Place,Other Works,,06/01/16,199.75 ,,Highway Equipment & Materials
5221397,L&R ROADLINES LTD,Capital Programme,(blank),Road Marking Works,,06/01/16,"5,174.04 ",,Highway Equipment & Materials
5221406,L&R ROADLINES LTD,Environmental Services,Director of Place,Engineers Works,,06/01/16,326.14 ,,Highway Equipment & Materials
5221406,L&R ROADLINES LTD,Environmental Services,Director of Place,HRA Repairs Engineers Recharge,,06/01/16,141.20 ,,Highway Equipment & Materials
5221406,L&R ROADLINES LTD,Engineers Client,Director of Place,Other Works,,06/01/16,552.09 ,,Highway Equipment & Materials
5221406,L&R ROADLINES LTD,Environmental Services,Director of Place,Repairs & Maintenance Of Car Park Equipment,,06/01/16,260.16 ,,Highway Equipment & Materials
5221406,L&R ROADLINES LTD,Engineers Client,Director of Place,Road Marking Works,,06/01/16,363.90 ,,Highway Equipment & Materials
5221406,L&R ROADLINES LTD,Capital Programme,(blank),Road Marking Works,,06/01/16,"7,134.55 ",,Highway Equipment & Materials
5221406,L&R ROADLINES LTD,Environmental Services,Director of Place,Roadmarkings Engineers Recharge,,06/01/16,71.37 ,,Highway Equipment & Materials
5221406,L&R ROADLINES LTD,Environmental Services,Director of Place,Traffic Regulation Orders,,06/01/16,538.20 ,,Highway Equipment & Materials
5221407,ACOUSTIC & ENGINEERING CONSULTANTS LIMITED,Capital Programme,(blank),Professional Consultancy Services,,04/01/16,950.00 ,,Consultancy
5221408,ACOUSTIC & ENGINEERING CONSULTANTS LIMITED,Engineers Client,Director of Place,Professional Consultancy Services,,04/01/16,750.00 ,,Consultancy
5221409,ACOUSTIC & ENGINEERING CONSULTANTS LIMITED,Capital Programme,(blank),Professional Consultancy Services,,04/01/16,950.00 ,,Consultancy
5221411,AGGREGATE INDUSTRIES UK LIMITED,Capital Programme,(blank),Highway Construction,,06/01/16,"290,630.78 ",,Highway Equipment & Materials
5221423,FREECLAIM SOLICITORS,Multiple Heads of Service,Multiple Strategic Directorates,Claims Settled,,04/01/16,"9,292.61 ",,Legal Services
5221425,SCOTT REES & CO,Multiple Heads of Service,Multiple Strategic Directorates,Claims Settled,,04/01/16,"6,039.00 ",,Public Bodies
5221428,MODERN MINDSET,Digital Tameside,Director of Place,Computer Software,,04/01/16,"2,000.00 ",,Information Communication Technology
5221429,MODERN MINDSET,Digital Tameside,Director of Place,Computer Software,,04/01/16,"3,500.00 ",,Information Communication Technology
5221433,JANET HORAN & PAUL HORAN,Childrens Services,Director of People,Placement with Relative or Friend In LA,,04/01/16,679.69 ,,Unclassifiable
5221434,TRIANGLE CARE GROUP,Childrens Services,Director of People,Living With Formal Support,,04/01/16,"6,800.00 ",,Social & Community
5221437,TRIANGLE CARE GROUP,Childrens Services,Director of People,Living With Formal Support,,04/01/16,"6,800.00 ",,Social & Community
5221438,EMERSON NETWORK POWER LTD,Multiple Heads of Service,Multiple Strategic Directorates,Communications Equipment,,04/01/16,"5,929.09 ",,Building Construction Materials
5221439,TRAVELERS INSURANCE COMPANY LTD,Multiple Heads of Service,Multiple Strategic Directorates,Reimbursement Paid To Insurers,,04/01/16,"32,287.75 ",,Financial Services
5221440,INSPIREDSPACES TAMESIDE LTD,Asset & Investment Partnership Management,Director of Place,Cleaning Contractor Costs,,11/01/16,"2,157,331.63 ",,Consultancy
5221441,INSPIREDSPACES TAMESIDE LTD,Asset Management and Investment Partnership Management,Director of Place,Enabling Works,,11/01/16,"1,358,838.08 ",,Consultancy
5221442,INSPIREDSPACES TAMESIDE LTD,Capital Programme,(blank),Furniture Removal Fees,,11/01/16,831.13 ,,Consultancy
5221442,INSPIREDSPACES TAMESIDE LTD,Tameside Investment Partnership,Director of Place,Plant/Equipment Repairs & Maintenance,,11/01/16,"2,368.35 ",,Consultancy
5221443,INSPIREDSPACES TAMESIDE LTD,Asset Management and Investment Partnership Management,Director of Place,Computer Hardware,,11/01/16,"14,518.28 ",,Consultancy
5221443,INSPIREDSPACES TAMESIDE LTD,Asset Management and Investment Partnership Management,Director of Place,Drainage Works,,11/01/16,"3,202.42 ",,Consultancy
5221443,INSPIREDSPACES TAMESIDE LTD,Tameside Investment Partnership,Director of Place,Enabling Works,,11/01/16,"10,894.55 ",,Consultancy
5221443,INSPIREDSPACES TAMESIDE LTD,Capital Programme,(blank),"Plant, Vehicles And Equipment",,11/01/16,"3,542.50 ",,Consultancy
5221443,INSPIREDSPACES TAMESIDE LTD,Capital Programme,(blank),Refurbishment Construction Costs,,11/01/16,"8,067.09 ",,Consultancy
5221444,INSPIREDSPACES TAMESIDE LTD,Asset & Investment Partnership Management,Director of Place,Professional Services,,11/01/16,"100,669.32 ",,Consultancy
5221445,INSPIREDSPACES TAMESIDE LTD,Asset & Investment Partnership Management,Director of Place,Agency Staff,,11/01/16,"20,441.05 ",,Consultancy
5221445,INSPIREDSPACES TAMESIDE LTD,Asset & Investment Partnership Management,Director of Place,Building Repairs,,11/01/16,"103,913.40 ",,Consultancy
5221445,INSPIREDSPACES TAMESIDE LTD,Capital Programme,(blank),Building Works,,11/01/16,"3,376.68 ",,Consultancy
5221445,INSPIREDSPACES TAMESIDE LTD,Asset & Investment Partnership Management,Director of Place,Professional Architectural & Surveying Services,,11/01/16,"8,957.62 ",,Consultancy
5221445,INSPIREDSPACES TAMESIDE LTD,Asset & Investment Partnership Management,Director of Place,Refreshments,,11/01/16,"120,000.00 ",,Consultancy
5221445,INSPIREDSPACES TAMESIDE LTD,Asset & Investment Partnership Management,Director of Place,Signs,,11/01/16,545.00 ,,Consultancy
5221446,HMRC,Multiple Heads of Service,Multiple Strategic Directorates,Tax Paid Sub Contractors,,04/01/16,"2,775.20 ",,Unclassified
5221447,INTRAQUEST COMMUNITY CIC,Childrens Services,Director of People,Professional Child Services,,04/01/16,780.00 ,,Medical
5221452,GREENSCAPE,Engineers Client,Director of Place,Highway Construction,,04/01/16,"5,592.00 ",,"Works - Construction, Repair & Maintenance"
5221452,GREENSCAPE,Environmental Services,Director of Place,Highway Improvements,,04/01/16,580.00 ,,"Works - Construction, Repair & Maintenance"
5221455,PERSON CENTRED CARE SERVICES LIMITED,Adult Social Care,Director of People,Homecare Fees,,17/02/16,648.00 ,,Medical
5221457,PERSON CENTRED CARE SERVICES LIMITED,Adult Social Care,Director of People,Homecare Fees,,17/02/16,"1,891.08 ",,Medical
5221458,PERSON CENTRED CARE SERVICES LIMITED,Adult Social Care,Director of People,Homecare Fees,,17/02/16,504.00 ,,Medical
5221459,PERSON CENTRED CARE SERVICES LIMITED,Adult Social Care,Director of People,Homecare Fees,,17/02/16,"1,767.52 ",,Medical
5221463,BROMLEYSOLICITORS LLP OFFICE ACCOUNT,Development Growth & Investment,Director of Place,Contributions,,07/01/16,"1,500.00 ",,Legal Services
5221468,LEWIS & CO,Development Growth & Investment,Director of Place,Contributions,,07/01/16,"1,500.00 ",,Unclassifiable
5221469,MR AND MRS FAIRCLOUGH,Childrens Services,Director of People,Cash Grants,,04/01/16,500.00 ,,Unclassifiable
5221474,COUNTRYSCAPE,Stronger Communities,Director of People,Professional Entertainment Services,,07/01/16,750.00 ,,Unclassifiable
5221477,AUTUMN (UK)  LTD,Housing,Director of Place,Improvement Grants - Final Mandatory,,04/01/16,"5,088.16 ",,Social Community Care Supplies & Services
5221478,,Childrens Services,Director of People,Childrens Homes Outside Local Authority Fees,Redacted Supplier,20/01/16,"3,272.67 ",,Social Community Care
5221480,,Childrens Services,Director of People,Childrens Homes Outside Local Authority Fees,Redacted Supplier,13/01/16,"8,414.00 ",,Social Community Care Supplies & Services
5221482,METAMORPHIS LIMITED,Public Health,Director of Public Health,Professional Services,,04/01/16,"3,000.00 ",,CONSULTANCY
5221485,,Adult Social Care,Director of People,Residential Home Short Stay Fees,Redacted Supplier,04/01/16,757.85 ,,Unclassified
5221488,,Childrens Services,Director of People,Childrens Homes Outside Local Authority Fees,Redacted Supplier,27/01/16,"3,538.34 ",,Social Community Care
5221491,AFFINITY TRUST,Adult Social Care,Director of People,Homecare Fees,,04/01/16,"5,901.43 ",,Social Community Care
5221494,ROYAL MENCAP SOCIETY,Adult Social Care,Director of People,Voluntary Organisations Fees,,04/01/16,"9,792.00 ",,Social Community Care Supplies & Services
5221495,,Childrens Services,Director of People,Childrens Homes Outside Local Authority Fees,Redacted Supplier,20/01/16,"3,424.20 ",,Social Community Care
5221499,SOUTH LANCASHIRE BAT GROUP,Development Growth & Investment,Director of Place,Professional Consultancy Services,,04/01/16,"1,000.00 ",,Environmental Services
5221503,WORMS EYE LTD,Environmental Services,Director of Place,Engineers Works,,04/01/16,"2,329.00 ",,Environmental Services
5221505,FUSION CARE,Childrens Services,Director of People,Living With Formal Support,,06/01/16,"11,049.29 ",,Social Community Care Supplies & Services
5221507,,Childrens Services,Director of People,Childrens Homes Outside Local Authority Fees,Redacted Supplier,08/02/16,"14,991.30 ",,Social Community Care
5221519,CROFT INVESTMENTS LTD,Adult Social Care,Director of People,Non-Authority Accommodation Rental,,18/01/16,"2,024.61 ",,Social Community Care Supplies & Services
5221520,HUGH MASON PROPERTIES LIMITED,Adult Social Care,Director of People,Non-Authority Accommodation Rental,,18/01/16,"2,207.18 ",,Facilities & Management Services
5221521,HUGH MASON PROPERTIES LIMITED,Adult Social Care,Director of People,Non-Authority Accommodation Rental,,18/01/16,"2,207.18 ",,Facilities & Management Services
5221522,HUGH MASON PROPERTIES LIMITED,Adult Social Care,Director of People,Non-Authority Accommodation Rental,,18/01/16,"2,471.40 ",,Facilities & Management Services
5221523,STAMFORD PROPERTIES,Adult Social Care,Director of People,Non-Authority Accommodation Rental,,18/01/16,"2,552.73 ",,Unclassifiable
5221524,HAMILTON PROPERTIES,Adult Social Care,Director of People,Non-Authority Accommodation Rental,,18/01/16,"1,575.20 ",,Housing Management
5221525,WESLEY PROPERTIES (NORTHERN) LTD,Adult Social Care,Director of People,Non-Authority Accommodation Rental,,18/01/16,"1,369.89 ",,Facilities & Management Services
5221526,NORTHERN PROPERTIES LTD,Adult Social Care,Director of People,Non-Authority Accommodation Rental,,06/01/16,"1,847.29 ",,Facilities & Management Services
5221527,STAMFORD PROPERTIES,Adult Social Care,Director of People,Non-Authority Accommodation Rental,,18/01/16,"1,017.43 ",,Unclassifiable
5221528,FUSION CARE,Childrens Services,Director of People,Living With Formal Support,,06/01/16,"9,942.14 ",,Social Community Care Supplies & Services
5221534,ALLIANCE DISPOSABLES LTD,Adult Social Care,Director of People,Cleaning Materials,,04/01/16,767.00 ,,Cleaning & Janitorial
5221536,FUSION CARE,Childrens Services,Director of People,Living With Formal Support,,06/01/16,"4,406.43 ",,Social Community Care Supplies & Services
5221539,GREENSCAPE,Adult Social Care,Director of People,Professional Services,,04/01/16,600.00 ,,"Works - Construction, Repair & Maintenance"
5221540,VICTIM SUPPORT,Stronger Communities,Director of People,Professional Services,,11/01/16,"8,250.00 ",,Social Community Care Supplies & Services
5221545,ACME AIR CONDITIONING,Asset & Investment Partnership Management,Director of Place,Purchase Heavy Catering Equipment,,07/01/16,621.00 ,,Building Construction Materials
5221546,DR MARGARET SMITH,Education,Director of People,Professional Services,Business Payment,04/01/16,"1,600.00 ",,Medical
5221552,JDF RESTORATION LTD,Development Growth & Investment,Director of Place,Engineers Works,,01/02/16,"12,400.00 ",,"Works -  Construction, Repair & Maintenance"
5221555,DTZ (CUSHMAN AND WAKEFIELD),Development Growth & Investment,Director of Place,Professional Consultancy Services,,20/01/16,"3,392.90 ",,Non 3rd Party spend  
5221556,REDDIPAK LIMITED,Environmental Services,Director of Place,General Materials,,06/01/16,"1,048.00 ",,Unclassifiable
5221557,MR KELVIN RUTLEDGE QC,Childrens Services,Director of People,Legal Fees,Business Payment,04/01/16,800.00 ,,Unclassifiable
5221559,MR MATT ENTWISTLE,Childrens Services,Director of People,Legal Fees,,04/01/16,"3,000.00 ",,Social Community Care Supplies & Services
5221565,S&M PLUMBING AND HEATING,Childrens Services,Director of People,Living With Formal Support,,04/01/16,534.00 ,,Building Construction Materials
5221566,DWP,Multiple Heads of Service,Multiple Strategic Directorates,Claims Settled,,18/01/16,829.00 ,,Unclassified
5221570,POSTAGE BY PHONE PITNEY BOWES LTD,Exchequer,Director of Governance and Resources,Postages,,06/01/16,"40,000.00 ",,Mail Services�
5221573,ENTRUST,Digital Tameside,Director of Place,Security Services,,27/01/16,"2,960.00 ",,Financial Services
5221574,FUSION CARE,Childrens Services,Director of People,Living With Formal Support,,06/01/16,"12,377.86 ",,Social Community Care Supplies & Services
5221578,NPOWER LIMITED,Environmental Services,Director of Place,Electricity,,04/01/16,"1,332.75 ",,Utilities
5221579,CALLROUND LIMITED,Education,Director of People,Professional Services,,04/01/16,"2,000.00 ",,Public Bodies
5221582,NPOWER LIMITED,Environmental Services,Director of Place,Electricity,,04/01/16,907.34 ,,Utilities
5221584,NPOWER LIMITED,Asset & Investment Partnership Management,Director of Place,Electricity,,06/01/16,"1,167.04 ",,Utilities
5221586,NPOWER LIMITED,Asset & Investment Partnership Management,Director of Place,Electricity,,06/01/16,912.69 ,,Utilities
5221588,NPOWER LIMITED,Asset & Investment Partnership Management,Director of Place,Electricity,,06/01/16,"1,320.95 ",,Utilities
5221589,,Childrens Services,Director of People,Foster Carer Agency Fees,Redacted Supplier,13/01/16,"3,434.10 ",,Social Community Care
5221590,NPOWER LIMITED,Asset & Investment Partnership Management,Director of Place,Electricity,,06/01/16,"1,476.50 ",,Utilities
5221591,NPOWER LIMITED,Asset & Investment Partnership Management,Director of Place,Electricity,,06/01/16,862.88 ,,Utilities
5221595,ABLE COMMUNITY CARE,Adult Social Care,Director of People,Homecare Fees,,04/01/16,"3,047.22 ",,Social Community Care Supplies & Services
5221598,NPOWER LIMITED,Asset & Investment Partnership Management,Director of Place,Electricity,,06/01/16,"2,135.27 ",,Utilities
5221599,,Childrens Services,Director of People,Foster Carer Agency Fees,Redacted Supplier,14/01/16,"3,270.00 ",,Unclassified
5221600,NPOWER LIMITED,Asset & Investment Partnership Management,Director of Place,Electricity,,06/01/16,558.43 ,,Utilities
5221602,,Childrens Services,Director of People,Foster Carer Agency Fees,Redacted Supplier,14/01/16,"3,300.00 ",,Unclassified
5221604,NPOWER LIMITED,Asset & Investment Partnership Management,Director of Place,Electricity,,06/01/16,"1,564.08 ",,Utilities
5221608,NPOWER LIMITED,Asset & Investment Partnership Management,Director of Place,Electricity,,06/01/16,948.26 ,,Utilities
5221614,MARK HANCOCK,Education,Director of People,Professional Services,,14/01/16,"2,600.00 ",,Education
5221618,GREATER MANCHESTER COMBINED AUTHORITY,Capital Programme,(blank),Engineers -External,,18/01/16,"3,000.00 ",,Unclassified
5221619,GREATER MANCHESTER COMBINED AUTHORITY,Environmental Services,Director of Place,Engineers -External,,04/01/16,"1,500.00 ",,Unclassified
5221620,GREATER MANCHESTER COMBINED AUTHORITY,Environmental Services,Director of Place,Engineers -External,,06/01/16,"3,000.00 ",,Unclassified
5221622,GREATER MANCHESTER COMBINED AUTHORITY,Capital Programme,(blank),Engineers -External,,04/01/16,905.52 ,,Unclassified
5221623,GREATER MANCHESTER COMBINED AUTHORITY,Capital Programme,(blank),Engineers -External,,11/01/16,"1,264.52 ",,Unclassified
5221624,GREATER MANCHESTER COMBINED AUTHORITY,Capital Programme,(blank),Engineers -External,,18/01/16,"1,251.70 ",,Unclassified
5221627,NPOWER LIMITED,Asset & Investment Partnership Management,Director of Place,Electricity,,06/01/16,"1,091.38 ",,Utilities
5221629,NPOWER LIMITED,Asset & Investment Partnership Management,Director of Place,Electricity,,06/01/16,779.60 ,,Utilities
5221630,NPOWER LIMITED,Asset & Investment Partnership Management,Director of Place,Electricity,,06/01/16,"1,559.37 ",,Utilities
5221632,NPOWER LIMITED,Asset & Investment Partnership Management,Director of Place,Electricity,,06/01/16,"2,437.44 ",,Utilities
5221634,,Childrens Services,Director of People,Foster Carer Agency Fees,Redacted Supplier,04/01/16,"2,914.29 ",,Social Community Care
5221637,STEP AHEAD RESOURCE SERVICES,Childrens Services,Director of People,Living Without Formal Support,,04/01/16,750.00 ,,Social Community Care
5221640,STEP AHEAD RESOURCE SERVICES,Childrens Services,Director of People,Living Without Formal Support,,04/01/16,850.00 ,,Social Community Care
5221642,STEP AHEAD RESOURCE SERVICES,Childrens Services,Director of People,Living Without Formal Support,,04/01/16,750.00 ,,Social Community Care
5221643,STEP AHEAD RESOURCE SERVICES,Adult Social Care,Director of People,Homecare Fees,,11/01/16,850.00 ,,Social Community Care
5221644,STEP AHEAD RESOURCE SERVICES,Childrens Services,Director of People,Living Without Formal Support,,04/01/16,850.00 ,,Social Community Care
5221646,STEP AHEAD RESOURCE SERVICES,Childrens Services,Director of People,Living Without Formal Support,,04/01/16,850.00 ,,Social Community Care
5221647,STEP AHEAD RESOURCE SERVICES,Childrens Services,Director of People,Living Without Formal Support,,04/01/16,750.00 ,,Social Community Care
5221649,STEP AHEAD RESOURCE SERVICES,Childrens Services,Director of People,Living Without Formal Support,,04/01/16,850.00 ,,Social Community Care
5221650,DAISY COMMUNICATIONS LTD,Multiple Heads of Service,Multiple Strategic Directorates,Debits,,04/01/16,"4,699.17 ",,Public Bodies
5221651,STEP AHEAD RESOURCE SERVICES,Childrens Services,Director of People,Living Without Formal Support,,04/01/16,850.00 ,,Social Community Care
5221652,STEP AHEAD RESOURCE SERVICES,Childrens Services,Director of People,Living Without Formal Support,,04/01/16,750.00 ,,Social Community Care
5221654,NHS GREATER MANCHESTER CSU,Public Health,Director of Public Health,Professional Services,,18/01/16,"2,172.00 ",,Public Bodies
5221656,STEP AHEAD RESOURCE SERVICES,Childrens Services,Director of People,Living Without Formal Support,,04/01/16,750.00 ,,Social Community Care
5221659,STEP AHEAD RESOURCE SERVICES,Childrens Services,Director of People,Living Without Formal Support,,04/01/16,850.00 ,,Social Community Care
5221660,STEP AHEAD RESOURCE SERVICES,Childrens Services,Director of People,Living Without Formal Support,,04/01/16,750.00 ,,Social Community Care
5221661,STEP AHEAD RESOURCE SERVICES,Adult Social Care,Director of People,Homecare Fees,,25/01/16,850.00 ,,Social Community Care
5221665,STEP AHEAD RESOURCE SERVICES,Childrens Services,Director of People,Living Without Formal Support,,04/01/16,850.00 ,,Social Community Care
5221666,UNICEF BABY FRIENDLY INITIATIVE,Public Health,Director of Public Health,Training Course Costs,,18/01/16,"5,700.00 ",,Unclassified
5221667,STEP AHEAD RESOURCE SERVICES,Childrens Services,Director of People,Living Without Formal Support,,04/01/16,750.00 ,,Social Community Care
5221668,STEP AHEAD RESOURCE SERVICES,Childrens Services,Director of People,Living Without Formal Support,,04/01/16,850.00 ,,Social Community Care
5221669,STEP AHEAD RESOURCE SERVICES,Childrens Services,Director of People,Living Without Formal Support,,04/01/16,850.00 ,,Social Community Care
5221670,STEP AHEAD RESOURCE SERVICES,Childrens Services,Director of People,Living Without Formal Support,,04/01/16,750.00 ,,Social Community Care
5221673,STEP AHEAD RESOURCE SERVICES,Childrens Services,Director of People,Living Without Formal Support,,06/01/16,750.00 ,,Social Community Care
5221675,STEP AHEAD RESOURCE SERVICES,Childrens Services,Director of People,Living Without Formal Support,,21/01/16,850.00 ,,Social Community Care
5221676,STEP AHEAD RESOURCE SERVICES,Childrens Services,Director of People,Living Without Formal Support,,06/01/16,750.00 ,,Social Community Care
5221677,STEP AHEAD RESOURCE SERVICES,Adult Social Care,Director of People,Homecare Fees,,25/01/16,850.00 ,,Social Community Care
5221678,STEP AHEAD RESOURCE SERVICES,Childrens Services,Director of People,Living Without Formal Support,,06/01/16,750.00 ,,Social Community Care
5221679,STEP AHEAD RESOURCE SERVICES,Childrens Services,Director of People,Living Without Formal Support,,07/01/16,850.00 ,,Social Community Care
5221682,STEP AHEAD RESOURCE SERVICES,Childrens Services,Director of People,Living Without Formal Support,,06/01/16,750.00 ,,Social Community Care
5221684,SIGNIS LTD,Childrens Services,Director of People,It Equipment,,11/01/16,"8,600.00 ",,Unclassifiable
5221685,PETERS BOOKSELLING SERVICES,Stronger Communities,Director of People,Purchase Books,,04/01/16,"2,647.66 ",,Education
5221688,MAJESTIC PUBLICATIONS LTD,Governance,Director of Governance and Resources,"Marketing, Publicity and Recruitment",,11/01/16,500.00 ,,Education
5221690,TRIANGLE CARE GROUP,Childrens Services,Director of People,Living With Formal Support,,04/01/16,"5,300.00 ",,Social & Community
5221691,TRIANGLE CARE GROUP,Childrens Services,Director of People,Living With Formal Support,,04/01/16,"5,300.00 ",,Social & Community
5221706,UNITED UTILITIES WATER PLC,Asset & Investment Partnership Management,Director of Place,Metered Water Costs,,06/01/16,"2,751.84 ",,Utilities
5221710,LEGAL ESCROW & ARBITRATION SERVICES LTD,Finance,Director of Governance and Resources,Subscriptions,,25/01/16,520.00 ,,Legal Services
5221711,PLATINUM STAIRLIFTS LIMITED,Housing,Director of Place,Improvement Grants - Final Mandatory,,04/01/16,"3,143.75 ",,Social & Community
5221714,BT PLC,Asset & Investment Partnership Management,Director of Place,Telephone Landline Costs,,06/01/16,"1,963.23 ",,Information Communication Technology
5221716,SSI SCHAEFER LTD,Environmental Services,Director of Place,Refuse Domestic Bin Purchases,,06/01/16,"2,182.30 ",,Environmental Services
5221717,SSI SCHAEFER LTD,Environmental Services,Director of Place,Refuse Domestic Bin Purchases,,06/01/16,"25,228.80 ",,Environmental Services
5221718,BT PLC,Asset & Investment Partnership Management,Director of Place,Telephone Landline Costs,,06/01/16,"2,040.18 ",,Information Communication Technology
5221720,BT PLC,Asset & Investment Partnership Management,Director of Place,Telephone Landline Costs,,06/01/16,"1,963.23 ",,Information Communication Technology
5221724,G HILL,Tameside Investment Partnership,Director of Place,New Accommodation Works,,06/01/16,"2,375.00 ",,Unclassifiable
5221725,S & M BUILDERS TAMESIDE LTD,Environmental Services,Director of Place,Professional Services,,04/01/16,"2,015.00 ",,"Works - Construction, Repair & Maintenance"
5221726,M.C. & M.A. STEWART HAULAGE LTD,Environmental Services,Director of Place,General Materials,,04/01/16,"1,550.00 ",,Horticultural
5221729,MAGNA BOOK LTD,Stronger Communities,Director of People,Purchase Books,,06/01/16,"1,800.79 ",,Education
5221735,DIRECT CARE (NORTH WEST) LTD,Adult Social Care,Director of People,Homecare Fees,,04/01/16,"14,035.53 ",,Social Community Care Supplies & Services
5221737,EON,Environmental Services,Director of Place,Electricity,,06/01/16,"4,051.49 ",,Utilities
5221740,EON,Environmental Services,Director of Place,Electricity,,06/01/16,"3,920.80 ",,Utilities
5221742,THE PENNINE ACUTE HOSPITALS NHS TRUST,Public Health,Director of Public Health,Professional Services,,07/01/16,"1,516.00 ",,Medical
5221749,KILLGERM CHEMICALS LTD,Environmental Services,Director of Place,Pest Control Equipment,,07/01/16,546.82 ,,Environmental Services
5221755,SONIA HEALEY,Stronger Communities,Director of People,Other Accomodation Related Costs,,07/01/16,500.00 ,,Unclassified
5221757,11KBW LIMITED,Multiple Heads of Service,Multiple Strategic Directorates,Legal Fees,,04/01/16,"2,585.00 ",,Legal Services
5221758,NEW IMAGE(PUBLIC RELATIONS) LTD,Stronger Communities,Director of People,Professional Entertainment Services,,07/01/16,"3,555.00 ",,Facilities & Management Services
5221760,,Childrens Services,Director of People,Childrens Homes Outside Local Authority Fees,Redacted Supplier,06/01/16,"1,928.58 ",,Social Community Care
5221765,INTACT PROJECTS LIMITED,Childrens Services,Director of People,Living With Formal Support,,06/01/16,950.00 ,,Social Community Care Supplies & Services
5221766,JL ADVISORY,Asset & Investment Partnership Management,Director of Place,Professional Services,,31/03/16,"1,031.25 ",,Unclassifiable
5221767,THE PHIRST GROUP T/A APEX HEALTH AND SOCIAL CARE,Adult Social Care,Director of People,Homecare Fees,,18/01/16,538.02 ,,Social Community Care Supplies & Services
5221768,THE PHIRST GROUP T/A APEX HEALTH AND SOCIAL CARE,Adult Social Care,Director of People,Homecare Fees,,18/01/16,538.02 ,,Social Community Care Supplies & Services
5221769,THE PHIRST GROUP T/A APEX HEALTH AND SOCIAL CARE,Adult Social Care,Director of People,Homecare Fees,,18/01/16,538.02 ,,Social Community Care Supplies & Services
5221770,THE PHIRST GROUP T/A APEX HEALTH AND SOCIAL CARE,Adult Social Care,Director of People,Homecare Fees,,18/01/16,538.02 ,,Social Community Care Supplies & Services
5221771,ASKEWS  AND HOLTS LIBRARY SERVICES LTD,Stronger Communities,Director of People,Purchase Books,,06/01/16,"1,992.47 ",,Education
5221772,BLACHERE ILLUMINATION UK LTD,Environmental Services,Director of Place,Electrical Works,,13/01/16,"16,583.00 ",,Highway Equipment & Materials�
5221773,DOMAIN CARE NORTH WEST LTD,Adult Social Care,Director of People,Homecare Fees,,07/01/16,"4,060.00 ",,Social Community Care
5221775,,Childrens Services,Director of People,Foster Carer Agency Fees,Redacted Supplier,07/01/16,799.00 ,,Unclassified
5221776,LIFELINE PROJECT LTD (PH),Public Health,Director of Public Health,Professional Services,,07/01/16,"297,833.00 ",,Consultancy
5221778,GEORGE HOUSE TRUST,Public Health,Director of Public Health,Professional Services,,06/01/16,"1,750.00 ",,Medical
5221779,BALLET THEATRE UK,Stronger Communities,Director of People,Professional Entertainment Services,,04/01/16,"1,397.50 ",,Leisure Services
5221781,DOMAIN CARE NORTH WEST LTD,Adult Social Care,Director of People,Homecare Fees,,07/01/16,"1,002.00 ",,Social Community Care
5221783,DOMAIN CARE NORTH WEST LTD,Adult Social Care,Director of People,Homecare Fees,,07/01/16,580.00 ,,Social Community Care
5221787,RESEARCHBODS ONLINE LTD,Governance,Director of Governance and Resources,Professional Services,,11/01/16,"10,000.00 ",,Consultancy
5221789,EDUCATION LANGUAGE LTD,Education,Director of People,Professional Services,,04/01/16,"1,500.00 ",,CONSULTANCY
5221790,,Childrens Services,Director of People,Foster Carer Agency Fees,Redacted Supplier,20/01/16,"13,371.26 ",,Social Community Care
5221791,,Childrens Services,Director of People,Foster Carer Agency Fees,Redacted Supplier,20/01/16,"14,473.86 ",,Social Community Care
5221792,,Childrens Services,Director of People,Foster Carer Agency Fees,Redacted Supplier,20/01/16,"13,371.26 ",,Social Community Care
5221793,,Childrens Services,Director of People,Foster Carer Agency Fees,Redacted Supplier,01/02/16,"13,371.26 ",,Social Community Care
5221794,DOMAIN CARE NORTH WEST LTD,Adult Social Care,Director of People,Homecare Fees,,07/01/16,"1,440.00 ",,Social Community Care
5221796,WILLMOTT DIXON ENERGY SERVICES,Environmental Services,Director of Place,Other Works,,06/01/16,"21,000.00 ",,Unclassifiable
5221797,WILLMOTT DIXON ENERGY SERVICES,Environmental Services,Director of Place,Other Works,,06/01/16,"3,735.31 ",,Unclassifiable
5221798,,Childrens Services,Director of People,Childrens Homes Outside Local Authority Fees,Redacted Supplier,04/01/16,"12,642.60 ",,Social Community Care
5221800,MANCHESTER DOGS HOME,Environmental Services,Director of Place,Professional Consultancy Services,,06/01/16,"1,364.40 ",,Environmental Services
5221801,MANCHESTER DOGS HOME,Environmental Services,Director of Place,Professional Consultancy Services,,06/01/16,636.72 ,,Environmental Services
5221804,,Childrens Services,Director of People,Childrens Homes Outside Local Authority Fees,Redacted Supplier,08/02/16,"13,902.60 ",,Social Community Care
5221807,NCER CIC,Childrens Services,Director of People,Subscriptions,,04/01/16,"1,066.06 ",,Consultancy
5221808,XMA LIMITED,Digital Tameside,Director of Place,It Equipment,,04/01/16,"6,330.00 ",,Information Communication Technology
5221810,CITY LIFT SERVICES (NW) LTD,Adult Social Care,Director of People,General Equipment Repair & Maintenance,,04/01/16,"3,140.00 ",,"Works -  Construction, Repair & Maintenance"
5221811,CITY LIFT SERVICES (NW) LTD,Adult Social Care,Director of People,General Equipment Repair & Maintenance,,04/01/16,"9,725.00 ",,"Works -  Construction, Repair & Maintenance"
5221812,THE PHIRST GROUP T/A APEX HEALTH AND SOCIAL CARE,Adult Social Care,Director of People,Homecare Fees,,07/01/16,538.02 ,,Social Community Care Supplies & Services
5221816,TRINITY MIRROR NORTH PUBLISHING LTD,Governance,Director of Governance and Resources,Printing And Stationery,,06/01/16,"5,320.00 ",,Public Bodies
5221817,NEW CHARTER HOUSING TRUST GROUP,Childrens Services,Director of People,Non-Authority Accommodation Rental,,06/01/16,"2,050.44 ",,Unclassifiable
5221819,BT PLC,Asset & Investment Partnership Management,Director of Place,Telephone Landline Costs,,06/01/16,"1,621.88 ",,Information Communication Technology
5221823,GREAT PLACES HOUSING GROUP,Adult Social Care,Director of People,Non-Authority Accommodation Rental,,07/01/16,"1,086.15 ",,Housing Management
5221826,PROGRESS CARE HOUSING ASSOCIATION LIMITED,Adult Social Care,Director of People,Non-Authority Accommodation Rental,,06/01/16,"5,448.98 ",,Housing Management
5221830,OLDHAM COUNCIL,Environmental Services,Director of Place,Professional Consultancy Services,,06/01/16,"1,080.00 ",,Unclassified
5221831,THE FURNISHING SERVICE (ENGLAND),Stronger Communities,Director of People,Fixtures & Fittings Purchase,,07/01/16,"1,244.62 ",,Furniture
5221832,OLDHAM COUNCIL,Environmental Services,Director of Place,Professional Consultancy Services,,06/01/16,980.00 ,,Unclassified
5221833,OLDHAM COUNCIL,Environmental Services,Director of Place,Professional Consultancy Services,,06/01/16,"1,187.67 ",,Unclassified
5221834,MANCHESTER DOGS HOME,Environmental Services,Director of Place,Professional Consultancy Services,,06/01/16,682.20 ,,Environmental Services
5221835,THE FURNISHING SERVICE (ENGLAND),Stronger Communities,Director of People,Fixtures & Fittings Purchase,,07/01/16,"1,205.63 ",,Furniture
5221836,THE FURNISHING SERVICE (ENGLAND),Stronger Communities,Director of People,Fixtures & Fittings Purchase,,07/01/16,552.79 ,,Furniture
5221839,PROFILE SECURITY SERVICES LIMITED,Asset & Investment Partnership Management,Director of Place,Security Services,,27/01/16,"1,165.52 ",,Facilities & Management Services
5221840,,Childrens Services,Director of People,Foster Carer Agency Fees,Redacted Supplier,06/01/16,"2,624.29 ",,Social Community Care
5221841,,Childrens Services,Director of People,Foster Carer Agency Fees,Redacted Supplier,11/01/16,"1,470.00 ",,Social Community Care
5221842,NEW CHARTER HOUSING TRUST GROUP,Asset & Investment Partnership Management,Director of Place,Non-Authority Accommodation Rental,,24/02/16,795.04 ,,Unclassifiable
5221843,,Childrens Services,Director of People,Foster Carer Agency Fees,Redacted Supplier,11/01/16,"2,892.86 ",,Social Community Care
5221844,,Childrens Services,Director of People,Foster Carer Agency Fees,Redacted Supplier,11/01/16,"3,578.57 ",,Social Community Care
5221845,,Childrens Services,Director of People,Foster Carer Agency Fees,Redacted Supplier,06/01/16,"3,420.00 ",,Social Community Care
5221846,PROFILE SECURITY SERVICES LIMITED,Asset & Investment Partnership Management,Director of Place,Security Services,,04/01/16,"1,478.33 ",,Facilities & Management Services
5221850,NEW CHARTER HOUSING TRUST GROUP,Asset & Investment Partnership Management,Director of Place,Non-Authority Accommodation Rental,,24/02/16,"1,004.16 ",,Unclassifiable
5221852,BT PLC,Asset & Investment Partnership Management,Director of Place,Telephone Landline Costs,,06/01/16,"1,118.00 ",,Information Communication Technology
5221853,NEW CHARTER HOUSING TRUST GROUP,Adult Social Care,Director of People,Non-Authority Accommodation Rental,,06/01/16,"2,607.84 ",,Unclassifiable
5221854,SHERIDAN DESIGN,Stronger Communities,Director of People,General Materials,,04/01/16,"2,845.00 ",,Financial Services
5221855,ALLIED HEALTHCARE GROUP LTD (MEDICO),Adult Social Care,Director of People,Homecare Fees,,04/01/16,"8,367.07 ",,Social Community Care Supplies & Services
5221856,PROFILE SECURITY SERVICES LIMITED,Environmental Services,Director of Place,Security Services,,11/01/16,"2,356.75 ",,Facilities & Management Services
5221857,ROYAL MENCAP SOCIETY,Adult Social Care,Director of People,Voluntary Organisations Fees,,04/01/16,"9,914.40 ",,Social Community Care Supplies & Services
5221860,THE UNIVERSITY OF MANCHESTER,Adult Social Care,Director of People,Training Course Costs,,10/03/16,"1,360.00 ",,Unclassified
5221861,ULVERSCROFT LARGE PRINT  BOOKS LTD,Stronger Communities,Director of People,Purchase Books,,06/01/16,"1,801.48 ",,Education
5221865,,Childrens Services,Director of People,Childrens Homes Outside Local Authority Fees,Redacted Supplier,04/02/16,"12,842.99 ",,Social Community Care
5221866,PERSON CENTRED CARE SERVICES LIMITED,Adult Social Care,Director of People,Homecare Fees,,06/01/16,527.10 ,,Medical
5221870,,Childrens Services,Director of People,Foster Carer Agency Fees,Redacted Supplier,06/01/16,"4,050.00 ",,Social Community Care
5221871,THE CHESHIRE & GREATER MANCHESTER COMMUNITY REHABILITATION COMPANY LTD,Strategy & Early Intervention,Director of People,Professional Services,,02/03/16,"21,677.00 ",,Unclassifiable
5221875,,Childrens Services,Director of People,Foster Carer Agency Fees,Redacted Supplier,06/01/16,"3,747.00 ",,Social Community Care
5221878,THE ROYAL NATIONAL COLLEGE FOR THE BLIND,Education,Director of People,Voluntary Organisations Fees,,07/01/16,"2,839.28 ",,Social Community Care
5221879,TEACHING PERSONNEL LTD,Individual Schools Budget,Director of People,Agency Staff,,06/01/16,800.00 ,,Human Resources
5221881,DIRECT CARE (NORTH WEST) LTD,Adult Social Care,Director of People,Homecare Fees,,06/01/16,"13,804.95 ",,Social Community Care Supplies & Services
5221883,LAUREL BANK SUPPORT AT HOME,Adult Social Care,Director of People,Homecare Fees,,11/01/16,"2,526.77 ",,Social Community Care Supplies & Services
5221884,DOMAIN CARE NORTH WEST LTD,Adult Social Care,Director of People,Homecare Fees,,11/01/16,"1,002.00 ",,Social Community Care
5221887,PROFILE SECURITY SERVICES LIMITED,Environmental Services,Director of Place,General Materials,,07/01/16,"4,761.90 ",,Facilities & Management Services
5221891,STOCKPORT NHS FOUNDATION TRUST,Childrens Services,Director of People,Homecare Fees,,06/01/16,"2,363.75 ",,Medical
5221892,TMP UK LTD,Governance,Director of Governance and Resources,Fee Income,,13/01/16,575.00 ,,Human Resources
5221893,STOCKPORT NHS FOUNDATION TRUST,Childrens Services,Director of People,Homecare Fees,,06/01/16,"1,891.00 ",,Medical
5221898,P MCGUINNESS & CO LTD,Capital Programme,(blank),Contractor Expenditure,,11/01/16,"1,077.00 ",,"Works - Construction, Repair & Maintenance"
5221899,CROMWELL POLYTHENE LTD.,Environmental Services,Director of Place,Purchase Wheeled Bins,,11/01/16,"8,985.60 ",,Unclassified
5221901,VCS PEAKS & DALES (TAMESIDE ASPIRE),Childrens Services,Director of People,Homecare Fees,,06/01/16,619.52 ,,Social & Community
5221904,,Childrens Services,Director of People,Childrens Homes Outside Local Authority Fees,Redacted Supplier,11/01/16,"19,928.66 ",,Social Community Care
5221905,CCW CARE LTD,Adult Social Care,Director of People,Professional Services,,07/01/16,840.00 ,,Human Resources
5221908,,Childrens Services,Director of People,Childrens Homes Outside Local Authority Fees,Redacted Supplier,07/01/16,"15,500.00 ",,Social Community Care
5221909,,Childrens Services,Director of People,Childrens Homes Outside Local Authority Fees,Redacted Supplier,11/01/16,"12,400.00 ",,Social Community Care
5221912,THE FURNISHING SERVICE (ENGLAND),Stronger Communities,Director of People,Fixtures & Fittings Purchase,,07/01/16,"1,061.56 ",,Furniture
5221914,FAIRFIELD RESIDENTIAL,Education,Director of People,Voluntary Organisations Fees,,06/01/16,"3,200.00 ",,Human Resources
5221918,THE FURNISHING SERVICE (ENGLAND),Stronger Communities,Director of People,Fixtures & Fittings Purchase,,07/01/16,756.62 ,,Furniture
5221920,APPLIED PSYCHOLOGIES,Education,Director of People,Professional Services,,07/01/16,600.00 ,,Education
5221922,ALTERNATIVE FUTURES GROUP,Adult Social Care,Director of People,Homecare Fees,,07/01/16,"10,710.40 ",,Social Community Care Supplies & Services
5221923,LOUISE LIGHTFOOT,Education,Director of People,Professional Services,Business Payment,11/01/16,"1,200.00 ",,Medical
5221924,ALTERNATIVE FUTURES GROUP,Adult Social Care,Director of People,Homecare Fees,,11/01/16,"138,141.84 ",,Social Community Care Supplies & Services
5221925,ALTERNATIVE FUTURES GROUP,Adult Social Care,Director of People,Homecare Fees,,11/01/16,"25,744.12 ",,Social Community Care Supplies & Services
5221927,THE FURNISHING SERVICE (ENGLAND),Stronger Communities,Director of People,Fixtures & Fittings Purchase,,11/01/16,501.09 ,,Furniture
5221929,ALTERNATIVE FUTURES GROUP,Adult Social Care,Director of People,Homecare Fees,,11/01/16,"138,833.33 ",,Social Community Care Supplies & Services
5221931,THE FURNISHING SERVICE (ENGLAND),Stronger Communities,Director of People,Fixtures & Fittings Purchase,,11/01/16,961.88 ,,Furniture
5221933,STOCKPORT NHS FOUNDATION TRUST,Public Health,Director of Public Health,Professional Services,,04/02/16,"1,464.39 ",,Medical
5221938,PATROL,Environmental Services,Director of Place,Professional Interpreter Services,,06/01/16,"1,567.15 ",,Unclassifiable
5221946,J2PROFIT LTD,Development Growth & Investment,Director of Place,Survey/Surveyors Fees,,17/02/16,"2,695.60 ",,Unclassifiable
5221947,THE CHESHIRE & GREATER MANCHESTER COMMUNITY REHABILITATION COMPANY LTD,Environmental Services,Director of Place,Professional Services,,25/02/16,"7,000.00 ",,Unclassifiable
5221950,STOCKPORT NHS FOUNDATION TRUST,Public Health,Director of Public Health,Training Course Costs,,11/01/16,"3,000.00 ",,Medical
5221951,SOUTHERN ELECTRIC GAS,Asset & Investment Partnership Management,Director of Place,Electricity,,06/01/16,814.72 ,,Public Bodies
5221953,STOCKPORT NHS FOUNDATION TRUST,Education,Director of People,Professional Services,,06/01/16,"3,333.00 ",,Medical
5221954,ESRI (UK) LTD,Environmental Services,Director of Place,Computer Software,,07/01/16,"28,530.00 ",,Information Communication Technology
5221959,THE SUNFLOWER CHILDRENS CENTRE,Public Health,Director of Public Health,Child Care Fees,,18/01/16,798.00 ,,Social Community Care Supplies & Services
5221963,ASKEWS  AND HOLTS LIBRARY SERVICES LTD,Stronger Communities,Director of People,Purchase Books,,11/01/16,"2,306.25 ",,Education
5221966,GRAYSONS H&E SERVICES LTD,Environmental Services,Director of Place,Professional Weedspraying Services,,06/01/16,"5,253.75 ",,Horticultural
5221968,,Childrens Services,Director of People,Childrens Homes Outside Local Authority Fees,Redacted Supplier,07/01/16,"19,707.14 ",,Social Community Care Supplies & Services
5221969,,Childrens Services,Director of People,Childrens Homes Outside Local Authority Fees,Redacted Supplier,07/01/16,"26,700.00 ",,Social Community Care Supplies & Services
5221973,STEP AHEAD RESOURCE SERVICES,Childrens Services,Director of People,Living With Formal Support,,11/01/16,750.00 ,,Social Community Care
5221974,STEP AHEAD RESOURCE SERVICES,Childrens Services,Director of People,Living With Formal Support,,11/01/16,850.00 ,,Social Community Care
5221975,STEP AHEAD RESOURCE SERVICES,Childrens Services,Director of People,Living With Formal Support,,11/01/16,750.00 ,,Social Community Care
5221976,STEP AHEAD RESOURCE SERVICES,Childrens Services,Director of People,Living With Formal Support,,11/01/16,850.00 ,,Social Community Care
5221977,STEP AHEAD RESOURCE SERVICES,Adult Social Care,Director of People,Homecare Fees,,11/01/16,850.00 ,,Social Community Care
5221978,STEP AHEAD RESOURCE SERVICES,Childrens Services,Director of People,Living With Formal Support,,11/01/16,750.00 ,,Social Community Care
5221980,STEP AHEAD RESOURCE SERVICES,Childrens Services,Director of People,Living With Formal Support,,11/01/16,750.00 ,,Social Community Care
5221981,LAUREL BANK SUPPORT AT HOME,Adult Social Care,Director of People,Homecare Fees,,06/01/16,"2,758.38 ",,Social Community Care Supplies & Services
5221984,SPECIALISED HOMES AND LODGINGS LTD,Childrens Services,Director of People,Living With Formal Support,,06/01/16,"3,357.13 ",,Unclassifiable
5221985,RADIO CABS (ASHTON)LTD,Childrens Services,Director of People,Staff Travel Costs,,06/01/16,674.20 ,,Transport
5221989,ADONI SOFTWARE,Digital Tameside,Director of Place,Computer Software,,11/01/16,"1,625.00 ",,Information Communication Technology
5221990,"TAMESIDE, OLDHAM AND GLOSSOP MIND",Public Health,Director of Public Health,Refreshments,,06/01/16,577.50 ,,Social Community Care Supplies & Services
5221991,HOWARD COOK,Individual Schools Budget,Director of People,Professional Services,Business Payment,06/01/16,725.00 ,,Unclassifiable
5221992,STEP AHEAD RESOURCE SERVICES,Childrens Services,Director of People,Living With Formal Support,,11/01/16,850.00 ,,Social Community Care
5221993,STEP AHEAD RESOURCE SERVICES,Childrens Services,Director of People,Living With Formal Support,,11/01/16,750.00 ,,Social Community Care
5221994,STEP AHEAD RESOURCE SERVICES,Childrens Services,Director of People,Living With Formal Support,,11/01/16,850.00 ,,Social Community Care
5221995,STEP AHEAD RESOURCE SERVICES,Childrens Services,Director of People,Living With Formal Support,,11/01/16,850.00 ,,Social Community Care
5221996,STEP AHEAD RESOURCE SERVICES,Childrens Services,Director of People,Living With Formal Support,,11/01/16,750.00 ,,Social Community Care
5221997,STEP AHEAD RESOURCE SERVICES,Childrens Services,Director of People,Living With Formal Support,,11/01/16,850.00 ,,Social Community Care
5221999,STEP AHEAD RESOURCE SERVICES,Childrens Services,Director of People,Living With Formal Support,,11/01/16,850.00 ,,Social Community Care
5222002,PERSON CENTRED CARE SERVICES LIMITED,Adult Social Care,Director of People,Homecare Fees,,06/01/16,513.21 ,,Medical
5222003,TAMESIDE ARTS LTD,Adult Social Care,Director of People,Professional Services,,20/01/16,"1,071.00 ",,Leisure Services
5222012,STEWART CLURE,Stronger Communities,Director of People,Other Accomodation Related Costs,,07/01/16,650.00 ,,Unclassifiable
5222013,FREECLAIM SOLICITORS,Multiple Heads of Service,Multiple Strategic Directorates,Claims Settled,,11/01/16,"1,540.00 ",,Legal Services
5222014,TRIANGLE CARE GROUP,Childrens Services,Director of People,Living With Formal Support,,07/01/16,"5,300.00 ",,Social & Community
5222015,UNIT 4 BUSINESS SOFTWARE (IRELAND) LTD,Finance,Director of Governance and Resources,Computer Software Maintenance Costs,,09/03/16,"2,663.03 ",,Information Communication Technology
5222021,VICKI HAMILTON,Childrens Services,Director of People,Professional Services,Business Payment,06/01/16,781.74 ,,Unclassifiable
5222022,IDOX SOFTWARE LIMITED,Digital Tameside,Director of Place,Computer Software,,11/01/16,"2,850.00 ",,Information Communication Technology
5222024,S & S MARQUEES,Stronger Communities,Director of People,Professional Entertainment Services,Business Payment,11/01/16,570.00 ,,Leisure Services
5222028,ROCHDALE MBC,Adult Social Care,Director of People,Residential Home Short Stay Fees,,18/01/16,"2,571.43 ",,Unclassified
5222029,NEW BRIDGE HORIZONS,Adult Social Care,Director of People,Homecare Fees,,07/01/16,"1,761.75 ",,Social Community Care Supplies & Services
5222030,NEW BRIDGE HORIZONS,Adult Social Care,Director of People,Homecare Fees,,07/01/16,"1,751.25 ",,Social Community Care Supplies & Services
5222033,THE CHESHIRE & GREATER MANCHESTER COMMUNITY REHABILITATION COMPANY LTD,Public Health,Director of Public Health,Professional Services,,07/01/16,"24,892.68 ",,Unclassifiable
5222034,N A BROWN LTD,Environmental Services,Director of Place,General Materials,,06/01/16,"1,154.25 ",,Unclassifiable
5222038,ARCO LIMITED,Environmental Services,Director of Place,Protective Clothing,,06/01/16,971.75 ,,Clothing
5222041,CREATIVE SUPPORT LTD,Adult Social Care,Director of People,Residential Home Long Stay Fees,,07/01/16,"1,661.52 ",,Social Community Care Supplies & Services
5222059,INDEPENDENT CATERING SERVICES,Asset & Investment Partnership Management,Director of Place,Purchase Heavy Catering Equipment,,11/01/16,660.40 ,,Catering
5222060,ASHTON PIONEER HOMES,Childrens Services,Director of People,Other Accomodation Related Costs,,06/01/16,"1,491.39 ",,Housing Management
5222063,BARRACUDA NETWORKS LTD,Digital Tameside,Director of Place,Computer Software Maintenance Costs,,06/01/16,"10,955.70 ",,Information Communication Technology
5222064,MRL HEALTHCARE LIMITED,Adult Social Care,Director of People,Homecare Fees,,06/01/16,"2,980.50 ",,Social Community Care Supplies & Services
5222065,MRL HEALTHCARE LIMITED,Adult Social Care,Director of People,Homecare Fees,,06/01/16,"2,850.87 ",,Social Community Care Supplies & Services
5222066,TORDAN HEALTHCARE LTD,Childrens Services,Director of People,Homecare Fees,,06/01/16,"4,310.40 ",,Medical
5222067,,Childrens Services,Director of People,Childrens Homes Outside Local Authority Fees,Redacted Supplier,06/01/16,"13,064.02 ",,Social Community Care
5222069,TORDAN HEALTHCARE LTD,Childrens Services,Director of People,Homecare Fees,,06/01/16,"7,070.88 ",,Medical
5222071,HMCTS (FOR PAYMENT BY ACCOUNT),Childrens Services,Director of People,Court Fees,,11/01/16,"9,140.00 ",,Unclassified
5222073,HMCTS (FOR PAYMENT BY ACCOUNT),Exchequer,Director of Governance and Resources,Court Fees,,11/01/16,"2,600.00 ",,Unclassified
5222074,SHOWSEC INTERNATIONAL LTD,Stronger Communities,Director of People,Professional Entertainment Services,,06/01/16,665.85 ,,Facilities & Management Services
5222077,KALAMAZOO SECURE SOLUTIONS LTD,Finance,Director of Governance and Resources,Postages,,06/01/16,12.95 ,,Facilities & Management Services
5222077,KALAMAZOO SECURE SOLUTIONS LTD,Finance,Director of Governance and Resources,Printing And Stationery,,06/01/16,"3,850.00 ",,Facilities & Management Services
5222078,GETRONICS UNIFIED COMMUNICATIONS UK LIMITED,Multiple Heads of Service,Multiple Strategic Directorates,Communications Equipment,,24/02/16,"6,117.71 ",,Information Communication Technology
5222081,"GROUNDWORK M/CR,SALFORD,STOCKPORT,TAMESIDE&TRAFFOD",Asset & Investment Partnership Management,Director of Place,Non-Authority Accommodation Rental,,13/01/16,"9,597.00 ",,"Works - Construction, Repair & Maintenance"
5222087,THE PHIRST GROUP T/A APEX HEALTH AND SOCIAL CARE,Adult Social Care,Director of People,Homecare Fees,,07/01/16,538.00 ,,Social Community Care Supplies & Services
5222091,MEW CARE LTD,Adult Social Care,Director of People,Professional Services,,11/01/16,840.00 ,,Human Resources
5222092,WILLIAMS WOODWARD LTD,Finance,Director of Governance and Resources,Professional Consultancy Services,,07/01/16,"1,245.00 ",,CONSULTANCY
5222093,WILLIAMS WOODWARD LTD,Finance,Director of Governance and Resources,Professional Consultancy Services,,07/01/16,"2,295.00 ",,CONSULTANCY
5222095,WILLIAMS WOODWARD LTD,Finance,Director of Governance and Resources,Professional Consultancy Services,,07/01/16,830.00 ,,CONSULTANCY
5222097,CLICKS TO APPS LTD,Childrens Services,Director of People,Professional Services,,11/01/16,"1,200.00 ",,Unclassifiable
5222102,THE GUINNESS PARTNERSHIP LTD,Adult Social Care,Director of People,Non-Authority Accommodation Rental,,07/01/16,"1,221.48 ",,Housing Management
5222103,BT PLC,Adult Social Care,Director of People,Telephone Landline Costs,,20/01/16,731.00 ,,Information Communication Technology
5222104,THE GUINNESS PARTNERSHIP LTD,Adult Social Care,Director of People,Non-Authority Accommodation Rental,,07/01/16,"4,066.40 ",,Housing Management
5222106,HMS DECORATIVE SURFACING LTD,Capital Programme,(blank),Road Marking Works,,20/01/16,"2,093.00 ",,Building Construction Materials
5222109,CREATIVE IDEAS IN PRINT LTD,Governance,Director of Governance and Resources,Printing And Stationery,,06/01/16,"1,064.40 ",,Facilities & Management Services
5222116,BT PLC,Asset & Investment Partnership Management,Director of Place,Telephone Landline Costs,,07/01/16,"1,621.88 ",,Information Communication Technology
5222118,ALLIED HEALTHCARE GROUP LTD (MEDICO),Adult Social Care,Director of People,Homecare Fees,,07/01/16,"8,439.66 ",,Social Community Care Supplies & Services
5222119,PROGRESS CARE HOUSING ASSOCIATION LIMITED,Adult Social Care,Director of People,Non-Authority Accommodation Rental,,14/01/16,"5,448.98 ",,Housing Management
5222120,DOMAIN CARE NORTH WEST LTD,Adult Social Care,Director of People,Homecare Fees,,07/01/16,526.69 ,,Social Community Care
5222123,PERFORMING ARTS NETWORK AND DEVELOPMENT AGENCY,Stronger Communities,Director of People,General Materials,,07/01/16,"1,400.00 ",,Unclassifiable
5222124,,Education,Director of People,Under 5'S Education Private Day Nursery Fees,Redacted Supplier,11/01/16,"8,000.44 ",,Unclassifiable
5222126,NATIONAL GRID plc,Engineers Client,Director of Place,Telecom,,07/01/16,"3,110.76 ",,Unclassified
5222127,ABLE CARE AND SUPPORT SERVICES LTD,Adult Social Care,Director of People,Homecare Fees,,07/01/16,"1,955.66 ",,Social Community Care Supplies & Services
5222128,ABLE CARE AND SUPPORT SERVICES LTD,Adult Social Care,Director of People,Homecare Fees,,07/01/16,"2,326.20 ",,Social Community Care Supplies & Services
5222130,DIRECT CARE (NORTH WEST) LTD,Adult Social Care,Director of People,Homecare Fees,,07/01/16,"13,627.66 ",,Social Community Care Supplies & Services
5222131,TAMESIDE SPORTS TRUST,Adult Social Care,Director of People,Professional Services,,07/01/16,"3,916.80 ",,Leisure Services
5222133,STEP AHEAD RESOURCE SERVICES,Adult Social Care,Director of People,Homecare Fees,,25/01/16,850.00 ,,Social Community Care
5222138,NORTHERN PROPERTIES LTD,Adult Social Care,Director of People,Non-Authority Accommodation Rental,,11/01/16,"1,847.29 ",,Facilities & Management Services
5222143,PRISM MEDICAL UK,Housing,Director of Place,Improvement Grants - Final Mandatory,,11/01/16,"1,986.40 ",,Medical
5222144,PRISM MEDICAL UK,Housing,Director of Place,Improvement Grants - Final Mandatory,,11/01/16,"4,150.47 ",,Medical
5222145,PRISM MEDICAL UK,Housing,Director of Place,Improvement Grants - Final Mandatory,,11/01/16,"2,710.00 ",,Medical
5222146,THE FURNISHING SERVICE (ENGLAND),Stronger Communities,Director of People,Fixtures & Fittings Purchase,,13/01/16,998.87 ,,Furniture
5222147,PRD PROPERTY SERVICES LTD,Governance,Director of Governance and Resources,Legal Fees,,13/01/16,"4,128.00 ",,Facilities & Management Services
5222149,THE FAMILY UNIT LTD,Adult Social Care,Director of People,Homecare Fees,,11/01/16,"5,978.00 ",,Social Community Care
5222150,HEALTH MANAGEMENT (UK) LTD,Governance,Director of Governance and Resources,Professional Services,,11/01/16,"6,128.30 ",,Medical
5222154,UNIVERSITY OF BIRMINGHAM,Education,Director of People,Training Course Costs,,13/01/16,"3,385.00 ",,Unclassified
5222155,UNIVERSITY OF BIRMINGHAM,Education,Director of People,Training Course Costs,,13/01/16,"3,385.00 ",,Unclassified
5222162,SANTANDER UK PLC,Finance,Director of Governance and Resources,National Giro,,11/01/16,"4,125.12 ",,Financial Services
5222163,SANTANDER UK PLC,Finance,Director of Governance and Resources,National Giro,,11/01/16,615.84 ,,Financial Services
5222164,SANTANDER UK PLC,Finance,Director of Governance and Resources,National Giro,,11/01/16,"5,581.34 ",,Financial Services
5222166,INTACT PROJECTS LIMITED,Childrens Services,Director of People,Living With Formal Support,,18/01/16,950.00 ,,Social Community Care Supplies & Services
5222167,INTACT PROJECTS LIMITED,Childrens Services,Director of People,Living With Formal Support,,13/01/16,"1,430.00 ",,Social Community Care Supplies & Services
5222169,MARK HARLOW,Environmental Services,Director of Place,Hired Transport,Business Payment,11/01/16,"1,470.00 ",,Transport
5222173,MOSSLEY PRIVATE HIRE,Environmental Services,Director of Place,Hired Transport,,11/01/16,944.00 ,,Transport
5222174,MOSSLEY PRIVATE HIRE,Environmental Services,Director of Place,Hired Transport,,11/01/16,998.00 ,,Transport
5222175,MOSSLEY PRIVATE HIRE,Environmental Services,Director of Place,Hired Transport,,11/01/16,510.00 ,,Transport
5222176,MOSSLEY PRIVATE HIRE,Strategy & Early Intervention,Director of People,Hired Transport,,11/01/16,"2,330.00 ",,Transport
5222177,MOSSLEY PRIVATE HIRE,Education,Director of People,Transport Of Pupils,,11/01/16,"1,400.00 ",,Transport
5222179,LIME TRAVEL,Strategy & Early Intervention,Director of People,Hired Transport,,11/01/16,"1,769.00 ",,Human Resources
5222180,PARKLANE,Environmental Services,Director of Place,Hired Transport,,11/01/16,"1,108.80 ",,Transport
5222181,PARKLANE,Environmental Services,Director of Place,Hired Transport,,11/01/16,"1,344.00 ",,Transport
5222182,W A MEADOWCROFT,Environmental Services,Director of Place,Hired Transport,Business Payment,11/01/16,"1,120.00 ",,Unclassifiable
5222183,MR JOHN DELANEY,Education,Director of People,Transport Of Pupils,Business Payment,11/01/16,"1,260.00 ",,Unclassified
5222184,MR JOHN DELANEY,Education,Director of People,Transport Of Post 16 Pupils,Business Payment,11/01/16,"1,400.00 ",,Unclassified
5222185,SPECIALISED HOMES AND LODGINGS LTD,Childrens Services,Director of People,Living With Formal Support,,13/01/16,"3,764.28 ",,Unclassifiable
5222186,MR JOHN DELANEY,Education,Director of People,Transport Of Pupils,Business Payment,11/01/16,"1,750.00 ",,Unclassified
5222187,MR JOHN DELANEY,Education,Director of People,Transport Of Pupils,Business Payment,11/01/16,"1,400.00 ",,Unclassified
5222188,MR JOHN DELANEY,Education,Director of People,Transport Of Pupils,Business Payment,11/01/16,"1,400.00 ",,Unclassified
5222190,DENTON LINKS,Education,Director of People,Transport Of Ola Pupils,,11/01/16,"1,610.00 ",,Transport
5222191,DENTON LINKS,Education,Director of People,Transport Of Ola Pupils,,11/01/16,"1,974.00 ",,Transport
5222192,DAVID CROZIER,Education,Director of People,Transport Of Post 16 Pupils,Business Payment,11/01/16,"1,344.00 ",,Unclassifiable
5222194,DAVID CROZIER,Education,Director of People,Transport Of Pupils,Business Payment,11/01/16,"1,064.00 ",,Unclassifiable
5222196,DAVID CROZIER,Education,Director of People,Transport Of Post 16 Pupils,Business Payment,11/01/16,"1,344.00 ",,Unclassifiable
5222197,LIME TRAVEL,Education,Director of People,Transport Of Ola Pupils,,11/01/16,"1,120.00 ",,Human Resources
5222199,LIME TRAVEL,Education,Director of People,Transport Of Pupils,,11/01/16,"1,274.00 ",,Human Resources
5222201,LIME TRAVEL,Education,Director of People,Transport Of Pupils,,11/01/16,"1,435.00 ",,Human Resources
5222202,LIME TRAVEL,Education,Director of People,Transport Of Ola Pupils,,11/01/16,"1,435.00 ",,Human Resources
5222204,LIME TRAVEL,Education,Director of People,Transport Of Pupils,,11/01/16,"1,274.00 ",,Human Resources
5222206,LIME TRAVEL,Education,Director of People,Transport Of Ola Pupils,,11/01/16,"1,211.00 ",,Human Resources
5222210,W A MEADOWCROFT,Education,Director of People,Transport Of Pupils,Business Payment,11/01/16,630.00 ,,Unclassifiable
5222212,G M GREEN,Education,Director of People,Transport Of Pupils,Business Payment,11/01/16,980.00 ,,Social Community Care Supplies & Services
5222213,B MORRELL,Environmental Services,Director of Place,Hired Transport,Business Payment,11/01/16,718.75 ,,Social Community Care
5222214,B MORRELL,Education,Director of People,Transport Of Pupils,Business Payment,11/01/16,"1,400.00 ",,Social Community Care
5222215,J & R TAXIS LTD,Environmental Services,Director of Place,Hired Transport,,11/01/16,"2,030.00 ",,Transport
5222217,ROYALE MINICOACHES,Education,Director of People,Transport Of Pupils,,11/01/16,"1,400.00 ",,Unclassified
5222219,MICHAEL ADLARD,Education,Director of People,Transport Of Pupils,Business Payment,11/01/16,"1,120.00 ",,Transport
5222220,KROLL ONTRACK LTD,Digital Tameside,Director of Place,Computer Software Maintenance Costs,,11/01/16,998.16 ,,Information Communication Technology
5222221,MICHAEL ADLARD,Education,Director of People,Transport Of Pupils,Business Payment,11/01/16,"1,120.00 ",,Transport
5222224,GLENN CAWTHORN,Education,Director of People,Transport Of Pupils,Business Payment,11/01/16,897.50 ,,Transport
5222229,STAMFORD CARS UK LTD,Environmental Services,Director of Place,Hired Transport,,11/01/16,560.00 ,,Transport
5222234,STAMFORD CARS UK LTD,Environmental Services,Director of Place,Hired Transport,,11/01/16,720.00 ,,Transport
5222235,STAMFORD CARS UK LTD,Education,Director of People,Transport Of Ola Pupils,,11/01/16,"1,774.50 ",,Transport
5222236,STAMFORD CARS UK LTD,Environmental Services,Director of Place,Hired Transport,,11/01/16,"1,155.00 ",,Transport
5222239,STAMFORD CARS UK LTD,Environmental Services,Director of Place,Hired Transport,,11/01/16,748.00 ,,Transport
5222244,DR RICHARD SKELTON,Education,Director of People,Professional Services,,11/01/16,"4,200.00 ",,Medical
5222246,,Education,Director of People,Voluntary Organisations Fees,Redacted Supplier,11/01/16,650.00 ,,Social Community Care
5222256,LEANDER ARCHITECTURAL,Development Growth & Investment,Director of Place,Professional Services,,20/01/16,796.00 ,,Leisure Services
5222258,COOLSPIRIT LTD,Digital Tameside,Director of Place,It Equipment,,25/01/16,"2,795.72 ",,Information Communication Technology
5222260,,Childrens Services,Director of People,Childrens Homes Outside Local Authority Fees,Redacted Supplier,13/01/16,"9,200.00 ",,Social Community Care Supplies & Services
5222261,,Childrens Services,Director of People,Childrens Homes Outside Local Authority Fees,Redacted Supplier,13/01/16,"9,600.00 ",,Social Community Care Supplies & Services
5222262,,Childrens Services,Director of People,Childrens Homes Outside Local Authority Fees,Redacted Supplier,13/01/16,"9,600.00 ",,Social Community Care Supplies & Services
5222264,MR JOHN DELANEY,Environmental Services,Director of Place,Hired Transport,Business Payment,11/01/16,"1,530.00 ",,Unclassified
5222265,DR RICHARD SKELTON,Education,Director of People,Professional Services,,01/02/16,"5,000.00 ",,Medical
5222266,CONTOUR HOMES,Exchequer,Director of Governance and Resources,Housing Benefit Payments,,11/01/16,"3,167.80 ",,Social Community Care Supplies & Services
5222267,,Childrens Services,Director of People,Foster Carer Agency Fees,Redacted Supplier,13/01/16,"3,011.34 ",,Social Community Care
5222269,LEGGETT PSYCHOLOGY LTD,Education,Director of People,Professional Services,,11/01/16,"2,000.00 ",,Education
5222271,INSPIREDSPACES TAMESIDE (PROJECTCO2) LTD,Asset & Investment Partnership Management,Director of Place,Free School Meal Costs,,18/01/16,"14,760.90 ",,"Works - Construction, Repair & Maintenance"
5222271,INSPIREDSPACES TAMESIDE (PROJECTCO2) LTD,Asset & Investment Partnership Management,Director of Place,Professional Photography Services,,18/01/16,"821,156.98 ",,"Works - Construction, Repair & Maintenance"
5222271,INSPIREDSPACES TAMESIDE (PROJECTCO2) LTD,Asset & Investment Partnership Management,Director of Place,Professional Services,,18/01/16,"5,226.24 ",,"Works - Construction, Repair & Maintenance"
5222271,INSPIREDSPACES TAMESIDE (PROJECTCO2) LTD,Asset & Investment Partnership Management,Director of Place,Refreshments,,18/01/16,"1,343.68 ",,"Works - Construction, Repair & Maintenance"
5222271,INSPIREDSPACES TAMESIDE (PROJECTCO2) LTD,Asset & Investment Partnership Management,Director of Place,Utilities,,18/01/16,"36,932.88 ",,"Works - Construction, Repair & Maintenance"
5222272,INSPIREDSPACES TAMESIDE(PROJECTCO1) LTD,Asset & Investment Partnership Management,Director of Place,Free School Meal Costs,,18/01/16,"6,787.20 ",,"Works - Construction, Repair & Maintenance"
5222272,INSPIREDSPACES TAMESIDE(PROJECTCO1) LTD,Asset & Investment Partnership Management,Director of Place,Unitary Charge Payments,,18/01/16,"493,508.97 ",,"Works - Construction, Repair & Maintenance"
5222272,INSPIREDSPACES TAMESIDE(PROJECTCO1) LTD,Asset & Investment Partnership Management,Director of Place,Utilities,,18/01/16,"24,788.26 ",,"Works - Construction, Repair & Maintenance"
5222273,INSPIREDSPACES TAMESIDE LTD,Asset & Investment Partnership Management,Director of Place,Free School Meal Costs,,18/01/16,"2,184.00 ",,Consultancy
5222273,INSPIREDSPACES TAMESIDE LTD,Asset & Investment Partnership Management,Director of Place,Non-Authority Accommodation Rental,,18/01/16,"65,891.35 ",,Consultancy
5222273,INSPIREDSPACES TAMESIDE LTD,Asset & Investment Partnership Management,Director of Place,Refreshments,,18/01/16,"1,337.60 ",,Consultancy
5222273,INSPIREDSPACES TAMESIDE LTD,Asset & Investment Partnership Management,Director of Place,Telephone Landline Costs,,18/01/16,500.00 ,,Consultancy
5222273,INSPIREDSPACES TAMESIDE LTD,Asset & Investment Partnership Management,Director of Place,Utilities,,18/01/16,"24,234.75 ",,Consultancy
5222278,AD HOC CHAPS PAYMENT,Corporate Costs,Corporate Costs,Contributions,,18/01/16,"1,006.46 ",,Chaps Payments
5222279,,Multiple Heads of Service,Multiple Strategic Directorates,Debits Superann Teachers,Redacted Supplier,18/01/16,"1,175,844.93 ",,Unclassifiable
5222283,,Childrens Services,Director of People,Foster Care Placement Task,Redacted Supplier,18/01/16,"8,607.00 ",,Chaps Payments
5222284,TAMESIDE SPORTS TRUST,Public Health,Director of Public Health,Professional Services,,18/01/16,"466,250.00 ",,Leisure Services
5222288,NORTH WEST CONSTRUCTION,Housing,Director of Place,Improvement Grants - Final Mandatory,,11/01/16,"3,732.00 ",,"Works - Construction, Repair & Maintenance"
5222291,JAMES BUTTON & CO SOLICITORS,Environmental Services,Director of Place,Training Course Costs,,22/02/16,911.20 ,,Legal Services
5222295,GLM ACCESSIBLE TRANSPORT,Education,Director of People,Transport Of Pupils,Business Payment,14/01/16,980.00 ,,Transport
5222296,GLM ACCESSIBLE TRANSPORT,Education,Director of People,Transport Of Pupils,Business Payment,14/01/16,980.00 ,,Transport
5222297,GLM ACCESSIBLE TRANSPORT,Education,Director of People,Transport Of Pupils,Business Payment,14/01/16,"1,190.00 ",,Transport
5222298,DAVID CROZIER,Education,Director of People,Transport Of Pupils,Business Payment,11/01/16,825.00 ,,Unclassifiable
5222299,DAVID CROZIER,Education,Director of People,Transport Of Post 16 Pupils,Business Payment,11/01/16,"1,344.00 ",,Unclassifiable
5222300,STAMFORD CARS UK LTD,Education,Director of People,Transport Of Ola Pupils,,11/01/16,"1,183.00 ",,Transport
5222301,STAMFORD CARS UK LTD,Education,Director of People,Transport Of Ola Pupils,,11/01/16,"1,099.00 ",,Transport
5222303,STAMFORD CARS UK LTD,Education,Director of People,Transport Of Post 16 Pupils,,11/01/16,980.00 ,,Transport
5222304,STAMFORD CARS UK LTD,Education,Director of People,Transport Of Pupils,,11/01/16,714.00 ,,Transport
5222305,STAMFORD CARS UK LTD,Education,Director of People,Transport Of Pupils,,11/01/16,"1,134.00 ",,Transport
5222306,STAMFORD CARS UK LTD,Education,Director of People,Transport Of Pupils,,11/01/16,833.00 ,,Transport
5222307,STAMFORD CARS UK LTD,Education,Director of People,Transport Of Ola Pupils,,11/01/16,"1,470.00 ",,Transport
5222308,STAMFORD CARS UK LTD,Education,Director of People,Transport Of Ola Pupils,,11/01/16,"1,470.00 ",,Transport
5222309,STAMFORD CARS UK LTD,Education,Director of People,Transport Of Pupils,,11/01/16,665.00 ,,Transport
5222310,STAMFORD CARS UK LTD,Education,Director of People,Transport Of Pupils,,11/01/16,983.50 ,,Transport
5222311,STAMFORD CARS UK LTD,Education,Director of People,Transport Of Pupils,,11/01/16,882.00 ,,Transport
5222312,STAMFORD CARS UK LTD,Education,Director of People,Transport Of Ola Pupils,,11/01/16,"2,240.00 ",,Transport
5222313,STAMFORD CARS UK LTD,Education,Director of People,Transport Of Ola Pupils,,11/01/16,"1,155.00 ",,Transport
5222314,STAMFORD CARS UK LTD,Education,Director of People,Transport Of Ola Pupils,,11/01/16,983.50 ,,Transport
5222315,STAMFORD CARS UK LTD,Education,Director of People,Transport Of Ola Pupils,,11/01/16,"1,559.25 ",,Transport
5222316,STAMFORD CARS UK LTD,Education,Director of People,Transport Of Pupils,,11/01/16,"1,274.00 ",,Transport
5222317,STAMFORD CARS UK LTD,Education,Director of People,Transport Of Pupils,,11/01/16,"1,039.50 ",,Transport
5222319,STAMFORD CARS UK LTD,Education,Director of People,Transport Of Pupils,,11/01/16,833.00 ,,Transport
5222320,HMS DECORATIVE SURFACING LTD,Engineers Client,Director of Place,Road Marking Works,,03/02/16,"7,352.00 ",,Building Construction Materials
5222321,AGGREGATE INDUSTRIES UK LIMITED,Capital Programme,(blank),Highway Construction,,14/01/16,"111,841.96 ",,Highway Equipment & Materials
5222322,,Childrens Services,Director of People,Foster Carer Agency Fees,Redacted Supplier,13/01/16,799.00 ,,Unclassified
5222325,KNIGHT FRANK LLP,Tameside Investment Partnership,Director of Place,Building Maintenance,,13/01/16,"38,172.25 ",,Unclassifiable
5222326,VYSIONICS ITS LTD,Environmental Services,Director of Place,General Materials,,18/01/16,"14,319.00 ",,Traffic
5222329,WORKS 4U SUPPORT SERVICES LIMITED,Individual Schools Budget,Director of People,Professional Services,,13/01/16,"1,650.00 ",,Human Resources
5222330,WORKS 4U SUPPORT SERVICES LIMITED,Individual Schools Budget,Director of People,Professional Services,,13/01/16,810.00 ,,Human Resources
5222332,WORKS 4U SUPPORT SERVICES LIMITED,Individual Schools Budget,Director of People,Professional Services,,13/01/16,"1,350.00 ",,Human Resources
5222333,WORKS 4U SUPPORT SERVICES LIMITED,Individual Schools Budget,Director of People,Professional Services,,13/01/16,"1,350.00 ",,Human Resources
5222334,WORKS 4U SUPPORT SERVICES LIMITED,Individual Schools Budget,Director of People,Professional Services,,21/01/16,640.00 ,,Human Resources
5222335,WORKS 4U SUPPORT SERVICES LIMITED,Individual Schools Budget,Director of People,Professional Services,,13/01/16,730.00 ,,Human Resources
5222337,WORKS 4U SUPPORT SERVICES LIMITED,Individual Schools Budget,Director of People,Professional Services,,13/01/16,540.00 ,,Human Resources
5222340,WATERFORD TECHNOLOGIES LTD,Digital Tameside,Director of Place,Computer Software,,13/01/16,995.00 ,,Consultancy
5222351,LIFELINE PROJECT LTD (PH),Public Health,Director of Public Health,Professional Services,,13/01/16,"297,833.00 ",,Consultancy
5222352,MRL HEALTHCARE LIMITED,Adult Social Care,Director of People,Homecare Fees,,13/01/16,"5,680.21 ",,Social Community Care Supplies & Services
5222353,MRL HEALTHCARE LIMITED,Adult Social Care,Director of People,Homecare Fees,,13/01/16,"19,215.00 ",,Social Community Care Supplies & Services
5222360,CENTRAL MANCHESTER UNIVERSITY HOSPITALS NHS FOUNDATION TRUST,Public Health,Director of Public Health,Professional Services,,13/01/16,"4,965.00 ",,Consultancy
5222361,SICO EUROPE LIMITED,Asset & Investment Partnership Management,Director of Place,Adaptations - Small Jobs,,14/01/16,"12,063.25 ",,Furniture
5222363,THE CHESHIRE & GREATER MANCHESTER COMMUNITY REHABILITATION COMPANY LTD,Stronger Communities,Director of People,Professional Services,,10/02/16,"5,018.32 ",,Unclassifiable
5222364,THE CHESHIRE & GREATER MANCHESTER COMMUNITY REHABILITATION COMPANY LTD,Stronger Communities,Director of People,Professional Services,,10/02/16,"4,956.81 ",,Unclassifiable
5222365,TRINITY MIRROR NORTH PUBLISHING LTD,Governance,Director of Governance and Resources,Printing And Stationery,,13/01/16,500.00 ,,Public Bodies
5222371,TRINITY MIRROR NORTH PUBLISHING LTD,Governance,Director of Governance and Resources,Printing And Stationery,,25/01/16,"1,400.00 ",,Public Bodies
5222372,TRINITY MIRROR NORTH PUBLISHING LTD,Governance,Director of Governance and Resources,Printing And Stationery,,25/01/16,"1,562.00 ",,Public Bodies
5222376,R S & P HARRISON PROPERTY,Asset & Investment Partnership Management,Director of Place,Non-Authority Accommodation Rental,,13/01/16,"1,666.66 ",,Unclassifiable
5222382,,Education,Director of People,Voluntary Organisations Fees,Redacted Supplier,10/02/16,"86,666.66 ",,Medical
5222385,SEASHELL TRUST,Education,Director of People,Voluntary Organisations Fees,,18/01/16,"18,700.12 ",,Social Community Care Supplies & Services
5222386,NORTHGATE PUBLIC SERVICES UK LTD,Adult Social Care,Director of People,Miscellaneous Insurance,,13/01/16,"4,275.00 ",,Information Communication Technology
5222389,LAWYERS SOLICITORS T/A PORTERS SOLICITORS,Multiple Heads of Service,Multiple Strategic Directorates,Claims Settled,,13/01/16,"7,000.00 ",,Unclassifiable
5222393,PLATINUM STAIRLIFTS LIMITED,Housing,Director of Place,Improvement Grants - Final Mandatory,,18/01/16,"1,673.75 ",,Social & Community
5222399,THE CO-OP BANK PLC,Finance,Director of Governance and Resources,Fees,,18/01/16,19.00 ,,Financial Services
5222399,THE CO-OP BANK PLC,Governance,Director of Governance and Resources,Subscriptions,,18/01/16,725.63 ,,Financial Services
5222415,RADIO CABS (ASHTON)LTD,Education,Director of People,Transport Of Ola Pupils,,13/01/16,"2,196.40 ",,Transport
5222416,RADIO CABS (ASHTON)LTD,Education,Director of People,Transport Of Pupils,,13/01/16,"2,394.00 ",,Transport
5222417,RADIO CABS (ASHTON)LTD,Education,Director of People,Transport Of Pupils,,13/01/16,"1,426.80 ",,Transport
5222418,RADIO CABS (ASHTON)LTD,Education,Director of People,Transport Of Pupils,,13/01/16,"1,083.60 ",,Transport
5222420,RADIO CABS (ASHTON)LTD,Education,Director of People,Transport Of Pupils,,13/01/16,"2,268.00 ",,Transport
5222421,RADIO CABS (ASHTON)LTD,Education,Director of People,Transport Of Pupils,,13/01/16,"2,268.00 ",,Transport
5222422,RADIO CABS (ASHTON)LTD,Education,Director of People,Transport Of Post 16 Pupils,,13/01/16,"1,120.00 ",,Transport
5222423,RADIO CABS (ASHTON)LTD,Education,Director of People,Transport Of Post 16 Pupils,,13/01/16,"1,745.10 ",,Transport
5222426,RADIO CABS (ASHTON)LTD,Education,Director of People,Transport Of Ola Pupils,,13/01/16,"2,226.00 ",,Transport
5222428,RADIO CABS (ASHTON)LTD,Environmental Services,Director of Place,Hired Transport,,13/01/16,760.00 ,,Transport
5222429,RADIO CABS (ASHTON)LTD,Environmental Services,Director of Place,Hired Transport,,13/01/16,636.40 ,,Transport
5222430,RADIO CABS (ASHTON)LTD,Environmental Services,Director of Place,Hired Transport,,13/01/16,723.20 ,,Transport
5222433,RADIO CABS (ASHTON)LTD,Childrens Services,Director of People,Hired Transport,,13/01/16,"1,280.00 ",,Transport
5222444,GREENSCAPE,Adult Social Care,Director of People,Professional Services,,09/03/16,"2,967.00 ",,"Works - Construction, Repair & Maintenance"
5222452,ST PETER'S PARTNERSHIP,Public Health,Director of Public Health,Child Care Fees,,14/01/16,980.01 ,,Social Community Care Supplies & Services
